{"text_format":"1","workbook":"xlsx","n_sheets":3,"sheets":["Database 1","job Order","الطباعه وطبقه حمايه"],"not_rendered":{"charts":0,"images":0,"macros":1,"external_links":1,"defined_names":8,"comments":0,"pivot_tables":0},"unopened":[],"bounds":{"document_bytes":16777216,"sheet_cells":100000,"rows_first":2000,"rows_last":500,"rows_between":2000,"halvings":0,"cell_chars":16384,"cell_head_chars":4096},"cells_cut":0,"cells_raw":0,"read":"whole","date_system":"1900"}

{"sheet":"Database 1","index":0,"n_rows":15,"n_cols":6,"rows_kept":15,"cut":false,"hidden":false,"merged":[]}
[null,"اسم المورد","الحد الادني ","سعر ","زنكات","نوع الخدمه"]
["يوفي","مورد 1",0,120,0,"يوفي "]
[null,"مورد 2",0,120,0,"يوفي "]
[null,"مورد 3",0,150,0,"يوفي "]
[null,"مورد 4",5000,40,175,"طباعه "]
[null,"مورد 5",5000,90,625,"طباعه "]
[null,"مورد 6",3000,0.62,105,"طباعه "]
[null,"مورد 7",0,0,0,"بدون"]
[null,"مورد 8",10000,1.1000000000000001,500,"طباعه "]
[null,"مورد 9",10000,1.2,500,"طباعه "]
[null,"مورد 10",10000,0.6,225,"طباعه "]
[null,"مورد 11",2000,0.34,110,"طباعه "]
[null,"مورد 12",3000,0.62,110,"طباعه "]
[null,"مورد 13"]
[null,"مورد 14"]

{"sheet":"job Order","index":1,"n_rows":323,"n_cols":77,"rows_kept":323,"cut":false,"hidden":false,"merged":[]}
[null,1,2,3,4,5,6,7,8,9,10,11,12,13,14,15,16,17,18,19,20,21,22,23,24,25,26,27,28,29,30,31,32,33,34,35,36,37,38,39,40,41,42,43,44,45,46,47,48,49,50,51,52,53,54,55,56,57,58,59,60,61,62,63,64,65,66,67,68,69,70]
[]
["مسلسل","رقم امر الشغل","التاريخ","اسم المنتج","اسم المصنع","اسم العميل","الكميه ","عدد الشرائح","نوع الشيت"," البكر","عرض البكر","طول","السنة الاولي","نوع الخامة","معامل السنه الاولي","جرام الورق","الوزن المطلوب","السنة الثانية ","نوع الخامة2","معامل السنه الثانيه","جرام الورق3","الوزن المطلوب4","الدهر الاول","جرام الورق5","الوزن المطلوب6","الدهر الثاني","جرام الورق7","الوزن المطلوب8","دوبلكس الطباعه","جرام الورق2","الوزن المطلوب9","اسم المطبعه","الوان الطباعه ","عدد الاطقم ","مورد طبقه الحمايه","طبقة الحماية","تشطيب","عدد الدبوس","عدد الربطه","عدد الكرسي","ارتفاع الربط ","رقم تليفون العميل","مكان التسليم ","نوع التحميل","مقاس البالته ","ارتفاع البالته ","مورد الفورمه ","رقم الفورمه ","طول10","عرض","ارتفاع","الطعم 1","الكميه 1","الطعم 2","الكميه 2","الطعم 3","الكميه 3","الطعم 4","الكميه 4","الطعم 5","الكميه 5","الطعم 6","الكميه 6","الطعم 7","الكميه 7","الطعم 8","الكميه 8","السعر ","سعر الصرف","ملاحظات","ملاحظات امر التوريد","الفرق في الكميه",null,null,"الكميه المنتجه","الكميه المسلمه","الفرق"]
[{"$f":"IF(D4<>\"\",MAX($A$1:A3)+1,\"\")","v":1},3628,"2019-12-14","محمد سمير - طقم بهارات الامبراطور  كود 7002",{"$f":"IFERROR(VLOOKUP($D4,table2,2,0),\"\")","v":""},{"$f":"IFERROR(VLOOKUP($D4,table2,3,0),\"\")","v":""},2000,{"$f":"IFERROR(VLOOKUP($D4,table2,17,0)*$G4,\"\")","v":""},{"$f":"IFERROR(VLOOKUP($D4,table2,18,0),\"\")","v":""},{"$f":"IFERROR(VLOOKUP($D4,table2,14,0),\"\")","v":""},{"$f":"IFERROR(VLOOKUP($D4,table2,15,0),\"\")","v":""},{"$f":"IFERROR(VLOOKUP($D4,table2,16,0),\"\")","v":""},{"$f":"IFERROR(VLOOKUP($D4,table2,19,0),\"\")","v":""},{"$f":"IFERROR(VLOOKUP($D4,table2,20,0),\"\")","v":""},{"$f":"IFERROR(VLOOKUP($M4,'Database 1'!#REF!,2,0),\"\")","v":""},150,{"$f":"IFERROR(ROUNDUP(($H4*$K4*$L4*$O4*$P4)/1000,),\"------\")","v":"------"},{"$f":"IFERROR(VLOOKUP($D4,table2,21,0),\"\")","v":""},{"$f":"IFERROR(VLOOKUP($D4,table2,22,0),\"\")","v":""},{"$f":"IFERROR(VLOOKUP($R4,'Database 1'!#REF!,2,0),\"\")","v":""},null,{"$f":"IFERROR(ROUNDUP(($H4*$K4*$L4*$T4*$U4)/1000,),\"------\")","v":"------"},{"$f":"IFERROR(VLOOKUP($D4,table2,23,0),\"\")","v":""},150,{"$f":"IFERROR(ROUNDUP(($H4*$K4*$L4*$X4)/1000,),\"------\")","v":"------"},{"$f":"IFERROR(VLOOKUP($D4,table2,24,0),\"\")","v":""},null,{"$f":"IFERROR(ROUNDUP(($H4*$K4*$L4*$AA4)/1000,),\"------\")","v":"------"},{"$f":"IFERROR(VLOOKUP($D4,table2,25,0),\"\")","v":""},250,{"$f":"IFERROR(ROUNDUP(($H4*$K4*$L4*$AD4)/1000,),\"------\")","v":"------"},{"$f":"IFERROR(VLOOKUP($D4,table2,27,0),\"\")","v":""},{"$f":"IFERROR(VLOOKUP($D4,table2,28,0),\"\")","v":""},{"$f":"IFERROR(VLOOKUP($D4,table2,29,0),\"\")","v":""},{"$f":"IFERROR(VLOOKUP($D4,table2,30,0),\"\")","v":""},{"$f":"IFERROR(VLOOKUP($D4,table2,31,0),\"\")","v":""},{"$f":"IFERROR(VLOOKUP($D4,table2,32,0),\"\")","v":""},{"$f":"IFERROR(VLOOKUP($D4,table2,33,0),\"\")","v":""},{"$f":"IFERROR(VLOOKUP($D4,table2,34,0),\"\")","v":""},{"$f":"IFERROR(VLOOKUP($D4,table2,35,0),\"\")","v":""},{"$f":"IFERROR(VLOOKUP($D4,table2,36,0),\"\")","v":""},{"$f":"IFERROR(VLOOKUP($D4,table2,37,0),\"\")","v":""},{"$f":"IFERROR(VLOOKUP($D4,table2,38,0),\"\")","v":""},{"$f":"IFERROR(VLOOKUP($D4,table2,39,0),\"\")","v":""},{"$f":"IFERROR(VLOOKUP($D4,table2,40,0),\"\")","v":""},{"$f":"IFERROR(VLOOKUP($D4,table2,41,0),\"\")","v":""},{"$f":"IFERROR(VLOOKUP($D4,table2,5,0),\"\")","v":""},{"$f":"IFERROR(VLOOKUP($D4,table2,6,0),\"\")","v":""},{"$f":"IFERROR(VLOOKUP($D4,table2,11,0),\"\")","v":""},{"$f":"IFERROR(VLOOKUP($D4,table2,12,0),\"\")","v":""},{"$f":"IFERROR(VLOOKUP($D4,table2,13,0),\"\")","v":""},null,null,null,null,null,null,null,null,null,null,null,null,null,null,null,null,{"$f":"11.4-2.8","v":8.6000000000000014},1,{"$f":"IFERROR(VLOOKUP($D4,table2,42,0),\"\")","v":""},null,-83,null,null,{"$f":"IFERROR(VLOOKUP(Table4[[#This Row],[رقم امر الشغل]],table5,9,0),\"\")","v":""},{"$f":"IFERROR(VLOOKUP(Table4[[#This Row],[رقم امر الشغل]],table5,10,0),\"\")","v":""},{"$f":"IFERROR((BW4-BX4),\"\")","v":""}]
["Total",null,null,null,null,null,null,null,null,null,null,null,null,null,null,null,null,null,null,null,null,null,null,null,null,null,null,null,null,null,null,null,null,null,null,null,null,null,null,null,null,null,null,null,null,null,null,null,null,null,null,null,null,null,null,null,null,null,null,null,null,null,null,null,null,null,{"$f":"SUBTOTAL(103,[الكميه 8])","v":0},null,null,null,null,null,null,null,{"$f":"IFERROR(VLOOKUP(Table4[[#This Row],[رقم امر الشغل]],table5,9,0),\"\")","v":""},{"$f":"IFERROR(VLOOKUP(Table4[[#This Row],[رقم امر الشغل]],table5,10,0),\"\")","v":""},{"$f":"IFERROR((BW5-BX5),\"\")","v":""}]
[null,null,null,null,null,null,null,null,null,null,null,null,null,null,null,null,null,null,null,null,null,null,null,null,null,null,null,null,null,null,null,null,null,null,null,null,null,null,null,null,null,null,null,null,null,null,null,null,null,null,null,null,null,null,null,null,null,null,null,null,null,null,null,null,null,null,null,null,null,null,null,null,null,null,{"$f":"IFERROR(VLOOKUP(Table4[[#This Row],[رقم امر الشغل]],table5,9,0),\"\")","v":""},{"$f":"IFERROR(VLOOKUP(Table4[[#This Row],[رقم امر الشغل]],table5,10,0),\"\")","v":""},""]
[null,null,null,null,null,null,null,null,null,null,null,null,null,null,null,null,null,null,null,null,null,null,null,null,null,null,null,null,null,null,null,null,null,null,null,null,null,null,null,null,null,null,null,null,null,null,null,null,null,null,null,null,null,null,null,null,null,null,null,null,null,null,null,null,null,null,null,null,null,null,null,null,null,null,{"$f":"IFERROR(VLOOKUP(Table4[[#This Row],[رقم امر الشغل]],table5,9,0),\"\")","v":""},{"$f":"IFERROR(VLOOKUP(Table4[[#This Row],[رقم امر الشغل]],table5,10,0),\"\")","v":""},""]
[null,null,null,null,null,null,null,null,null,null,null,null,null,null,null,null,null,null,null,null,null,null,null,null,null,null,null,null,null,null,null,null,null,null,null,null,null,null,null,null,null,null,null,null,null,null,null,null,null,null,null,null,null,null,null,null,null,null,null,null,null,null,null,null,null,null,null,null,null,null,null,null,null,null,{"$f":"IFERROR(VLOOKUP(Table4[[#This Row],[رقم امر الشغل]],table5,9,0),\"\")","v":""},{"$f":"IFERROR(VLOOKUP(Table4[[#This Row],[رقم امر الشغل]],table5,10,0),\"\")","v":""},""]
[null,null,null,null,null,null,null,null,null,null,null,null,null,null,null,null,null,null,null,null,null,null,null,null,null,null,null,null,null,null,null,null,null,null,null,null,null,null,null,null,null,null,null,null,null,null,null,null,null,null,null,null,null,null,null,null,null,null,null,null,null,null,null,null,null,null,null,null,null,null,null,null,null,null,{"$f":"IFERROR(VLOOKUP(Table4[[#This Row],[رقم امر الشغل]],table5,9,0),\"\")","v":""},{"$f":"IFERROR(VLOOKUP(Table4[[#This Row],[رقم امر الشغل]],table5,10,0),\"\")","v":""},""]
[null,null,null,null,null,null,null,null,null,null,null,null,null,null,null,null,null,null,null,null,null,null,null,null,null,null,null,null,null,null,null,null,null,null,null,null,null,null,null,null,null,null,null,null,null,null,null,null,null,null,null,null,null,null,null,null,null,null,null,null,null,null,null,null,null,null,null,null,null,null,null,null,null,null,{"$f":"IFERROR(VLOOKUP(Table4[[#This Row],[رقم امر الشغل]],table5,9,0),\"\")","v":""},{"$f":"IFERROR(VLOOKUP(Table4[[#This Row],[رقم امر الشغل]],table5,10,0),\"\")","v":""},""]
[null,null,null,null,null,null,null,null,null,null,null,null,null,null,null,null,null,null,null,null,null,null,null,null,null,null,null,null,null,null,null,null,null,null,null,null,null,null,null,null,null,null,null,null,null,null,null,null,null,null,null,null,null,null,null,null,null,null,null,null,null,null,null,null,null,null,null,null,null,null,null,null,null,null,{"$f":"IFERROR(VLOOKUP(Table4[[#This Row],[رقم امر الشغل]],table5,9,0),\"\")","v":""},{"$f":"IFERROR(VLOOKUP(Table4[[#This Row],[رقم امر الشغل]],table5,10,0),\"\")","v":""},""]
[null,null,null,null,null,null,null,null,null,null,null,null,null,null,null,null,null,null,null,null,null,null,null,null,null,null,null,null,null,null,null,null,null,null,null,null,null,null,null,null,null,null,null,null,null,null,null,null,null,null,null,null,null,null,null,null,null,null,null,null,null,null,null,null,null,null,null,null,null,null,null,null,null,null,{"$f":"IFERROR(VLOOKUP(Table4[[#This Row],[رقم امر الشغل]],table5,9,0),\"\")","v":""},{"$f":"IFERROR(VLOOKUP(Table4[[#This Row],[رقم امر الشغل]],table5,10,0),\"\")","v":""},""]
[null,null,null,null,null,null,null,null,null,null,null,null,null,null,null,null,null,null,null,null,null,null,null,null,null,null,null,null,null,null,null,null,null,null,null,null,null,null,null,null,null,null,null,null,null,null,null,null,null,null,null,null,null,null,null,null,null,null,null,null,null,null,null,null,null,null,null,null,null,null,null,null,null,null,{"$f":"IFERROR(VLOOKUP(Table4[[#This Row],[رقم امر الشغل]],table5,9,0),\"\")","v":""},{"$f":"IFERROR(VLOOKUP(Table4[[#This Row],[رقم امر الشغل]],table5,10,0),\"\")","v":""},""]
[null,null,null,null,null,null,null,null,null,null,null,null,null,null,null,null,null,null,null,null,null,null,null,null,null,null,null,null,null,null,null,null,null,null,null,null,null,null,null,null,null,null,null,null,null,null,null,null,null,null,null,null,null,null,null,null,null,null,null,null,null,null,null,null,null,null,null,null,null,null,null,null,null,null,{"$f":"IFERROR(VLOOKUP(Table4[[#This Row],[رقم امر الشغل]],table5,9,0),\"\")","v":""},{"$f":"IFERROR(VLOOKUP(Table4[[#This Row],[رقم امر الشغل]],table5,10,0),\"\")","v":""},""]
[null,null,null,null,null,null,null,null,null,null,null,null,null,null,null,null,null,null,null,null,null,null,null,null,null,null,null,null,null,null,null,null,null,null,null,null,null,null,null,null,null,null,null,null,null,null,null,null,null,null,null,null,null,null,null,null,null,null,null,null,null,null,null,null,null,null,null,null,null,null,null,null,null,null,{"$f":"IFERROR(VLOOKUP(Table4[[#This Row],[رقم امر الشغل]],table5,9,0),\"\")","v":""},{"$f":"IFERROR(VLOOKUP(Table4[[#This Row],[رقم امر الشغل]],table5,10,0),\"\")","v":""},""]
[null,null,null,null,null,null,null,null,null,null,null,null,null,null,null,null,null,null,null,null,null,null,null,null,null,null,null,null,null,null,null,null,null,null,null,null,null,null,null,null,null,null,null,null,null,null,null,null,null,null,null,null,null,null,null,null,null,null,null,null,null,null,null,null,null,null,null,null,null,null,null,null,null,null,{"$f":"IFERROR(VLOOKUP(Table4[[#This Row],[رقم امر الشغل]],table5,9,0),\"\")","v":""},{"$f":"IFERROR(VLOOKUP(Table4[[#This Row],[رقم امر الشغل]],table5,10,0),\"\")","v":""},""]
[null,null,null,null,null,null,null,null,null,null,null,null,null,null,null,null,null,null,null,null,null,null,null,null,null,null,null,null,null,null,null,null,null,null,null,null,null,null,null,null,null,null,null,null,null,null,null,null,null,null,null,null,null,null,null,null,null,null,null,null,null,null,null,null,null,null,null,null,null,null,null,null,null,null,{"$f":"IFERROR(VLOOKUP(Table4[[#This Row],[رقم امر الشغل]],table5,9,0),\"\")","v":""},{"$f":"IFERROR(VLOOKUP(Table4[[#This Row],[رقم امر الشغل]],table5,10,0),\"\")","v":""},""]
[null,null,null,null,null,null,null,null,null,null,null,null,null,null,null,null,null,null,null,null,null,null,null,null,null,null,null,null,null,null,null,null,null,null,null,null,null,null,null,null,null,null,null,null,null,null,null,null,null,null,null,null,null,null,null,null,null,null,null,null,null,null,null,null,null,null,null,null,null,null,null,null,null,null,{"$f":"IFERROR(VLOOKUP(Table4[[#This Row],[رقم امر الشغل]],table5,9,0),\"\")","v":""},{"$f":"IFERROR(VLOOKUP(Table4[[#This Row],[رقم امر الشغل]],table5,10,0),\"\")","v":""},""]
[null,null,null,null,null,null,null,null,null,null,null,null,null,null,null,null,null,null,null,null,null,null,null,null,null,null,null,null,null,null,null,null,null,null,null,null,null,null,null,null,null,null,null,null,null,null,null,null,null,null,null,null,null,null,null,null,null,null,null,null,null,null,null,null,null,null,null,null,null,null,null,null,null,null,{"$f":"IFERROR(VLOOKUP(Table4[[#This Row],[رقم امر الشغل]],table5,9,0),\"\")","v":""},{"$f":"IFERROR(VLOOKUP(Table4[[#This Row],[رقم امر الشغل]],table5,10,0),\"\")","v":""},""]
[null,null,null,null,null,null,null,null,null,null,null,null,null,null,null,null,null,null,null,null,null,null,null,null,null,null,null,null,null,null,null,null,null,null,null,null,null,null,null,null,null,null,null,null,null,null,null,null,null,null,null,null,null,null,null,null,null,null,null,null,null,null,null,null,null,null,null,null,null,null,null,null,null,null,{"$f":"IFERROR(VLOOKUP(Table4[[#This Row],[رقم امر الشغل]],table5,9,0),\"\")","v":""},{"$f":"IFERROR(VLOOKUP(Table4[[#This Row],[رقم امر الشغل]],table5,10,0),\"\")","v":""},""]
[null,null,null,null,null,null,null,null,null,null,null,null,null,null,null,null,null,null,null,null,null,null,null,null,null,null,null,null,null,null,null,null,null,null,null,null,null,null,null,null,null,null,null,null,null,null,null,null,null,null,null,null,null,null,null,null,null,null,null,null,null,null,null,null,null,null,null,null,null,null,null,null,null,null,{"$f":"IFERROR(VLOOKUP(Table4[[#This Row],[رقم امر الشغل]],table5,9,0),\"\")","v":""},{"$f":"IFERROR(VLOOKUP(Table4[[#This Row],[رقم امر الشغل]],table5,10,0),\"\")","v":""},""]
[null,null,null,null,null,null,null,null,null,null,null,null,null,null,null,null,null,null,null,null,null,null,null,null,null,null,null,null,null,null,null,null,null,null,null,null,null,null,null,null,null,null,null,null,null,null,null,null,null,null,null,null,null,null,null,null,null,null,null,null,null,null,null,null,null,null,null,null,null,null,null,null,null,null,{"$f":"IFERROR(VLOOKUP(Table4[[#This Row],[رقم امر الشغل]],table5,9,0),\"\")","v":""},{"$f":"IFERROR(VLOOKUP(Table4[[#This Row],[رقم امر الشغل]],table5,10,0),\"\")","v":""},""]
[null,null,null,null,null,null,null,null,null,null,null,null,null,null,null,null,null,null,null,null,null,null,null,null,null,null,null,null,null,null,null,null,null,null,null,null,null,null,null,null,null,null,null,null,null,null,null,null,null,null,null,null,null,null,null,null,null,null,null,null,null,null,null,null,null,null,null,null,null,null,null,null,null,null,{"$f":"IFERROR(VLOOKUP(Table4[[#This Row],[رقم امر الشغل]],table5,9,0),\"\")","v":""},{"$f":"IFERROR(VLOOKUP(Table4[[#This Row],[رقم امر الشغل]],table5,10,0),\"\")","v":""},""]
[null,null,null,null,null,null,null,null,null,null,null,null,null,null,null,null,null,null,null,null,null,null,null,null,null,null,null,null,null,null,null,null,null,null,null,null,null,null,null,null,null,null,null,null,null,null,null,null,null,null,null,null,null,null,null,null,null,null,null,null,null,null,null,null,null,null,null,null,null,null,null,null,null,null,{"$f":"IFERROR(VLOOKUP(Table4[[#This Row],[رقم امر الشغل]],table5,9,0),\"\")","v":""},{"$f":"IFERROR(VLOOKUP(Table4[[#This Row],[رقم امر الشغل]],table5,10,0),\"\")","v":""},""]
[null,null,null,null,null,null,null,null,null,null,null,null,null,null,null,null,null,null,null,null,null,null,null,null,null,null,null,null,null,null,null,null,null,null,null,null,null,null,null,null,null,null,null,null,null,null,null,null,null,null,null,null,null,null,null,null,null,null,null,null,null,null,null,null,null,null,null,null,null,null,null,null,null,null,{"$f":"IFERROR(VLOOKUP(Table4[[#This Row],[رقم امر الشغل]],table5,9,0),\"\")","v":""},{"$f":"IFERROR(VLOOKUP(Table4[[#This Row],[رقم امر الشغل]],table5,10,0),\"\")","v":""},""]
[null,null,null,null,null,null,null,null,null,null,null,null,null,null,null,null,null,null,null,null,null,null,null,null,null,null,null,null,null,null,null,null,null,null,null,null,null,null,null,null,null,null,null,null,null,null,null,null,null,null,null,null,null,null,null,null,null,null,null,null,null,null,null,null,null,null,null,null,null,null,null,null,null,null,{"$f":"IFERROR(VLOOKUP(Table4[[#This Row],[رقم امر الشغل]],table5,9,0),\"\")","v":""},{"$f":"IFERROR(VLOOKUP(Table4[[#This Row],[رقم امر الشغل]],table5,10,0),\"\")","v":""},{"$f":"IFERROR((BW26-BX26),\"\")","v":""}]
[null,null,null,null,null,null,null,null,null,null,null,null,null,null,null,null,null,null,null,null,null,null,null,null,null,null,null,null,null,null,null,null,null,null,null,null,null,null,null,null,null,null,null,null,null,null,null,null,null,null,null,null,null,null,null,null,null,null,null,null,null,null,null,null,null,null,null,null,null,null,null,null,null,null,{"$f":"IFERROR(VLOOKUP(Table4[[#This Row],[رقم امر الشغل]],table5,9,0),\"\")","v":""},{"$f":"IFERROR(VLOOKUP(Table4[[#This Row],[رقم امر الشغل]],table5,10,0),\"\")","v":""},""]
[null,null,null,null,null,null,null,null,null,null,null,null,null,null,null,null,null,null,null,null,null,null,null,null,null,null,null,null,null,null,null,null,null,null,null,null,null,null,null,null,null,null,null,null,null,null,null,null,null,null,null,null,null,null,null,null,null,null,null,null,null,null,null,null,null,null,null,null,null,null,null,null,null,null,{"$f":"IFERROR(VLOOKUP(Table4[[#This Row],[رقم امر الشغل]],table5,9,0),\"\")","v":""},{"$f":"IFERROR(VLOOKUP(Table4[[#This Row],[رقم امر الشغل]],table5,10,0),\"\")","v":""},""]
[null,null,null,null,null,null,null,null,null,null,null,null,null,null,null,null,null,null,null,null,null,null,null,null,null,null,null,null,null,null,null,null,null,null,null,null,null,null,null,null,null,null,null,null,null,null,null,null,null,null,null,null,null,null,null,null,null,null,null,null,null,null,null,null,null,null,null,null,null,null,null,null,null,null,{"$f":"IFERROR(VLOOKUP(Table4[[#This Row],[رقم امر الشغل]],table5,9,0),\"\")","v":""},{"$f":"IFERROR(VLOOKUP(Table4[[#This Row],[رقم امر الشغل]],table5,10,0),\"\")","v":""},""]
[null,null,null,null,null,null,null,null,null,null,null,null,null,null,null,null,null,null,null,null,null,null,null,null,null,null,null,null,null,null,null,null,null,null,null,null,null,null,null,null,null,null,null,null,null,null,null,null,null,null,null,null,null,null,null,null,null,null,null,null,null,null,null,null,null,null,null,null,null,null,null,null,null,null,{"$f":"IFERROR(VLOOKUP(Table4[[#This Row],[رقم امر الشغل]],table5,9,0),\"\")","v":""},{"$f":"IFERROR(VLOOKUP(Table4[[#This Row],[رقم امر الشغل]],table5,10,0),\"\")","v":""},""]
[null,null,null,null,null,null,null,null,null,null,null,null,null,null,null,null,null,null,null,null,null,null,null,null,null,null,null,null,null,null,null,null,null,null,null,null,null,null,null,null,null,null,null,null,null,null,null,null,null,null,null,null,null,null,null,null,null,null,null,null,null,null,null,null,null,null,null,null,null,null,null,null,null,null,{"$f":"IFERROR(VLOOKUP(Table4[[#This Row],[رقم امر الشغل]],table5,9,0),\"\")","v":""},{"$f":"IFERROR(VLOOKUP(Table4[[#This Row],[رقم امر الشغل]],table5,10,0),\"\")","v":""},""]
[null,null,null,null,null,null,null,null,null,null,null,null,null,null,null,null,null,null,null,null,null,null,null,null,null,null,null,null,null,null,null,null,null,null,null,null,null,null,null,null,null,null,null,null,null,null,null,null,null,null,null,null,null,null,null,null,null,null,null,null,null,null,null,null,null,null,null,null,null,null,null,null,null,null,{"$f":"IFERROR(VLOOKUP(Table4[[#This Row],[رقم امر الشغل]],table5,9,0),\"\")","v":""},{"$f":"IFERROR(VLOOKUP(Table4[[#This Row],[رقم امر الشغل]],table5,10,0),\"\")","v":""},""]
[null,null,null,null,null,null,null,null,null,null,null,null,null,null,null,null,null,null,null,null,null,null,null,null,null,null,null,null,null,null,null,null,null,null,null,null,null,null,null,null,null,null,null,null,null,null,null,null,null,null,null,null,null,null,null,null,null,null,null,null,null,null,null,null,null,null,null,null,null,null,null,null,null,null,{"$f":"IFERROR(VLOOKUP(Table4[[#This Row],[رقم امر الشغل]],table5,9,0),\"\")","v":""},{"$f":"IFERROR(VLOOKUP(Table4[[#This Row],[رقم امر الشغل]],table5,10,0),\"\")","v":""},""]
[null,null,null,null,null,null,null,null,null,null,null,null,null,null,null,null,null,null,null,null,null,null,null,null,null,null,null,null,null,null,null,null,null,null,null,null,null,null,null,null,null,null,null,null,null,null,null,null,null,null,null,null,null,null,null,null,null,null,null,null,null,null,null,null,null,null,null,null,null,null,null,null,null,null,{"$f":"IFERROR(VLOOKUP(Table4[[#This Row],[رقم امر الشغل]],table5,9,0),\"\")","v":""},{"$f":"IFERROR(VLOOKUP(Table4[[#This Row],[رقم امر الشغل]],table5,10,0),\"\")","v":""},""]
[null,null,null,null,null,null,null,null,null,null,null,null,null,null,null,null,null,null,null,null,null,null,null,null,null,null,null,null,null,null,null,null,null,null,null,null,null,null,null,null,null,null,null,null,null,null,null,null,null,null,null,null,null,null,null,null,null,null,null,null,null,null,null,null,null,null,null,null,null,null,null,null,null,null,{"$f":"IFERROR(VLOOKUP(Table4[[#This Row],[رقم امر الشغل]],table5,9,0),\"\")","v":""},{"$f":"IFERROR(VLOOKUP(Table4[[#This Row],[رقم امر الشغل]],table5,10,0),\"\")","v":""},""]
[null,null,null,null,null,null,null,null,null,null,null,null,null,null,null,null,null,null,null,null,null,null,null,null,null,null,null,null,null,null,null,null,null,null,null,null,null,null,null,null,null,null,null,null,null,null,null,null,null,null,null,null,null,null,null,null,null,null,null,null,null,null,null,null,null,null,null,null,null,null,null,null,null,null,{"$f":"IFERROR(VLOOKUP(Table4[[#This Row],[رقم امر الشغل]],table5,9,0),\"\")","v":""},{"$f":"IFERROR(VLOOKUP(Table4[[#This Row],[رقم امر الشغل]],table5,10,0),\"\")","v":""},""]
[null,null,null,null,null,null,null,null,null,null,null,null,null,null,null,null,null,null,null,null,null,null,null,null,null,null,null,null,null,null,null,null,null,null,null,null,null,null,null,null,null,null,null,null,null,null,null,null,null,null,null,null,null,null,null,null,null,null,null,null,null,null,null,null,null,null,null,null,null,null,null,null,null,null,{"$f":"IFERROR(VLOOKUP(Table4[[#This Row],[رقم امر الشغل]],table5,9,0),\"\")","v":""},{"$f":"IFERROR(VLOOKUP(Table4[[#This Row],[رقم امر الشغل]],table5,10,0),\"\")","v":""},""]
[null,null,null,null,null,null,null,null,null,null,null,null,null,null,null,null,null,null,null,null,null,null,null,null,null,null,null,null,null,null,null,null,null,null,null,null,null,null,null,null,null,null,null,null,null,null,null,null,null,null,null,null,null,null,null,null,null,null,null,null,null,null,null,null,null,null,null,null,null,null,null,null,null,null,{"$f":"IFERROR(VLOOKUP(Table4[[#This Row],[رقم امر الشغل]],table5,9,0),\"\")","v":""},{"$f":"IFERROR(VLOOKUP(Table4[[#This Row],[رقم امر الشغل]],table5,10,0),\"\")","v":""},""]
[null,null,null,null,null,null,null,null,null,null,null,null,null,null,null,null,null,null,null,null,null,null,null,null,null,null,null,null,null,null,null,null,null,null,null,null,null,null,null,null,null,null,null,null,null,null,null,null,null,null,null,null,null,null,null,null,null,null,null,null,null,null,null,null,null,null,null,null,null,null,null,null,null,null,{"$f":"IFERROR(VLOOKUP(Table4[[#This Row],[رقم امر الشغل]],table5,9,0),\"\")","v":""},{"$f":"IFERROR(VLOOKUP(Table4[[#This Row],[رقم امر الشغل]],table5,10,0),\"\")","v":""},""]
[null,null,null,null,null,null,null,null,null,null,null,null,null,null,null,null,null,null,null,null,null,null,null,null,null,null,null,null,null,null,null,null,null,null,null,null,null,null,null,null,null,null,null,null,null,null,null,null,null,null,null,null,null,null,null,null,null,null,null,null,null,null,null,null,null,null,null,null,null,null,null,null,null,null,{"$f":"IFERROR(VLOOKUP(Table4[[#This Row],[رقم امر الشغل]],table5,9,0),\"\")","v":""},{"$f":"IFERROR(VLOOKUP(Table4[[#This Row],[رقم امر الشغل]],table5,10,0),\"\")","v":""},""]
[null,null,null,null,null,null,null,null,null,null,null,null,null,null,null,null,null,null,null,null,null,null,null,null,null,null,null,null,null,null,null,null,null,null,null,null,null,null,null,null,null,null,null,null,null,null,null,null,null,null,null,null,null,null,null,null,null,null,null,null,null,null,null,null,null,null,null,null,null,null,null,null,null,null,{"$f":"IFERROR(VLOOKUP(Table4[[#This Row],[رقم امر الشغل]],table5,9,0),\"\")","v":""},{"$f":"IFERROR(VLOOKUP(Table4[[#This Row],[رقم امر الشغل]],table5,10,0),\"\")","v":""},""]
[null,null,null,null,null,null,null,null,null,null,null,null,null,null,null,null,null,null,null,null,null,null,null,null,null,null,null,null,null,null,null,null,null,null,null,null,null,null,null,null,null,null,null,null,null,null,null,null,null,null,null,null,null,null,null,null,null,null,null,null,null,null,null,null,null,null,null,null,null,null,null,null,null,null,{"$f":"IFERROR(VLOOKUP(Table4[[#This Row],[رقم امر الشغل]],table5,9,0),\"\")","v":""},{"$f":"IFERROR(VLOOKUP(Table4[[#This Row],[رقم امر الشغل]],table5,10,0),\"\")","v":""},""]
[null,null,null,null,null,null,null,null,null,null,null,null,null,null,null,null,null,null,null,null,null,null,null,null,null,null,null,null,null,null,null,null,null,null,null,null,null,null,null,null,null,null,null,null,null,null,null,null,null,null,null,null,null,null,null,null,null,null,null,null,null,null,null,null,null,null,null,null,null,null,null,null,null,null,{"$f":"IFERROR(VLOOKUP(Table4[[#This Row],[رقم امر الشغل]],table5,9,0),\"\")","v":""},{"$f":"IFERROR(VLOOKUP(Table4[[#This Row],[رقم امر الشغل]],table5,10,0),\"\")","v":""},""]
[null,null,null,null,null,null,null,null,null,null,null,null,null,null,null,null,null,null,null,null,null,null,null,null,null,null,null,null,null,null,null,null,null,null,null,null,null,null,null,null,null,null,null,null,null,null,null,null,null,null,null,null,null,null,null,null,null,null,null,null,null,null,null,null,null,null,null,null,null,null,null,null,null,null,{"$f":"IFERROR(VLOOKUP(Table4[[#This Row],[رقم امر الشغل]],table5,9,0),\"\")","v":""},{"$f":"IFERROR(VLOOKUP(Table4[[#This Row],[رقم امر الشغل]],table5,10,0),\"\")","v":""},""]
[null,null,null,null,null,null,null,null,null,null,null,null,null,null,null,null,null,null,null,null,null,null,null,null,null,null,null,null,null,null,null,null,null,null,null,null,null,null,null,null,null,null,null,null,null,null,null,null,null,null,null,null,null,null,null,null,null,null,null,null,null,null,null,null,null,null,null,null,null,null,null,null,null,null,{"$f":"IFERROR(VLOOKUP(Table4[[#This Row],[رقم امر الشغل]],table5,9,0),\"\")","v":""},{"$f":"IFERROR(VLOOKUP(Table4[[#This Row],[رقم امر الشغل]],table5,10,0),\"\")","v":""},""]
[null,null,null,null,null,null,null,null,null,null,null,null,null,null,null,null,null,null,null,null,null,null,null,null,null,null,null,null,null,null,null,null,null,null,null,null,null,null,null,null,null,null,null,null,null,null,null,null,null,null,null,null,null,null,null,null,null,null,null,null,null,null,null,null,null,null,null,null,null,null,null,null,null,null,{"$f":"IFERROR(VLOOKUP(Table4[[#This Row],[رقم امر الشغل]],table5,9,0),\"\")","v":""},{"$f":"IFERROR(VLOOKUP(Table4[[#This Row],[رقم امر الشغل]],table5,10,0),\"\")","v":""},""]
[null,null,null,null,null,null,null,null,null,null,null,null,null,null,null,null,null,null,null,null,null,null,null,null,null,null,null,null,null,null,null,null,null,null,null,null,null,null,null,null,null,null,null,null,null,null,null,null,null,null,null,null,null,null,null,null,null,null,null,null,null,null,null,null,null,null,null,null,null,null,null,null,null,null,{"$f":"IFERROR(VLOOKUP(Table4[[#This Row],[رقم امر الشغل]],table5,9,0),\"\")","v":""},{"$f":"IFERROR(VLOOKUP(Table4[[#This Row],[رقم امر الشغل]],table5,10,0),\"\")","v":""},""]
[null,null,null,null,null,null,null,null,null,null,null,null,null,null,null,null,null,null,null,null,null,null,null,null,null,null,null,null,null,null,null,null,null,null,null,null,null,null,null,null,null,null,null,null,null,null,null,null,null,null,null,null,null,null,null,null,null,null,null,null,null,null,null,null,null,null,null,null,null,null,null,null,null,null,{"$f":"IFERROR(VLOOKUP(Table4[[#This Row],[رقم امر الشغل]],table5,9,0),\"\")","v":""},{"$f":"IFERROR(VLOOKUP(Table4[[#This Row],[رقم امر الشغل]],table5,10,0),\"\")","v":""},""]
[null,null,null,null,null,null,null,null,null,null,null,null,null,null,null,null,null,null,null,null,null,null,null,null,null,null,null,null,null,null,null,null,null,null,null,null,null,null,null,null,null,null,null,null,null,null,null,null,null,null,null,null,null,null,null,null,null,null,null,null,null,null,null,null,null,null,null,null,null,null,null,null,null,null,{"$f":"IFERROR(VLOOKUP(Table4[[#This Row],[رقم امر الشغل]],table5,9,0),\"\")","v":""},{"$f":"IFERROR(VLOOKUP(Table4[[#This Row],[رقم امر الشغل]],table5,10,0),\"\")","v":""},""]
[null,null,null,null,null,null,null,null,null,null,null,null,null,null,null,null,null,null,null,null,null,null,null,null,null,null,null,null,null,null,null,null,null,null,null,null,null,null,null,null,null,null,null,null,null,null,null,null,null,null,null,null,null,null,null,null,null,null,null,null,null,null,null,null,null,null,null,null,null,null,null,null,null,null,{"$f":"IFERROR(VLOOKUP(Table4[[#This Row],[رقم امر الشغل]],table5,9,0),\"\")","v":""},{"$f":"IFERROR(VLOOKUP(Table4[[#This Row],[رقم امر الشغل]],table5,10,0),\"\")","v":""},""]
[null,null,null,null,null,null,null,null,null,null,null,null,null,null,null,null,null,null,null,null,null,null,null,null,null,null,null,null,null,null,null,null,null,null,null,null,null,null,null,null,null,null,null,null,null,null,null,null,null,null,null,null,null,null,null,null,null,null,null,null,null,null,null,null,null,null,null,null,null,null,null,null,null,null,{"$f":"IFERROR(VLOOKUP(Table4[[#This Row],[رقم امر الشغل]],table5,9,0),\"\")","v":""},{"$f":"IFERROR(VLOOKUP(Table4[[#This Row],[رقم امر الشغل]],table5,10,0),\"\")","v":""},""]
[null,null,null,null,null,null,null,null,null,null,null,null,null,null,null,null,null,null,null,null,null,null,null,null,null,null,null,null,null,null,null,null,null,null,null,null,null,null,null,null,null,null,null,null,null,null,null,null,null,null,null,null,null,null,null,null,null,null,null,null,null,null,null,null,null,null,null,null,null,null,null,null,null,null,{"$f":"IFERROR(VLOOKUP(Table4[[#This Row],[رقم امر الشغل]],table5,9,0),\"\")","v":""},{"$f":"IFERROR(VLOOKUP(Table4[[#This Row],[رقم امر الشغل]],table5,10,0),\"\")","v":""},""]
[null,null,null,null,null,null,null,null,null,null,null,null,null,null,null,null,null,null,null,null,null,null,null,null,null,null,null,null,null,null,null,null,null,null,null,null,null,null,null,null,null,null,null,null,null,null,null,null,null,null,null,null,null,null,null,null,null,null,null,null,null,null,null,null,null,null,null,null,null,null,null,null,null,null,{"$f":"IFERROR(VLOOKUP(Table4[[#This Row],[رقم امر الشغل]],table5,9,0),\"\")","v":""},{"$f":"IFERROR(VLOOKUP(Table4[[#This Row],[رقم امر الشغل]],table5,10,0),\"\")","v":""},""]
[null,null,null,null,null,null,null,null,null,null,null,null,null,null,null,null,null,null,null,null,null,null,null,null,null,null,null,null,null,null,null,null,null,null,null,null,null,null,null,null,null,null,null,null,null,null,null,null,null,null,null,null,null,null,null,null,null,null,null,null,null,null,null,null,null,null,null,null,null,null,null,null,null,null,{"$f":"IFERROR(VLOOKUP(Table4[[#This Row],[رقم امر الشغل]],table5,9,0),\"\")","v":""},{"$f":"IFERROR(VLOOKUP(Table4[[#This Row],[رقم امر الشغل]],table5,10,0),\"\")","v":""},""]
[null,null,null,null,null,null,null,null,null,null,null,null,null,null,null,null,null,null,null,null,null,null,null,null,null,null,null,null,null,null,null,null,null,null,null,null,null,null,null,null,null,null,null,null,null,null,null,null,null,null,null,null,null,null,null,null,null,null,null,null,null,null,null,null,null,null,null,null,null,null,null,null,null,null,{"$f":"IFERROR(VLOOKUP(Table4[[#This Row],[رقم امر الشغل]],table5,9,0),\"\")","v":""},{"$f":"IFERROR(VLOOKUP(Table4[[#This Row],[رقم امر الشغل]],table5,10,0),\"\")","v":""},""]
[null,null,null,null,null,null,null,null,null,null,null,null,null,null,null,null,null,null,null,null,null,null,null,null,null,null,null,null,null,null,null,null,null,null,null,null,null,null,null,null,null,null,null,null,null,null,null,null,null,null,null,null,null,null,null,null,null,null,null,null,null,null,null,null,null,null,null,null,null,null,null,null,null,null,{"$f":"IFERROR(VLOOKUP(Table4[[#This Row],[رقم امر الشغل]],table5,9,0),\"\")","v":""},{"$f":"IFERROR(VLOOKUP(Table4[[#This Row],[رقم امر الشغل]],table5,10,0),\"\")","v":""},""]
[null,null,null,null,null,null,null,null,null,null,null,null,null,null,null,null,null,null,null,null,null,null,null,null,null,null,null,null,null,null,null,null,null,null,null,null,null,null,null,null,null,null,null,null,null,null,null,null,null,null,null,null,null,null,null,null,null,null,null,null,null,null,null,null,null,null,null,null,null,null,null,null,null,null,{"$f":"IFERROR(VLOOKUP(Table4[[#This Row],[رقم امر الشغل]],table5,9,0),\"\")","v":""},{"$f":"IFERROR(VLOOKUP(Table4[[#This Row],[رقم امر الشغل]],table5,10,0),\"\")","v":""},""]
[null,null,null,null,null,null,null,null,null,null,null,null,null,null,null,null,null,null,null,null,null,null,null,null,null,null,null,null,null,null,null,null,null,null,null,null,null,null,null,null,null,null,null,null,null,null,null,null,null,null,null,null,null,null,null,null,null,null,null,null,null,null,null,null,null,null,null,null,null,null,null,null,null,null,{"$f":"IFERROR(VLOOKUP(Table4[[#This Row],[رقم امر الشغل]],table5,9,0),\"\")","v":""},{"$f":"IFERROR(VLOOKUP(Table4[[#This Row],[رقم امر الشغل]],table5,10,0),\"\")","v":""},""]
[null,null,null,null,null,null,null,null,null,null,null,null,null,null,null,null,null,null,null,null,null,null,null,null,null,null,null,null,null,null,null,null,null,null,null,null,null,null,null,null,null,null,null,null,null,null,null,null,null,null,null,null,null,null,null,null,null,null,null,null,null,null,null,null,null,null,null,null,null,null,null,null,null,null,{"$f":"IFERROR(VLOOKUP(Table4[[#This Row],[رقم امر الشغل]],table5,9,0),\"\")","v":""},{"$f":"IFERROR(VLOOKUP(Table4[[#This Row],[رقم امر الشغل]],table5,10,0),\"\")","v":""},""]
[null,null,null,null,null,null,null,null,null,null,null,null,null,null,null,null,null,null,null,null,null,null,null,null,null,null,null,null,null,null,null,null,null,null,null,null,null,null,null,null,null,null,null,null,null,null,null,null,null,null,null,null,null,null,null,null,null,null,null,null,null,null,null,null,null,null,null,null,null,null,null,null,null,null,{"$f":"IFERROR(VLOOKUP(Table4[[#This Row],[رقم امر الشغل]],table5,9,0),\"\")","v":""},{"$f":"IFERROR(VLOOKUP(Table4[[#This Row],[رقم امر الشغل]],table5,10,0),\"\")","v":""},""]
[null,null,null,null,null,null,null,null,null,null,null,null,null,null,null,null,null,null,null,null,null,null,null,null,null,null,null,null,null,null,null,null,null,null,null,null,null,null,null,null,null,null,null,null,null,null,null,null,null,null,null,null,null,null,null,null,null,null,null,null,null,null,null,null,null,null,null,null,null,null,null,null,null,null,{"$f":"IFERROR(VLOOKUP(Table4[[#This Row],[رقم امر الشغل]],table5,9,0),\"\")","v":""},{"$f":"IFERROR(VLOOKUP(Table4[[#This Row],[رقم امر الشغل]],table5,10,0),\"\")","v":""},""]
[null,null,null,null,null,null,null,null,null,null,null,null,null,null,null,null,null,null,null,null,null,null,null,null,null,null,null,null,null,null,null,null,null,null,null,null,null,null,null,null,null,null,null,null,null,null,null,null,null,null,null,null,null,null,null,null,null,null,null,null,null,null,null,null,null,null,null,null,null,null,null,null,null,null,{"$f":"IFERROR(VLOOKUP(Table4[[#This Row],[رقم امر الشغل]],table5,9,0),\"\")","v":""},{"$f":"IFERROR(VLOOKUP(Table4[[#This Row],[رقم امر الشغل]],table5,10,0),\"\")","v":""},""]
[null,null,null,null,null,null,null,null,null,null,null,null,null,null,null,null,null,null,null,null,null,null,null,null,null,null,null,null,null,null,null,null,null,null,null,null,null,null,null,null,null,null,null,null,null,null,null,null,null,null,null,null,null,null,null,null,null,null,null,null,null,null,null,null,null,null,null,null,null,null,null,null,null,null,{"$f":"IFERROR(VLOOKUP(Table4[[#This Row],[رقم امر الشغل]],table5,9,0),\"\")","v":""},{"$f":"IFERROR(VLOOKUP(Table4[[#This Row],[رقم امر الشغل]],table5,10,0),\"\")","v":""},""]
[null,null,null,null,null,null,null,null,null,null,null,null,null,null,null,null,null,null,null,null,null,null,null,null,null,null,null,null,null,null,null,null,null,null,null,null,null,null,null,null,null,null,null,null,null,null,null,null,null,null,null,null,null,null,null,null,null,null,null,null,null,null,null,null,null,null,null,null,null,null,null,null,null,null,{"$f":"IFERROR(VLOOKUP(Table4[[#This Row],[رقم امر الشغل]],table5,9,0),\"\")","v":""},{"$f":"IFERROR(VLOOKUP(Table4[[#This Row],[رقم امر الشغل]],table5,10,0),\"\")","v":""},""]
[null,null,null,null,null,null,null,null,null,null,null,null,null,null,null,null,null,null,null,null,null,null,null,null,null,null,null,null,null,null,null,null,null,null,null,null,null,null,null,null,null,null,null,null,null,null,null,null,null,null,null,null,null,null,null,null,null,null,null,null,null,null,null,null,null,null,null,null,null,null,null,null,null,null,{"$f":"IFERROR(VLOOKUP(Table4[[#This Row],[رقم امر الشغل]],table5,9,0),\"\")","v":""},{"$f":"IFERROR(VLOOKUP(Table4[[#This Row],[رقم امر الشغل]],table5,10,0),\"\")","v":""},""]
[null,null,null,null,null,null,null,null,null,null,null,null,null,null,null,null,null,null,null,null,null,null,null,null,null,null,null,null,null,null,null,null,null,null,null,null,null,null,null,null,null,null,null,null,null,null,null,null,null,null,null,null,null,null,null,null,null,null,null,null,null,null,null,null,null,null,null,null,null,null,null,null,null,null,{"$f":"IFERROR(VLOOKUP(Table4[[#This Row],[رقم امر الشغل]],table5,9,0),\"\")","v":""},{"$f":"IFERROR(VLOOKUP(Table4[[#This Row],[رقم امر الشغل]],table5,10,0),\"\")","v":""},""]
[null,null,null,null,null,null,null,null,null,null,null,null,null,null,null,null,null,null,null,null,null,null,null,null,null,null,null,null,null,null,null,null,null,null,null,null,null,null,null,null,null,null,null,null,null,null,null,null,null,null,null,null,null,null,null,null,null,null,null,null,null,null,null,null,null,null,null,null,null,null,null,null,null,null,{"$f":"IFERROR(VLOOKUP(Table4[[#This Row],[رقم امر الشغل]],table5,9,0),\"\")","v":""},{"$f":"IFERROR(VLOOKUP(Table4[[#This Row],[رقم امر الشغل]],table5,10,0),\"\")","v":""},""]
[null,null,null,null,null,null,null,null,null,null,null,null,null,null,null,null,null,null,null,null,null,null,null,null,null,null,null,null,null,null,null,null,null,null,null,null,null,null,null,null,null,null,null,null,null,null,null,null,null,null,null,null,null,null,null,null,null,null,null,null,null,null,null,null,null,null,null,null,null,null,null,null,null,null,{"$f":"IFERROR(VLOOKUP(Table4[[#This Row],[رقم امر الشغل]],table5,9,0),\"\")","v":""},{"$f":"IFERROR(VLOOKUP(Table4[[#This Row],[رقم امر الشغل]],table5,10,0),\"\")","v":""},""]
[null,null,null,null,null,null,null,null,null,null,null,null,null,null,null,null,null,null,null,null,null,null,null,null,null,null,null,null,null,null,null,null,null,null,null,null,null,null,null,null,null,null,null,null,null,null,null,null,null,null,null,null,null,null,null,null,null,null,null,null,null,null,null,null,null,null,null,null,null,null,null,null,null,null,{"$f":"IFERROR(VLOOKUP(Table4[[#This Row],[رقم امر الشغل]],table5,9,0),\"\")","v":""},{"$f":"IFERROR(VLOOKUP(Table4[[#This Row],[رقم امر الشغل]],table5,10,0),\"\")","v":""},""]
[null,null,null,null,null,null,null,null,null,null,null,null,null,null,null,null,null,null,null,null,null,null,null,null,null,null,null,null,null,null,null,null,null,null,null,null,null,null,null,null,null,null,null,null,null,null,null,null,null,null,null,null,null,null,null,null,null,null,null,null,null,null,null,null,null,null,null,null,null,null,null,null,null,null,{"$f":"IFERROR(VLOOKUP(Table4[[#This Row],[رقم امر الشغل]],table5,9,0),\"\")","v":""},{"$f":"IFERROR(VLOOKUP(Table4[[#This Row],[رقم امر الشغل]],table5,10,0),\"\")","v":""},""]
[null,null,null,null,null,null,null,null,null,null,null,null,null,null,null,null,null,null,null,null,null,null,null,null,null,null,null,null,null,null,null,null,null,null,null,null,null,null,null,null,null,null,null,null,null,null,null,null,null,null,null,null,null,null,null,null,null,null,null,null,null,null,null,null,null,null,null,null,null,null,null,null,null,null,{"$f":"IFERROR(VLOOKUP(Table4[[#This Row],[رقم امر الشغل]],table5,9,0),\"\")","v":""},{"$f":"IFERROR(VLOOKUP(Table4[[#This Row],[رقم امر الشغل]],table5,10,0),\"\")","v":""},""]
[null,null,null,null,null,null,null,null,null,null,null,null,null,null,null,null,null,null,null,null,null,null,null,null,null,null,null,null,null,null,null,null,null,null,null,null,null,null,null,null,null,null,null,null,null,null,null,null,null,null,null,null,null,null,null,null,null,null,null,null,null,null,null,null,null,null,null,null,null,null,null,null,null,null,{"$f":"IFERROR(VLOOKUP(Table4[[#This Row],[رقم امر الشغل]],table5,9,0),\"\")","v":""},{"$f":"IFERROR(VLOOKUP(Table4[[#This Row],[رقم امر الشغل]],table5,10,0),\"\")","v":""},""]
[null,null,null,null,null,null,null,null,null,null,null,null,null,null,null,null,null,null,null,null,null,null,null,null,null,null,null,null,null,null,null,null,null,null,null,null,null,null,null,null,null,null,null,null,null,null,null,null,null,null,null,null,null,null,null,null,null,null,null,null,null,null,null,null,null,null,null,null,null,null,null,null,null,null,{"$f":"IFERROR(VLOOKUP(Table4[[#This Row],[رقم امر الشغل]],table5,9,0),\"\")","v":""},{"$f":"IFERROR(VLOOKUP(Table4[[#This Row],[رقم امر الشغل]],table5,10,0),\"\")","v":""},""]
[null,null,null,null,null,null,null,null,null,null,null,null,null,null,null,null,null,null,null,null,null,null,null,null,null,null,null,null,null,null,null,null,null,null,null,null,null,null,null,null,null,null,null,null,null,null,null,null,null,null,null,null,null,null,null,null,null,null,null,null,null,null,null,null,null,null,null,null,null,null,null,null,null,null,{"$f":"IFERROR(VLOOKUP(Table4[[#This Row],[رقم امر الشغل]],table5,9,0),\"\")","v":""},{"$f":"IFERROR(VLOOKUP(Table4[[#This Row],[رقم امر الشغل]],table5,10,0),\"\")","v":""},""]
[null,null,null,null,null,null,null,null,null,null,null,null,null,null,null,null,null,null,null,null,null,null,null,null,null,null,null,null,null,null,null,null,null,null,null,null,null,null,null,null,null,null,null,null,null,null,null,null,null,null,null,null,null,null,null,null,null,null,null,null,null,null,null,null,null,null,null,null,null,null,null,null,null,null,{"$f":"IFERROR(VLOOKUP(Table4[[#This Row],[رقم امر الشغل]],table5,9,0),\"\")","v":""},{"$f":"IFERROR(VLOOKUP(Table4[[#This Row],[رقم امر الشغل]],table5,10,0),\"\")","v":""},""]
[null,null,null,null,null,null,null,null,null,null,null,null,null,null,null,null,null,null,null,null,null,null,null,null,null,null,null,null,null,null,null,null,null,null,null,null,null,null,null,null,null,null,null,null,null,null,null,null,null,null,null,null,null,null,null,null,null,null,null,null,null,null,null,null,null,null,null,null,null,null,null,null,null,null,{"$f":"IFERROR(VLOOKUP(Table4[[#This Row],[رقم امر الشغل]],table5,9,0),\"\")","v":""},{"$f":"IFERROR(VLOOKUP(Table4[[#This Row],[رقم امر الشغل]],table5,10,0),\"\")","v":""},""]
[null,null,null,null,null,null,null,null,null,null,null,null,null,null,null,null,null,null,null,null,null,null,null,null,null,null,null,null,null,null,null,null,null,null,null,null,null,null,null,null,null,null,null,null,null,null,null,null,null,null,null,null,null,null,null,null,null,null,null,null,null,null,null,null,null,null,null,null,null,null,null,null,null,null,{"$f":"IFERROR(VLOOKUP(Table4[[#This Row],[رقم امر الشغل]],table5,9,0),\"\")","v":""},{"$f":"IFERROR(VLOOKUP(Table4[[#This Row],[رقم امر الشغل]],table5,10,0),\"\")","v":""},""]
[null,null,null,null,null,null,null,null,null,null,null,null,null,null,null,null,null,null,null,null,null,null,null,null,null,null,null,null,null,null,null,null,null,null,null,null,null,null,null,null,null,null,null,null,null,null,null,null,null,null,null,null,null,null,null,null,null,null,null,null,null,null,null,null,null,null,null,null,null,null,null,null,null,null,{"$f":"IFERROR(VLOOKUP(Table4[[#This Row],[رقم امر الشغل]],table5,9,0),\"\")","v":""},{"$f":"IFERROR(VLOOKUP(Table4[[#This Row],[رقم امر الشغل]],table5,10,0),\"\")","v":""},""]
[null,null,null,null,null,null,null,null,null,null,null,null,null,null,null,null,null,null,null,null,null,null,null,null,null,null,null,null,null,null,null,null,null,null,null,null,null,null,null,null,null,null,null,null,null,null,null,null,null,null,null,null,null,null,null,null,null,null,null,null,null,null,null,null,null,null,null,null,null,null,null,null,null,null,{"$f":"IFERROR(VLOOKUP(Table4[[#This Row],[رقم امر الشغل]],table5,9,0),\"\")","v":""},{"$f":"IFERROR(VLOOKUP(Table4[[#This Row],[رقم امر الشغل]],table5,10,0),\"\")","v":""},""]
[null,null,null,null,null,null,null,null,null,null,null,null,null,null,null,null,null,null,null,null,null,null,null,null,null,null,null,null,null,null,null,null,null,null,null,null,null,null,null,null,null,null,null,null,null,null,null,null,null,null,null,null,null,null,null,null,null,null,null,null,null,null,null,null,null,null,null,null,null,null,null,null,null,null,{"$f":"IFERROR(VLOOKUP(Table4[[#This Row],[رقم امر الشغل]],table5,9,0),\"\")","v":""},{"$f":"IFERROR(VLOOKUP(Table4[[#This Row],[رقم امر الشغل]],table5,10,0),\"\")","v":""},""]
[null,null,null,null,null,null,null,null,null,null,null,null,null,null,null,null,null,null,null,null,null,null,null,null,null,null,null,null,null,null,null,null,null,null,null,null,null,null,null,null,null,null,null,null,null,null,null,null,null,null,null,null,null,null,null,null,null,null,null,null,null,null,null,null,null,null,null,null,null,null,null,null,null,null,{"$f":"IFERROR(VLOOKUP(Table4[[#This Row],[رقم امر الشغل]],table5,9,0),\"\")","v":""},{"$f":"IFERROR(VLOOKUP(Table4[[#This Row],[رقم امر الشغل]],table5,10,0),\"\")","v":""},""]
[null,null,null,null,null,null,null,null,null,null,null,null,null,null,null,null,null,null,null,null,null,null,null,null,null,null,null,null,null,null,null,null,null,null,null,null,null,null,null,null,null,null,null,null,null,null,null,null,null,null,null,null,null,null,null,null,null,null,null,null,null,null,null,null,null,null,null,null,null,null,null,null,null,null,{"$f":"IFERROR(VLOOKUP(Table4[[#This Row],[رقم امر الشغل]],table5,9,0),\"\")","v":""},{"$f":"IFERROR(VLOOKUP(Table4[[#This Row],[رقم امر الشغل]],table5,10,0),\"\")","v":""},""]
[null,null,null,null,null,null,null,null,null,null,null,null,null,null,null,null,null,null,null,null,null,null,null,null,null,null,null,null,null,null,null,null,null,null,null,null,null,null,null,null,null,null,null,null,null,null,null,null,null,null,null,null,null,null,null,null,null,null,null,null,null,null,null,null,null,null,null,null,null,null,null,null,null,null,{"$f":"IFERROR(VLOOKUP(Table4[[#This Row],[رقم امر الشغل]],table5,9,0),\"\")","v":""},{"$f":"IFERROR(VLOOKUP(Table4[[#This Row],[رقم امر الشغل]],table5,10,0),\"\")","v":""},""]
[null,null,null,null,null,null,null,null,null,null,null,null,null,null,null,null,null,null,null,null,null,null,null,null,null,null,null,null,null,null,null,null,null,null,null,null,null,null,null,null,null,null,null,null,null,null,null,null,null,null,null,null,null,null,null,null,null,null,null,null,null,null,null,null,null,null,null,null,null,null,null,null,null,null,{"$f":"IFERROR(VLOOKUP(Table4[[#This Row],[رقم امر الشغل]],table5,9,0),\"\")","v":""},{"$f":"IFERROR(VLOOKUP(Table4[[#This Row],[رقم امر الشغل]],table5,10,0),\"\")","v":""},""]
[null,null,null,null,null,null,null,null,null,null,null,null,null,null,null,null,null,null,null,null,null,null,null,null,null,null,null,null,null,null,null,null,null,null,null,null,null,null,null,null,null,null,null,null,null,null,null,null,null,null,null,null,null,null,null,null,null,null,null,null,null,null,null,null,null,null,null,null,null,null,null,null,null,null,{"$f":"IFERROR(VLOOKUP(Table4[[#This Row],[رقم امر الشغل]],table5,9,0),\"\")","v":""},{"$f":"IFERROR(VLOOKUP(Table4[[#This Row],[رقم امر الشغل]],table5,10,0),\"\")","v":""},""]
[null,null,null,null,null,null,null,null,null,null,null,null,null,null,null,null,null,null,null,null,null,null,null,null,null,null,null,null,null,null,null,null,null,null,null,null,null,null,null,null,null,null,null,null,null,null,null,null,null,null,null,null,null,null,null,null,null,null,null,null,null,null,null,null,null,null,null,null,null,null,null,null,null,null,{"$f":"IFERROR(VLOOKUP(Table4[[#This Row],[رقم امر الشغل]],table5,9,0),\"\")","v":""},{"$f":"IFERROR(VLOOKUP(Table4[[#This Row],[رقم امر الشغل]],table5,10,0),\"\")","v":""},""]
[null,null,null,null,null,null,null,null,null,null,null,null,null,null,null,null,null,null,null,null,null,null,null,null,null,null,null,null,null,null,null,null,null,null,null,null,null,null,null,null,null,null,null,null,null,null,null,null,null,null,null,null,null,null,null,null,null,null,null,null,null,null,null,null,null,null,null,null,null,null,null,null,null,null,{"$f":"IFERROR(VLOOKUP(Table4[[#This Row],[رقم امر الشغل]],table5,9,0),\"\")","v":""},{"$f":"IFERROR(VLOOKUP(Table4[[#This Row],[رقم امر الشغل]],table5,10,0),\"\")","v":""},""]
[null,null,null,null,null,null,null,null,null,null,null,null,null,null,null,null,null,null,null,null,null,null,null,null,null,null,null,null,null,null,null,null,null,null,null,null,null,null,null,null,null,null,null,null,null,null,null,null,null,null,null,null,null,null,null,null,null,null,null,null,null,null,null,null,null,null,null,null,null,null,null,null,null,null,{"$f":"IFERROR(VLOOKUP(Table4[[#This Row],[رقم امر الشغل]],table5,9,0),\"\")","v":""},{"$f":"IFERROR(VLOOKUP(Table4[[#This Row],[رقم امر الشغل]],table5,10,0),\"\")","v":""},""]
[null,null,null,null,null,null,null,null,null,null,null,null,null,null,null,null,null,null,null,null,null,null,null,null,null,null,null,null,null,null,null,null,null,null,null,null,null,null,null,null,null,null,null,null,null,null,null,null,null,null,null,null,null,null,null,null,null,null,null,null,null,null,null,null,null,null,null,null,null,null,null,null,null,null,{"$f":"IFERROR(VLOOKUP(Table4[[#This Row],[رقم امر الشغل]],table5,9,0),\"\")","v":""},{"$f":"IFERROR(VLOOKUP(Table4[[#This Row],[رقم امر الشغل]],table5,10,0),\"\")","v":""},""]
[null,null,null,null,null,null,null,null,null,null,null,null,null,null,null,null,null,null,null,null,null,null,null,null,null,null,null,null,null,null,null,null,null,null,null,null,null,null,null,null,null,null,null,null,null,null,null,null,null,null,null,null,null,null,null,null,null,null,null,null,null,null,null,null,null,null,null,null,null,null,null,null,null,null,{"$f":"IFERROR(VLOOKUP(Table4[[#This Row],[رقم امر الشغل]],table5,9,0),\"\")","v":""},{"$f":"IFERROR(VLOOKUP(Table4[[#This Row],[رقم امر الشغل]],table5,10,0),\"\")","v":""},{"$f":"IFERROR((BW90-BX90),\"\")","v":""}]
[null,null,null,null,null,null,null,null,null,null,null,null,null,null,null,null,null,null,null,null,null,null,null,null,null,null,null,null,null,null,null,null,null,null,null,null,null,null,null,null,null,null,null,null,null,null,null,null,null,null,null,null,null,null,null,null,null,null,null,null,null,null,null,null,null,null,null,null,null,null,null,null,null,null,{"$f":"IFERROR(VLOOKUP(Table4[[#This Row],[رقم امر الشغل]],table5,9,0),\"\")","v":""},{"$f":"IFERROR(VLOOKUP(Table4[[#This Row],[رقم امر الشغل]],table5,10,0),\"\")","v":""},""]
[null,null,null,null,null,null,null,null,null,null,null,null,null,null,null,null,null,null,null,null,null,null,null,null,null,null,null,null,null,null,null,null,null,null,null,null,null,null,null,null,null,null,null,null,null,null,null,null,null,null,null,null,null,null,null,null,null,null,null,null,null,null,null,null,null,null,null,null,null,null,null,null,null,null,{"$f":"IFERROR(VLOOKUP(Table4[[#This Row],[رقم امر الشغل]],table5,9,0),\"\")","v":""},{"$f":"IFERROR(VLOOKUP(Table4[[#This Row],[رقم امر الشغل]],table5,10,0),\"\")","v":""},""]
[null,null,null,null,null,null,null,null,null,null,null,null,null,null,null,null,null,null,null,null,null,null,null,null,null,null,null,null,null,null,null,null,null,null,null,null,null,null,null,null,null,null,null,null,null,null,null,null,null,null,null,null,null,null,null,null,null,null,null,null,null,null,null,null,null,null,null,null,null,null,null,null,null,null,{"$f":"IFERROR(VLOOKUP(Table4[[#This Row],[رقم امر الشغل]],table5,9,0),\"\")","v":""},{"$f":"IFERROR(VLOOKUP(Table4[[#This Row],[رقم امر الشغل]],table5,10,0),\"\")","v":""},""]
[null,null,null,null,null,null,null,null,null,null,null,null,null,null,null,null,null,null,null,null,null,null,null,null,null,null,null,null,null,null,null,null,null,null,null,null,null,null,null,null,null,null,null,null,null,null,null,null,null,null,null,null,null,null,null,null,null,null,null,null,null,null,null,null,null,null,null,null,null,null,null,null,null,null,{"$f":"IFERROR(VLOOKUP(Table4[[#This Row],[رقم امر الشغل]],table5,9,0),\"\")","v":""},{"$f":"IFERROR(VLOOKUP(Table4[[#This Row],[رقم امر الشغل]],table5,10,0),\"\")","v":""},""]
[null,null,null,null,null,null,null,null,null,null,null,null,null,null,null,null,null,null,null,null,null,null,null,null,null,null,null,null,null,null,null,null,null,null,null,null,null,null,null,null,null,null,null,null,null,null,null,null,null,null,null,null,null,null,null,null,null,null,null,null,null,null,null,null,null,null,null,null,null,null,null,null,null,null,{"$f":"IFERROR(VLOOKUP(Table4[[#This Row],[رقم امر الشغل]],table5,9,0),\"\")","v":""},{"$f":"IFERROR(VLOOKUP(Table4[[#This Row],[رقم امر الشغل]],table5,10,0),\"\")","v":""},""]
[null,null,null,null,null,null,null,null,null,null,null,null,null,null,null,null,null,null,null,null,null,null,null,null,null,null,null,null,null,null,null,null,null,null,null,null,null,null,null,null,null,null,null,null,null,null,null,null,null,null,null,null,null,null,null,null,null,null,null,null,null,null,null,null,null,null,null,null,null,null,null,null,null,null,{"$f":"IFERROR(VLOOKUP(Table4[[#This Row],[رقم امر الشغل]],table5,9,0),\"\")","v":""},{"$f":"IFERROR(VLOOKUP(Table4[[#This Row],[رقم امر الشغل]],table5,10,0),\"\")","v":""},""]
[null,null,null,null,null,null,null,null,null,null,null,null,null,null,null,null,null,null,null,null,null,null,null,null,null,null,null,null,null,null,null,null,null,null,null,null,null,null,null,null,null,null,null,null,null,null,null,null,null,null,null,null,null,null,null,null,null,null,null,null,null,null,null,null,null,null,null,null,null,null,null,null,null,null,{"$f":"IFERROR(VLOOKUP(Table4[[#This Row],[رقم امر الشغل]],table5,9,0),\"\")","v":""},{"$f":"IFERROR(VLOOKUP(Table4[[#This Row],[رقم امر الشغل]],table5,10,0),\"\")","v":""},""]
[null,null,null,null,null,null,null,null,null,null,null,null,null,null,null,null,null,null,null,null,null,null,null,null,null,null,null,null,null,null,null,null,null,null,null,null,null,null,null,null,null,null,null,null,null,null,null,null,null,null,null,null,null,null,null,null,null,null,null,null,null,null,null,null,null,null,null,null,null,null,null,null,null,null,{"$f":"IFERROR(VLOOKUP(Table4[[#This Row],[رقم امر الشغل]],table5,9,0),\"\")","v":""},{"$f":"IFERROR(VLOOKUP(Table4[[#This Row],[رقم امر الشغل]],table5,10,0),\"\")","v":""},""]
[null,null,null,null,null,null,null,null,null,null,null,null,null,null,null,null,null,null,null,null,null,null,null,null,null,null,null,null,null,null,null,null,null,null,null,null,null,null,null,null,null,null,null,null,null,null,null,null,null,null,null,null,null,null,null,null,null,null,null,null,null,null,null,null,null,null,null,null,null,null,null,null,null,null,{"$f":"IFERROR(VLOOKUP(Table4[[#This Row],[رقم امر الشغل]],table5,9,0),\"\")","v":""},{"$f":"IFERROR(VLOOKUP(Table4[[#This Row],[رقم امر الشغل]],table5,10,0),\"\")","v":""},""]
[null,null,null,null,null,null,null,null,null,null,null,null,null,null,null,null,null,null,null,null,null,null,null,null,null,null,null,null,null,null,null,null,null,null,null,null,null,null,null,null,null,null,null,null,null,null,null,null,null,null,null,null,null,null,null,null,null,null,null,null,null,null,null,null,null,null,null,null,null,null,null,null,null,null,{"$f":"IFERROR(VLOOKUP(Table4[[#This Row],[رقم امر الشغل]],table5,9,0),\"\")","v":""},{"$f":"IFERROR(VLOOKUP(Table4[[#This Row],[رقم امر الشغل]],table5,10,0),\"\")","v":""},""]
[null,null,null,null,null,null,null,null,null,null,null,null,null,null,null,null,null,null,null,null,null,null,null,null,null,null,null,null,null,null,null,null,null,null,null,null,null,null,null,null,null,null,null,null,null,null,null,null,null,null,null,null,null,null,null,null,null,null,null,null,null,null,null,null,null,null,null,null,null,null,null,null,null,null,{"$f":"IFERROR(VLOOKUP(Table4[[#This Row],[رقم امر الشغل]],table5,9,0),\"\")","v":""},{"$f":"IFERROR(VLOOKUP(Table4[[#This Row],[رقم امر الشغل]],table5,10,0),\"\")","v":""},""]
[null,null,null,null,null,null,null,null,null,null,null,null,null,null,null,null,null,null,null,null,null,null,null,null,null,null,null,null,null,null,null,null,null,null,null,null,null,null,null,null,null,null,null,null,null,null,null,null,null,null,null,null,null,null,null,null,null,null,null,null,null,null,null,null,null,null,null,null,null,null,null,null,null,null,{"$f":"IFERROR(VLOOKUP(Table4[[#This Row],[رقم امر الشغل]],table5,9,0),\"\")","v":""},{"$f":"IFERROR(VLOOKUP(Table4[[#This Row],[رقم امر الشغل]],table5,10,0),\"\")","v":""},""]
[null,null,null,null,null,null,null,null,null,null,null,null,null,null,null,null,null,null,null,null,null,null,null,null,null,null,null,null,null,null,null,null,null,null,null,null,null,null,null,null,null,null,null,null,null,null,null,null,null,null,null,null,null,null,null,null,null,null,null,null,null,null,null,null,null,null,null,null,null,null,null,null,null,null,{"$f":"IFERROR(VLOOKUP(Table4[[#This Row],[رقم امر الشغل]],table5,9,0),\"\")","v":""},{"$f":"IFERROR(VLOOKUP(Table4[[#This Row],[رقم امر الشغل]],table5,10,0),\"\")","v":""},""]
[null,null,null,null,null,null,null,null,null,null,null,null,null,null,null,null,null,null,null,null,null,null,null,null,null,null,null,null,null,null,null,null,null,null,null,null,null,null,null,null,null,null,null,null,null,null,null,null,null,null,null,null,null,null,null,null,null,null,null,null,null,null,null,null,null,null,null,null,null,null,null,null,null,null,{"$f":"IFERROR(VLOOKUP(Table4[[#This Row],[رقم امر الشغل]],table5,9,0),\"\")","v":""},{"$f":"IFERROR(VLOOKUP(Table4[[#This Row],[رقم امر الشغل]],table5,10,0),\"\")","v":""},""]
[null,null,null,null,null,null,null,null,null,null,null,null,null,null,null,null,null,null,null,null,null,null,null,null,null,null,null,null,null,null,null,null,null,null,null,null,null,null,null,null,null,null,null,null,null,null,null,null,null,null,null,null,null,null,null,null,null,null,null,null,null,null,null,null,null,null,null,null,null,null,null,null,null,null,{"$f":"IFERROR(VLOOKUP(Table4[[#This Row],[رقم امر الشغل]],table5,9,0),\"\")","v":""},{"$f":"IFERROR(VLOOKUP(Table4[[#This Row],[رقم امر الشغل]],table5,10,0),\"\")","v":""},""]
[null,null,null,null,null,null,null,null,null,null,null,null,null,null,null,null,null,null,null,null,null,null,null,null,null,null,null,null,null,null,null,null,null,null,null,null,null,null,null,null,null,null,null,null,null,null,null,null,null,null,null,null,null,null,null,null,null,null,null,null,null,null,null,null,null,null,null,null,null,null,null,null,null,null,{"$f":"IFERROR(VLOOKUP(Table4[[#This Row],[رقم امر الشغل]],table5,9,0),\"\")","v":""},{"$f":"IFERROR(VLOOKUP(Table4[[#This Row],[رقم امر الشغل]],table5,10,0),\"\")","v":""},""]
[null,null,null,null,null,null,null,null,null,null,null,null,null,null,null,null,null,null,null,null,null,null,null,null,null,null,null,null,null,null,null,null,null,null,null,null,null,null,null,null,null,null,null,null,null,null,null,null,null,null,null,null,null,null,null,null,null,null,null,null,null,null,null,null,null,null,null,null,null,null,null,null,null,null,{"$f":"IFERROR(VLOOKUP(Table4[[#This Row],[رقم امر الشغل]],table5,9,0),\"\")","v":""},{"$f":"IFERROR(VLOOKUP(Table4[[#This Row],[رقم امر الشغل]],table5,10,0),\"\")","v":""},""]
[null,null,null,null,null,null,null,null,null,null,null,null,null,null,null,null,null,null,null,null,null,null,null,null,null,null,null,null,null,null,null,null,null,null,null,null,null,null,null,null,null,null,null,null,null,null,null,null,null,null,null,null,null,null,null,null,null,null,null,null,null,null,null,null,null,null,null,null,null,null,null,null,null,null,{"$f":"IFERROR(VLOOKUP(Table4[[#This Row],[رقم امر الشغل]],table5,9,0),\"\")","v":""},{"$f":"IFERROR(VLOOKUP(Table4[[#This Row],[رقم امر الشغل]],table5,10,0),\"\")","v":""},""]
[null,null,null,null,null,null,null,null,null,null,null,null,null,null,null,null,null,null,null,null,null,null,null,null,null,null,null,null,null,null,null,null,null,null,null,null,null,null,null,null,null,null,null,null,null,null,null,null,null,null,null,null,null,null,null,null,null,null,null,null,null,null,null,null,null,null,null,null,null,null,null,null,null,null,{"$f":"IFERROR(VLOOKUP(Table4[[#This Row],[رقم امر الشغل]],table5,9,0),\"\")","v":""},{"$f":"IFERROR(VLOOKUP(Table4[[#This Row],[رقم امر الشغل]],table5,10,0),\"\")","v":""},""]
[null,null,null,null,null,null,null,null,null,null,null,null,null,null,null,null,null,null,null,null,null,null,null,null,null,null,null,null,null,null,null,null,null,null,null,null,null,null,null,null,null,null,null,null,null,null,null,null,null,null,null,null,null,null,null,null,null,null,null,null,null,null,null,null,null,null,null,null,null,null,null,null,null,null,{"$f":"IFERROR(VLOOKUP(Table4[[#This Row],[رقم امر الشغل]],table5,9,0),\"\")","v":""},{"$f":"IFERROR(VLOOKUP(Table4[[#This Row],[رقم امر الشغل]],table5,10,0),\"\")","v":""},""]
[null,null,null,null,null,null,null,null,null,null,null,null,null,null,null,null,null,null,null,null,null,null,null,null,null,null,null,null,null,null,null,null,null,null,null,null,null,null,null,null,null,null,null,null,null,null,null,null,null,null,null,null,null,null,null,null,null,null,null,null,null,null,null,null,null,null,null,null,null,null,null,null,null,null,{"$f":"IFERROR(VLOOKUP(Table4[[#This Row],[رقم امر الشغل]],table5,9,0),\"\")","v":""},{"$f":"IFERROR(VLOOKUP(Table4[[#This Row],[رقم امر الشغل]],table5,10,0),\"\")","v":""},""]
[null,null,null,null,null,null,null,null,null,null,null,null,null,null,null,null,null,null,null,null,null,null,null,null,null,null,null,null,null,null,null,null,null,null,null,null,null,null,null,null,null,null,null,null,null,null,null,null,null,null,null,null,null,null,null,null,null,null,null,null,null,null,null,null,null,null,null,null,null,null,null,null,null,null,{"$f":"IFERROR(VLOOKUP(Table4[[#This Row],[رقم امر الشغل]],table5,9,0),\"\")","v":""},{"$f":"IFERROR(VLOOKUP(Table4[[#This Row],[رقم امر الشغل]],table5,10,0),\"\")","v":""},""]
[null,null,null,null,null,null,null,null,null,null,null,null,null,null,null,null,null,null,null,null,null,null,null,null,null,null,null,null,null,null,null,null,null,null,null,null,null,null,null,null,null,null,null,null,null,null,null,null,null,null,null,null,null,null,null,null,null,null,null,null,null,null,null,null,null,null,null,null,null,null,null,null,null,null,{"$f":"IFERROR(VLOOKUP(Table4[[#This Row],[رقم امر الشغل]],table5,9,0),\"\")","v":""},{"$f":"IFERROR(VLOOKUP(Table4[[#This Row],[رقم امر الشغل]],table5,10,0),\"\")","v":""},""]
[null,null,null,null,null,null,null,null,null,null,null,null,null,null,null,null,null,null,null,null,null,null,null,null,null,null,null,null,null,null,null,null,null,null,null,null,null,null,null,null,null,null,null,null,null,null,null,null,null,null,null,null,null,null,null,null,null,null,null,null,null,null,null,null,null,null,null,null,null,null,null,null,null,null,{"$f":"IFERROR(VLOOKUP(Table4[[#This Row],[رقم امر الشغل]],table5,9,0),\"\")","v":""},{"$f":"IFERROR(VLOOKUP(Table4[[#This Row],[رقم امر الشغل]],table5,10,0),\"\")","v":""},""]
[null,null,null,null,null,null,null,null,null,null,null,null,null,null,null,null,null,null,null,null,null,null,null,null,null,null,null,null,null,null,null,null,null,null,null,null,null,null,null,null,null,null,null,null,null,null,null,null,null,null,null,null,null,null,null,null,null,null,null,null,null,null,null,null,null,null,null,null,null,null,null,null,null,null,{"$f":"IFERROR(VLOOKUP(Table4[[#This Row],[رقم امر الشغل]],table5,9,0),\"\")","v":""},{"$f":"IFERROR(VLOOKUP(Table4[[#This Row],[رقم امر الشغل]],table5,10,0),\"\")","v":""},""]
[null,null,null,null,null,null,null,null,null,null,null,null,null,null,null,null,null,null,null,null,null,null,null,null,null,null,null,null,null,null,null,null,null,null,null,null,null,null,null,null,null,null,null,null,null,null,null,null,null,null,null,null,null,null,null,null,null,null,null,null,null,null,null,null,null,null,null,null,null,null,null,null,null,null,{"$f":"IFERROR(VLOOKUP(Table4[[#This Row],[رقم امر الشغل]],table5,9,0),\"\")","v":""},{"$f":"IFERROR(VLOOKUP(Table4[[#This Row],[رقم امر الشغل]],table5,10,0),\"\")","v":""},""]
[null,null,null,null,null,null,null,null,null,null,null,null,null,null,null,null,null,null,null,null,null,null,null,null,null,null,null,null,null,null,null,null,null,null,null,null,null,null,null,null,null,null,null,null,null,null,null,null,null,null,null,null,null,null,null,null,null,null,null,null,null,null,null,null,null,null,null,null,null,null,null,null,null,null,{"$f":"IFERROR(VLOOKUP(Table4[[#This Row],[رقم امر الشغل]],table5,9,0),\"\")","v":""},{"$f":"IFERROR(VLOOKUP(Table4[[#This Row],[رقم امر الشغل]],table5,10,0),\"\")","v":""},""]
[null,null,null,null,null,null,null,null,null,null,null,null,null,null,null,null,null,null,null,null,null,null,null,null,null,null,null,null,null,null,null,null,null,null,null,null,null,null,null,null,null,null,null,null,null,null,null,null,null,null,null,null,null,null,null,null,null,null,null,null,null,null,null,null,null,null,null,null,null,null,null,null,null,null,{"$f":"IFERROR(VLOOKUP(Table4[[#This Row],[رقم امر الشغل]],table5,9,0),\"\")","v":""},{"$f":"IFERROR(VLOOKUP(Table4[[#This Row],[رقم امر الشغل]],table5,10,0),\"\")","v":""},""]
[null,null,null,null,null,null,null,null,null,null,null,null,null,null,null,null,null,null,null,null,null,null,null,null,null,null,null,null,null,null,null,null,null,null,null,null,null,null,null,null,null,null,null,null,null,null,null,null,null,null,null,null,null,null,null,null,null,null,null,null,null,null,null,null,null,null,null,null,null,null,null,null,null,null,{"$f":"IFERROR(VLOOKUP(Table4[[#This Row],[رقم امر الشغل]],table5,9,0),\"\")","v":""},{"$f":"IFERROR(VLOOKUP(Table4[[#This Row],[رقم امر الشغل]],table5,10,0),\"\")","v":""},""]
[null,null,null,null,null,null,null,null,null,null,null,null,null,null,null,null,null,null,null,null,null,null,null,null,null,null,null,null,null,null,null,null,null,null,null,null,null,null,null,null,null,null,null,null,null,null,null,null,null,null,null,null,null,null,null,null,null,null,null,null,null,null,null,null,null,null,null,null,null,null,null,null,null,null,{"$f":"IFERROR(VLOOKUP(Table4[[#This Row],[رقم امر الشغل]],table5,9,0),\"\")","v":""},{"$f":"IFERROR(VLOOKUP(Table4[[#This Row],[رقم امر الشغل]],table5,10,0),\"\")","v":""},""]
[null,null,null,null,null,null,null,null,null,null,null,null,null,null,null,null,null,null,null,null,null,null,null,null,null,null,null,null,null,null,null,null,null,null,null,null,null,null,null,null,null,null,null,null,null,null,null,null,null,null,null,null,null,null,null,null,null,null,null,null,null,null,null,null,null,null,null,null,null,null,null,null,null,null,{"$f":"IFERROR(VLOOKUP(Table4[[#This Row],[رقم امر الشغل]],table5,9,0),\"\")","v":""},{"$f":"IFERROR(VLOOKUP(Table4[[#This Row],[رقم امر الشغل]],table5,10,0),\"\")","v":""},""]
[null,null,null,null,null,null,null,null,null,null,null,null,null,null,null,null,null,null,null,null,null,null,null,null,null,null,null,null,null,null,null,null,null,null,null,null,null,null,null,null,null,null,null,null,null,null,null,null,null,null,null,null,null,null,null,null,null,null,null,null,null,null,null,null,null,null,null,null,null,null,null,null,null,null,{"$f":"IFERROR(VLOOKUP(Table4[[#This Row],[رقم امر الشغل]],table5,9,0),\"\")","v":""},{"$f":"IFERROR(VLOOKUP(Table4[[#This Row],[رقم امر الشغل]],table5,10,0),\"\")","v":""},""]
[null,null,null,null,null,null,null,null,null,null,null,null,null,null,null,null,null,null,null,null,null,null,null,null,null,null,null,null,null,null,null,null,null,null,null,null,null,null,null,null,null,null,null,null,null,null,null,null,null,null,null,null,null,null,null,null,null,null,null,null,null,null,null,null,null,null,null,null,null,null,null,null,null,null,{"$f":"IFERROR(VLOOKUP(Table4[[#This Row],[رقم امر الشغل]],table5,9,0),\"\")","v":""},{"$f":"IFERROR(VLOOKUP(Table4[[#This Row],[رقم امر الشغل]],table5,10,0),\"\")","v":""},""]
[null,null,null,null,null,null,null,null,null,null,null,null,null,null,null,null,null,null,null,null,null,null,null,null,null,null,null,null,null,null,null,null,null,null,null,null,null,null,null,null,null,null,null,null,null,null,null,null,null,null,null,null,null,null,null,null,null,null,null,null,null,null,null,null,null,null,null,null,null,null,null,null,null,null,{"$f":"IFERROR(VLOOKUP(Table4[[#This Row],[رقم امر الشغل]],table5,9,0),\"\")","v":""},{"$f":"IFERROR(VLOOKUP(Table4[[#This Row],[رقم امر الشغل]],table5,10,0),\"\")","v":""},""]
[null,null,null,null,null,null,null,null,null,null,null,null,null,null,null,null,null,null,null,null,null,null,null,null,null,null,null,null,null,null,null,null,null,null,null,null,null,null,null,null,null,null,null,null,null,null,null,null,null,null,null,null,null,null,null,null,null,null,null,null,null,null,null,null,null,null,null,null,null,null,null,null,null,null,{"$f":"IFERROR(VLOOKUP(Table4[[#This Row],[رقم امر الشغل]],table5,9,0),\"\")","v":""},{"$f":"IFERROR(VLOOKUP(Table4[[#This Row],[رقم امر الشغل]],table5,10,0),\"\")","v":""},""]
[null,null,null,null,null,null,null,null,null,null,null,null,null,null,null,null,null,null,null,null,null,null,null,null,null,null,null,null,null,null,null,null,null,null,null,null,null,null,null,null,null,null,null,null,null,null,null,null,null,null,null,null,null,null,null,null,null,null,null,null,null,null,null,null,null,null,null,null,null,null,null,null,null,null,{"$f":"IFERROR(VLOOKUP(Table4[[#This Row],[رقم امر الشغل]],table5,9,0),\"\")","v":""},{"$f":"IFERROR(VLOOKUP(Table4[[#This Row],[رقم امر الشغل]],table5,10,0),\"\")","v":""},""]
[null,null,null,null,null,null,null,null,null,null,null,null,null,null,null,null,null,null,null,null,null,null,null,null,null,null,null,null,null,null,null,null,null,null,null,null,null,null,null,null,null,null,null,null,null,null,null,null,null,null,null,null,null,null,null,null,null,null,null,null,null,null,null,null,null,null,null,null,null,null,null,null,null,null,{"$f":"IFERROR(VLOOKUP(Table4[[#This Row],[رقم امر الشغل]],table5,9,0),\"\")","v":""},{"$f":"IFERROR(VLOOKUP(Table4[[#This Row],[رقم امر الشغل]],table5,10,0),\"\")","v":""},""]
[null,null,null,null,null,null,null,null,null,null,null,null,null,null,null,null,null,null,null,null,null,null,null,null,null,null,null,null,null,null,null,null,null,null,null,null,null,null,null,null,null,null,null,null,null,null,null,null,null,null,null,null,null,null,null,null,null,null,null,null,null,null,null,null,null,null,null,null,null,null,null,null,null,null,{"$f":"IFERROR(VLOOKUP(Table4[[#This Row],[رقم امر الشغل]],table5,9,0),\"\")","v":""},{"$f":"IFERROR(VLOOKUP(Table4[[#This Row],[رقم امر الشغل]],table5,10,0),\"\")","v":""},""]
[null,null,null,null,null,null,null,null,null,null,null,null,null,null,null,null,null,null,null,null,null,null,null,null,null,null,null,null,null,null,null,null,null,null,null,null,null,null,null,null,null,null,null,null,null,null,null,null,null,null,null,null,null,null,null,null,null,null,null,null,null,null,null,null,null,null,null,null,null,null,null,null,null,null,{"$f":"IFERROR(VLOOKUP(Table4[[#This Row],[رقم امر الشغل]],table5,9,0),\"\")","v":""},{"$f":"IFERROR(VLOOKUP(Table4[[#This Row],[رقم امر الشغل]],table5,10,0),\"\")","v":""},""]
[null,null,null,null,null,null,null,null,null,null,null,null,null,null,null,null,null,null,null,null,null,null,null,null,null,null,null,null,null,null,null,null,null,null,null,null,null,null,null,null,null,null,null,null,null,null,null,null,null,null,null,null,null,null,null,null,null,null,null,null,null,null,null,null,null,null,null,null,null,null,null,null,null,null,{"$f":"IFERROR(VLOOKUP(Table4[[#This Row],[رقم امر الشغل]],table5,9,0),\"\")","v":""},{"$f":"IFERROR(VLOOKUP(Table4[[#This Row],[رقم امر الشغل]],table5,10,0),\"\")","v":""},""]
[null,null,null,null,null,null,null,null,null,null,null,null,null,null,null,null,null,null,null,null,null,null,null,null,null,null,null,null,null,null,null,null,null,null,null,null,null,null,null,null,null,null,null,null,null,null,null,null,null,null,null,null,null,null,null,null,null,null,null,null,null,null,null,null,null,null,null,null,null,null,null,null,null,null,{"$f":"IFERROR(VLOOKUP(Table4[[#This Row],[رقم امر الشغل]],table5,9,0),\"\")","v":""},{"$f":"IFERROR(VLOOKUP(Table4[[#This Row],[رقم امر الشغل]],table5,10,0),\"\")","v":""},""]
[null,null,null,null,null,null,null,null,null,null,null,null,null,null,null,null,null,null,null,null,null,null,null,null,null,null,null,null,null,null,null,null,null,null,null,null,null,null,null,null,null,null,null,null,null,null,null,null,null,null,null,null,null,null,null,null,null,null,null,null,null,null,null,null,null,null,null,null,null,null,null,null,null,null,{"$f":"IFERROR(VLOOKUP(Table4[[#This Row],[رقم امر الشغل]],table5,9,0),\"\")","v":""},{"$f":"IFERROR(VLOOKUP(Table4[[#This Row],[رقم امر الشغل]],table5,10,0),\"\")","v":""},""]
[null,null,null,null,null,null,null,null,null,null,null,null,null,null,null,null,null,null,null,null,null,null,null,null,null,null,null,null,null,null,null,null,null,null,null,null,null,null,null,null,null,null,null,null,null,null,null,null,null,null,null,null,null,null,null,null,null,null,null,null,null,null,null,null,null,null,null,null,null,null,null,null,null,null,{"$f":"IFERROR(VLOOKUP(Table4[[#This Row],[رقم امر الشغل]],table5,9,0),\"\")","v":""},{"$f":"IFERROR(VLOOKUP(Table4[[#This Row],[رقم امر الشغل]],table5,10,0),\"\")","v":""},""]
[null,null,null,null,null,null,null,null,null,null,null,null,null,null,null,null,null,null,null,null,null,null,null,null,null,null,null,null,null,null,null,null,null,null,null,null,null,null,null,null,null,null,null,null,null,null,null,null,null,null,null,null,null,null,null,null,null,null,null,null,null,null,null,null,null,null,null,null,null,null,null,null,null,null,{"$f":"IFERROR(VLOOKUP(Table4[[#This Row],[رقم امر الشغل]],table5,9,0),\"\")","v":""},{"$f":"IFERROR(VLOOKUP(Table4[[#This Row],[رقم امر الشغل]],table5,10,0),\"\")","v":""},""]
[null,null,null,null,null,null,null,null,null,null,null,null,null,null,null,null,null,null,null,null,null,null,null,null,null,null,null,null,null,null,null,null,null,null,null,null,null,null,null,null,null,null,null,null,null,null,null,null,null,null,null,null,null,null,null,null,null,null,null,null,null,null,null,null,null,null,null,null,null,null,null,null,null,null,{"$f":"IFERROR(VLOOKUP(Table4[[#This Row],[رقم امر الشغل]],table5,9,0),\"\")","v":""},{"$f":"IFERROR(VLOOKUP(Table4[[#This Row],[رقم امر الشغل]],table5,10,0),\"\")","v":""},""]
[null,null,null,null,null,null,null,null,null,null,null,null,null,null,null,null,null,null,null,null,null,null,null,null,null,null,null,null,null,null,null,null,null,null,null,null,null,null,null,null,null,null,null,null,null,null,null,null,null,null,null,null,null,null,null,null,null,null,null,null,null,null,null,null,null,null,null,null,null,null,null,null,null,null,{"$f":"IFERROR(VLOOKUP(Table4[[#This Row],[رقم امر الشغل]],table5,9,0),\"\")","v":""},{"$f":"IFERROR(VLOOKUP(Table4[[#This Row],[رقم امر الشغل]],table5,10,0),\"\")","v":""},""]
[null,null,null,null,null,null,null,null,null,null,null,null,null,null,null,null,null,null,null,null,null,null,null,null,null,null,null,null,null,null,null,null,null,null,null,null,null,null,null,null,null,null,null,null,null,null,null,null,null,null,null,null,null,null,null,null,null,null,null,null,null,null,null,null,null,null,null,null,null,null,null,null,null,null,{"$f":"IFERROR(VLOOKUP(Table4[[#This Row],[رقم امر الشغل]],table5,9,0),\"\")","v":""},{"$f":"IFERROR(VLOOKUP(Table4[[#This Row],[رقم امر الشغل]],table5,10,0),\"\")","v":""},""]
[null,null,null,null,null,null,null,null,null,null,null,null,null,null,null,null,null,null,null,null,null,null,null,null,null,null,null,null,null,null,null,null,null,null,null,null,null,null,null,null,null,null,null,null,null,null,null,null,null,null,null,null,null,null,null,null,null,null,null,null,null,null,null,null,null,null,null,null,null,null,null,null,null,null,{"$f":"IFERROR(VLOOKUP(Table4[[#This Row],[رقم امر الشغل]],table5,9,0),\"\")","v":""},{"$f":"IFERROR(VLOOKUP(Table4[[#This Row],[رقم امر الشغل]],table5,10,0),\"\")","v":""},""]
[null,null,null,null,null,null,null,null,null,null,null,null,null,null,null,null,null,null,null,null,null,null,null,null,null,null,null,null,null,null,null,null,null,null,null,null,null,null,null,null,null,null,null,null,null,null,null,null,null,null,null,null,null,null,null,null,null,null,null,null,null,null,null,null,null,null,null,null,null,null,null,null,null,null,{"$f":"IFERROR(VLOOKUP(Table4[[#This Row],[رقم امر الشغل]],table5,9,0),\"\")","v":""},{"$f":"IFERROR(VLOOKUP(Table4[[#This Row],[رقم امر الشغل]],table5,10,0),\"\")","v":""},""]
[null,null,null,null,null,null,null,null,null,null,null,null,null,null,null,null,null,null,null,null,null,null,null,null,null,null,null,null,null,null,null,null,null,null,null,null,null,null,null,null,null,null,null,null,null,null,null,null,null,null,null,null,null,null,null,null,null,null,null,null,null,null,null,null,null,null,null,null,null,null,null,null,null,null,{"$f":"IFERROR(VLOOKUP(Table4[[#This Row],[رقم امر الشغل]],table5,9,0),\"\")","v":""},{"$f":"IFERROR(VLOOKUP(Table4[[#This Row],[رقم امر الشغل]],table5,10,0),\"\")","v":""},""]
[null,null,null,null,null,null,null,null,null,null,null,null,null,null,null,null,null,null,null,null,null,null,null,null,null,null,null,null,null,null,null,null,null,null,null,null,null,null,null,null,null,null,null,null,null,null,null,null,null,null,null,null,null,null,null,null,null,null,null,null,null,null,null,null,null,null,null,null,null,null,null,null,null,null,{"$f":"IFERROR(VLOOKUP(Table4[[#This Row],[رقم امر الشغل]],table5,9,0),\"\")","v":""},{"$f":"IFERROR(VLOOKUP(Table4[[#This Row],[رقم امر الشغل]],table5,10,0),\"\")","v":""},""]
[null,null,null,null,null,null,null,null,null,null,null,null,null,null,null,null,null,null,null,null,null,null,null,null,null,null,null,null,null,null,null,null,null,null,null,null,null,null,null,null,null,null,null,null,null,null,null,null,null,null,null,null,null,null,null,null,null,null,null,null,null,null,null,null,null,null,null,null,null,null,null,null,null,null,{"$f":"IFERROR(VLOOKUP(Table4[[#This Row],[رقم امر الشغل]],table5,9,0),\"\")","v":""},{"$f":"IFERROR(VLOOKUP(Table4[[#This Row],[رقم امر الشغل]],table5,10,0),\"\")","v":""},""]
[null,null,null,null,null,null,null,null,null,null,null,null,null,null,null,null,null,null,null,null,null,null,null,null,null,null,null,null,null,null,null,null,null,null,null,null,null,null,null,null,null,null,null,null,null,null,null,null,null,null,null,null,null,null,null,null,null,null,null,null,null,null,null,null,null,null,null,null,null,null,null,null,null,null,{"$f":"IFERROR(VLOOKUP(Table4[[#This Row],[رقم امر الشغل]],table5,9,0),\"\")","v":""},{"$f":"IFERROR(VLOOKUP(Table4[[#This Row],[رقم امر الشغل]],table5,10,0),\"\")","v":""},""]
[null,null,null,null,null,null,null,null,null,null,null,null,null,null,null,null,null,null,null,null,null,null,null,null,null,null,null,null,null,null,null,null,null,null,null,null,null,null,null,null,null,null,null,null,null,null,null,null,null,null,null,null,null,null,null,null,null,null,null,null,null,null,null,null,null,null,null,null,null,null,null,null,null,null,{"$f":"IFERROR(VLOOKUP(Table4[[#This Row],[رقم امر الشغل]],table5,9,0),\"\")","v":""},{"$f":"IFERROR(VLOOKUP(Table4[[#This Row],[رقم امر الشغل]],table5,10,0),\"\")","v":""},""]
[null,null,null,null,null,null,null,null,null,null,null,null,null,null,null,null,null,null,null,null,null,null,null,null,null,null,null,null,null,null,null,null,null,null,null,null,null,null,null,null,null,null,null,null,null,null,null,null,null,null,null,null,null,null,null,null,null,null,null,null,null,null,null,null,null,null,null,null,null,null,null,null,null,null,{"$f":"IFERROR(VLOOKUP(Table4[[#This Row],[رقم امر الشغل]],table5,9,0),\"\")","v":""},{"$f":"IFERROR(VLOOKUP(Table4[[#This Row],[رقم امر الشغل]],table5,10,0),\"\")","v":""},""]
[null,null,null,null,null,null,null,null,null,null,null,null,null,null,null,null,null,null,null,null,null,null,null,null,null,null,null,null,null,null,null,null,null,null,null,null,null,null,null,null,null,null,null,null,null,null,null,null,null,null,null,null,null,null,null,null,null,null,null,null,null,null,null,null,null,null,null,null,null,null,null,null,null,null,{"$f":"IFERROR(VLOOKUP(Table4[[#This Row],[رقم امر الشغل]],table5,9,0),\"\")","v":""},{"$f":"IFERROR(VLOOKUP(Table4[[#This Row],[رقم امر الشغل]],table5,10,0),\"\")","v":""},""]
[null,null,null,null,null,null,null,null,null,null,null,null,null,null,null,null,null,null,null,null,null,null,null,null,null,null,null,null,null,null,null,null,null,null,null,null,null,null,null,null,null,null,null,null,null,null,null,null,null,null,null,null,null,null,null,null,null,null,null,null,null,null,null,null,null,null,null,null,null,null,null,null,null,null,{"$f":"IFERROR(VLOOKUP(Table4[[#This Row],[رقم امر الشغل]],table5,9,0),\"\")","v":""},{"$f":"IFERROR(VLOOKUP(Table4[[#This Row],[رقم امر الشغل]],table5,10,0),\"\")","v":""},""]
[null,null,null,null,null,null,null,null,null,null,null,null,null,null,null,null,null,null,null,null,null,null,null,null,null,null,null,null,null,null,null,null,null,null,null,null,null,null,null,null,null,null,null,null,null,null,null,null,null,null,null,null,null,null,null,null,null,null,null,null,null,null,null,null,null,null,null,null,null,null,null,null,null,null,{"$f":"IFERROR(VLOOKUP(Table4[[#This Row],[رقم امر الشغل]],table5,9,0),\"\")","v":""},{"$f":"IFERROR(VLOOKUP(Table4[[#This Row],[رقم امر الشغل]],table5,10,0),\"\")","v":""},""]
[null,null,null,null,null,null,null,null,null,null,null,null,null,null,null,null,null,null,null,null,null,null,null,null,null,null,null,null,null,null,null,null,null,null,null,null,null,null,null,null,null,null,null,null,null,null,null,null,null,null,null,null,null,null,null,null,null,null,null,null,null,null,null,null,null,null,null,null,null,null,null,null,null,null,{"$f":"IFERROR(VLOOKUP(Table4[[#This Row],[رقم امر الشغل]],table5,9,0),\"\")","v":""},{"$f":"IFERROR(VLOOKUP(Table4[[#This Row],[رقم امر الشغل]],table5,10,0),\"\")","v":""},""]
[null,null,null,null,null,null,null,null,null,null,null,null,null,null,null,null,null,null,null,null,null,null,null,null,null,null,null,null,null,null,null,null,null,null,null,null,null,null,null,null,null,null,null,null,null,null,null,null,null,null,null,null,null,null,null,null,null,null,null,null,null,null,null,null,null,null,null,null,null,null,null,null,null,null,{"$f":"IFERROR(VLOOKUP(Table4[[#This Row],[رقم امر الشغل]],table5,9,0),\"\")","v":""},{"$f":"IFERROR(VLOOKUP(Table4[[#This Row],[رقم امر الشغل]],table5,10,0),\"\")","v":""},""]
[null,null,null,null,null,null,null,null,null,null,null,null,null,null,null,null,null,null,null,null,null,null,null,null,null,null,null,null,null,null,null,null,null,null,null,null,null,null,null,null,null,null,null,null,null,null,null,null,null,null,null,null,null,null,null,null,null,null,null,null,null,null,null,null,null,null,null,null,null,null,null,null,null,null,{"$f":"IFERROR(VLOOKUP(Table4[[#This Row],[رقم امر الشغل]],table5,9,0),\"\")","v":""},{"$f":"IFERROR(VLOOKUP(Table4[[#This Row],[رقم امر الشغل]],table5,10,0),\"\")","v":""},""]
[null,null,null,null,null,null,null,null,null,null,null,null,null,null,null,null,null,null,null,null,null,null,null,null,null,null,null,null,null,null,null,null,null,null,null,null,null,null,null,null,null,null,null,null,null,null,null,null,null,null,null,null,null,null,null,null,null,null,null,null,null,null,null,null,null,null,null,null,null,null,null,null,null,null,{"$f":"IFERROR(VLOOKUP(Table4[[#This Row],[رقم امر الشغل]],table5,9,0),\"\")","v":""},{"$f":"IFERROR(VLOOKUP(Table4[[#This Row],[رقم امر الشغل]],table5,10,0),\"\")","v":""},""]
[null,null,null,null,null,null,null,null,null,null,null,null,null,null,null,null,null,null,null,null,null,null,null,null,null,null,null,null,null,null,null,null,null,null,null,null,null,null,null,null,null,null,null,null,null,null,null,null,null,null,null,null,null,null,null,null,null,null,null,null,null,null,null,null,null,null,null,null,null,null,null,null,null,null,{"$f":"IFERROR(VLOOKUP(Table4[[#This Row],[رقم امر الشغل]],table5,9,0),\"\")","v":""},{"$f":"IFERROR(VLOOKUP(Table4[[#This Row],[رقم امر الشغل]],table5,10,0),\"\")","v":""},""]
[null,null,null,null,null,null,null,null,null,null,null,null,null,null,null,null,null,null,null,null,null,null,null,null,null,null,null,null,null,null,null,null,null,null,null,null,null,null,null,null,null,null,null,null,null,null,null,null,null,null,null,null,null,null,null,null,null,null,null,null,null,null,null,null,null,null,null,null,null,null,null,null,null,null,{"$f":"IFERROR(VLOOKUP(Table4[[#This Row],[رقم امر الشغل]],table5,9,0),\"\")","v":""},{"$f":"IFERROR(VLOOKUP(Table4[[#This Row],[رقم امر الشغل]],table5,10,0),\"\")","v":""},{"$f":"IFERROR((BW154-BX154),\"\")","v":""}]
[null,null,null,null,null,null,null,null,null,null,null,null,null,null,null,null,null,null,null,null,null,null,null,null,null,null,null,null,null,null,null,null,null,null,null,null,null,null,null,null,null,null,null,null,null,null,null,null,null,null,null,null,null,null,null,null,null,null,null,null,null,null,null,null,null,null,null,null,null,null,null,null,null,null,{"$f":"IFERROR(VLOOKUP(Table4[[#This Row],[رقم امر الشغل]],table5,9,0),\"\")","v":""},{"$f":"IFERROR(VLOOKUP(Table4[[#This Row],[رقم امر الشغل]],table5,10,0),\"\")","v":""},""]
[null,null,null,null,null,null,null,null,null,null,null,null,null,null,null,null,null,null,null,null,null,null,null,null,null,null,null,null,null,null,null,null,null,null,null,null,null,null,null,null,null,null,null,null,null,null,null,null,null,null,null,null,null,null,null,null,null,null,null,null,null,null,null,null,null,null,null,null,null,null,null,null,null,null,{"$f":"IFERROR(VLOOKUP(Table4[[#This Row],[رقم امر الشغل]],table5,9,0),\"\")","v":""},{"$f":"IFERROR(VLOOKUP(Table4[[#This Row],[رقم امر الشغل]],table5,10,0),\"\")","v":""},""]
[null,null,null,null,null,null,null,null,null,null,null,null,null,null,null,null,null,null,null,null,null,null,null,null,null,null,null,null,null,null,null,null,null,null,null,null,null,null,null,null,null,null,null,null,null,null,null,null,null,null,null,null,null,null,null,null,null,null,null,null,null,null,null,null,null,null,null,null,null,null,null,null,null,null,{"$f":"IFERROR(VLOOKUP(Table4[[#This Row],[رقم امر الشغل]],table5,9,0),\"\")","v":""},{"$f":"IFERROR(VLOOKUP(Table4[[#This Row],[رقم امر الشغل]],table5,10,0),\"\")","v":""},""]
[null,null,null,null,null,null,null,null,null,null,null,null,null,null,null,null,null,null,null,null,null,null,null,null,null,null,null,null,null,null,null,null,null,null,null,null,null,null,null,null,null,null,null,null,null,null,null,null,null,null,null,null,null,null,null,null,null,null,null,null,null,null,null,null,null,null,null,null,null,null,null,null,null,null,{"$f":"IFERROR(VLOOKUP(Table4[[#This Row],[رقم امر الشغل]],table5,9,0),\"\")","v":""},{"$f":"IFERROR(VLOOKUP(Table4[[#This Row],[رقم امر الشغل]],table5,10,0),\"\")","v":""},""]
[null,null,null,null,null,null,null,null,null,null,null,null,null,null,null,null,null,null,null,null,null,null,null,null,null,null,null,null,null,null,null,null,null,null,null,null,null,null,null,null,null,null,null,null,null,null,null,null,null,null,null,null,null,null,null,null,null,null,null,null,null,null,null,null,null,null,null,null,null,null,null,null,null,null,{"$f":"IFERROR(VLOOKUP(Table4[[#This Row],[رقم امر الشغل]],table5,9,0),\"\")","v":""},{"$f":"IFERROR(VLOOKUP(Table4[[#This Row],[رقم امر الشغل]],table5,10,0),\"\")","v":""},""]
[null,null,null,null,null,null,null,null,null,null,null,null,null,null,null,null,null,null,null,null,null,null,null,null,null,null,null,null,null,null,null,null,null,null,null,null,null,null,null,null,null,null,null,null,null,null,null,null,null,null,null,null,null,null,null,null,null,null,null,null,null,null,null,null,null,null,null,null,null,null,null,null,null,null,{"$f":"IFERROR(VLOOKUP(Table4[[#This Row],[رقم امر الشغل]],table5,9,0),\"\")","v":""},{"$f":"IFERROR(VLOOKUP(Table4[[#This Row],[رقم امر الشغل]],table5,10,0),\"\")","v":""},""]
[null,null,null,null,null,null,null,null,null,null,null,null,null,null,null,null,null,null,null,null,null,null,null,null,null,null,null,null,null,null,null,null,null,null,null,null,null,null,null,null,null,null,null,null,null,null,null,null,null,null,null,null,null,null,null,null,null,null,null,null,null,null,null,null,null,null,null,null,null,null,null,null,null,null,{"$f":"IFERROR(VLOOKUP(Table4[[#This Row],[رقم امر الشغل]],table5,9,0),\"\")","v":""},{"$f":"IFERROR(VLOOKUP(Table4[[#This Row],[رقم امر الشغل]],table5,10,0),\"\")","v":""},""]
[null,null,null,null,null,null,null,null,null,null,null,null,null,null,null,null,null,null,null,null,null,null,null,null,null,null,null,null,null,null,null,null,null,null,null,null,null,null,null,null,null,null,null,null,null,null,null,null,null,null,null,null,null,null,null,null,null,null,null,null,null,null,null,null,null,null,null,null,null,null,null,null,null,null,{"$f":"IFERROR(VLOOKUP(Table4[[#This Row],[رقم امر الشغل]],table5,9,0),\"\")","v":""},{"$f":"IFERROR(VLOOKUP(Table4[[#This Row],[رقم امر الشغل]],table5,10,0),\"\")","v":""},""]
[null,null,null,null,null,null,null,null,null,null,null,null,null,null,null,null,null,null,null,null,null,null,null,null,null,null,null,null,null,null,null,null,null,null,null,null,null,null,null,null,null,null,null,null,null,null,null,null,null,null,null,null,null,null,null,null,null,null,null,null,null,null,null,null,null,null,null,null,null,null,null,null,null,null,{"$f":"IFERROR(VLOOKUP(Table4[[#This Row],[رقم امر الشغل]],table5,9,0),\"\")","v":""},{"$f":"IFERROR(VLOOKUP(Table4[[#This Row],[رقم امر الشغل]],table5,10,0),\"\")","v":""},""]
[null,null,null,null,null,null,null,null,null,null,null,null,null,null,null,null,null,null,null,null,null,null,null,null,null,null,null,null,null,null,null,null,null,null,null,null,null,null,null,null,null,null,null,null,null,null,null,null,null,null,null,null,null,null,null,null,null,null,null,null,null,null,null,null,null,null,null,null,null,null,null,null,null,null,{"$f":"IFERROR(VLOOKUP(Table4[[#This Row],[رقم امر الشغل]],table5,9,0),\"\")","v":""},{"$f":"IFERROR(VLOOKUP(Table4[[#This Row],[رقم امر الشغل]],table5,10,0),\"\")","v":""},""]
[null,null,null,null,null,null,null,null,null,null,null,null,null,null,null,null,null,null,null,null,null,null,null,null,null,null,null,null,null,null,null,null,null,null,null,null,null,null,null,null,null,null,null,null,null,null,null,null,null,null,null,null,null,null,null,null,null,null,null,null,null,null,null,null,null,null,null,null,null,null,null,null,null,null,{"$f":"IFERROR(VLOOKUP(Table4[[#This Row],[رقم امر الشغل]],table5,9,0),\"\")","v":""},{"$f":"IFERROR(VLOOKUP(Table4[[#This Row],[رقم امر الشغل]],table5,10,0),\"\")","v":""},""]
[null,null,null,null,null,null,null,null,null,null,null,null,null,null,null,null,null,null,null,null,null,null,null,null,null,null,null,null,null,null,null,null,null,null,null,null,null,null,null,null,null,null,null,null,null,null,null,null,null,null,null,null,null,null,null,null,null,null,null,null,null,null,null,null,null,null,null,null,null,null,null,null,null,null,{"$f":"IFERROR(VLOOKUP(Table4[[#This Row],[رقم امر الشغل]],table5,9,0),\"\")","v":""},{"$f":"IFERROR(VLOOKUP(Table4[[#This Row],[رقم امر الشغل]],table5,10,0),\"\")","v":""},""]
[null,null,null,null,null,null,null,null,null,null,null,null,null,null,null,null,null,null,null,null,null,null,null,null,null,null,null,null,null,null,null,null,null,null,null,null,null,null,null,null,null,null,null,null,null,null,null,null,null,null,null,null,null,null,null,null,null,null,null,null,null,null,null,null,null,null,null,null,null,null,null,null,null,null,{"$f":"IFERROR(VLOOKUP(Table4[[#This Row],[رقم امر الشغل]],table5,9,0),\"\")","v":""},{"$f":"IFERROR(VLOOKUP(Table4[[#This Row],[رقم امر الشغل]],table5,10,0),\"\")","v":""},""]
[null,null,null,null,null,null,null,null,null,null,null,null,null,null,null,null,null,null,null,null,null,null,null,null,null,null,null,null,null,null,null,null,null,null,null,null,null,null,null,null,null,null,null,null,null,null,null,null,null,null,null,null,null,null,null,null,null,null,null,null,null,null,null,null,null,null,null,null,null,null,null,null,null,null,{"$f":"IFERROR(VLOOKUP(Table4[[#This Row],[رقم امر الشغل]],table5,9,0),\"\")","v":""},{"$f":"IFERROR(VLOOKUP(Table4[[#This Row],[رقم امر الشغل]],table5,10,0),\"\")","v":""},""]
[null,null,null,null,null,null,null,null,null,null,null,null,null,null,null,null,null,null,null,null,null,null,null,null,null,null,null,null,null,null,null,null,null,null,null,null,null,null,null,null,null,null,null,null,null,null,null,null,null,null,null,null,null,null,null,null,null,null,null,null,null,null,null,null,null,null,null,null,null,null,null,null,null,null,{"$f":"IFERROR(VLOOKUP(Table4[[#This Row],[رقم امر الشغل]],table5,9,0),\"\")","v":""},{"$f":"IFERROR(VLOOKUP(Table4[[#This Row],[رقم امر الشغل]],table5,10,0),\"\")","v":""},""]
[null,null,null,null,null,null,null,null,null,null,null,null,null,null,null,null,null,null,null,null,null,null,null,null,null,null,null,null,null,null,null,null,null,null,null,null,null,null,null,null,null,null,null,null,null,null,null,null,null,null,null,null,null,null,null,null,null,null,null,null,null,null,null,null,null,null,null,null,null,null,null,null,null,null,{"$f":"IFERROR(VLOOKUP(Table4[[#This Row],[رقم امر الشغل]],table5,9,0),\"\")","v":""},{"$f":"IFERROR(VLOOKUP(Table4[[#This Row],[رقم امر الشغل]],table5,10,0),\"\")","v":""},""]
[null,null,null,null,null,null,null,null,null,null,null,null,null,null,null,null,null,null,null,null,null,null,null,null,null,null,null,null,null,null,null,null,null,null,null,null,null,null,null,null,null,null,null,null,null,null,null,null,null,null,null,null,null,null,null,null,null,null,null,null,null,null,null,null,null,null,null,null,null,null,null,null,null,null,{"$f":"IFERROR(VLOOKUP(Table4[[#This Row],[رقم امر الشغل]],table5,9,0),\"\")","v":""},{"$f":"IFERROR(VLOOKUP(Table4[[#This Row],[رقم امر الشغل]],table5,10,0),\"\")","v":""},""]
[null,null,null,null,null,null,null,null,null,null,null,null,null,null,null,null,null,null,null,null,null,null,null,null,null,null,null,null,null,null,null,null,null,null,null,null,null,null,null,null,null,null,null,null,null,null,null,null,null,null,null,null,null,null,null,null,null,null,null,null,null,null,null,null,null,null,null,null,null,null,null,null,null,null,{"$f":"IFERROR(VLOOKUP(Table4[[#This Row],[رقم امر الشغل]],table5,9,0),\"\")","v":""},{"$f":"IFERROR(VLOOKUP(Table4[[#This Row],[رقم امر الشغل]],table5,10,0),\"\")","v":""},""]
[null,null,null,null,null,null,null,null,null,null,null,null,null,null,null,null,null,null,null,null,null,null,null,null,null,null,null,null,null,null,null,null,null,null,null,null,null,null,null,null,null,null,null,null,null,null,null,null,null,null,null,null,null,null,null,null,null,null,null,null,null,null,null,null,null,null,null,null,null,null,null,null,null,null,{"$f":"IFERROR(VLOOKUP(Table4[[#This Row],[رقم امر الشغل]],table5,9,0),\"\")","v":""},{"$f":"IFERROR(VLOOKUP(Table4[[#This Row],[رقم امر الشغل]],table5,10,0),\"\")","v":""},""]
[null,null,null,null,null,null,null,null,null,null,null,null,null,null,null,null,null,null,null,null,null,null,null,null,null,null,null,null,null,null,null,null,null,null,null,null,null,null,null,null,null,null,null,null,null,null,null,null,null,null,null,null,null,null,null,null,null,null,null,null,null,null,null,null,null,null,null,null,null,null,null,null,null,null,{"$f":"IFERROR(VLOOKUP(Table4[[#This Row],[رقم امر الشغل]],table5,9,0),\"\")","v":""},{"$f":"IFERROR(VLOOKUP(Table4[[#This Row],[رقم امر الشغل]],table5,10,0),\"\")","v":""},""]
[null,null,null,null,null,null,null,null,null,null,null,null,null,null,null,null,null,null,null,null,null,null,null,null,null,null,null,null,null,null,null,null,null,null,null,null,null,null,null,null,null,null,null,null,null,null,null,null,null,null,null,null,null,null,null,null,null,null,null,null,null,null,null,null,null,null,null,null,null,null,null,null,null,null,{"$f":"IFERROR(VLOOKUP(Table4[[#This Row],[رقم امر الشغل]],table5,9,0),\"\")","v":""},{"$f":"IFERROR(VLOOKUP(Table4[[#This Row],[رقم امر الشغل]],table5,10,0),\"\")","v":""},""]
[null,null,null,null,null,null,null,null,null,null,null,null,null,null,null,null,null,null,null,null,null,null,null,null,null,null,null,null,null,null,null,null,null,null,null,null,null,null,null,null,null,null,null,null,null,null,null,null,null,null,null,null,null,null,null,null,null,null,null,null,null,null,null,null,null,null,null,null,null,null,null,null,null,null,{"$f":"IFERROR(VLOOKUP(Table4[[#This Row],[رقم امر الشغل]],table5,9,0),\"\")","v":""},{"$f":"IFERROR(VLOOKUP(Table4[[#This Row],[رقم امر الشغل]],table5,10,0),\"\")","v":""},""]
[null,null,null,null,null,null,null,null,null,null,null,null,null,null,null,null,null,null,null,null,null,null,null,null,null,null,null,null,null,null,null,null,null,null,null,null,null,null,null,null,null,null,null,null,null,null,null,null,null,null,null,null,null,null,null,null,null,null,null,null,null,null,null,null,null,null,null,null,null,null,null,null,null,null,{"$f":"IFERROR(VLOOKUP(Table4[[#This Row],[رقم امر الشغل]],table5,9,0),\"\")","v":""},{"$f":"IFERROR(VLOOKUP(Table4[[#This Row],[رقم امر الشغل]],table5,10,0),\"\")","v":""},""]
[null,null,null,null,null,null,null,null,null,null,null,null,null,null,null,null,null,null,null,null,null,null,null,null,null,null,null,null,null,null,null,null,null,null,null,null,null,null,null,null,null,null,null,null,null,null,null,null,null,null,null,null,null,null,null,null,null,null,null,null,null,null,null,null,null,null,null,null,null,null,null,null,null,null,{"$f":"IFERROR(VLOOKUP(Table4[[#This Row],[رقم امر الشغل]],table5,9,0),\"\")","v":""},{"$f":"IFERROR(VLOOKUP(Table4[[#This Row],[رقم امر الشغل]],table5,10,0),\"\")","v":""},""]
[null,null,null,null,null,null,null,null,null,null,null,null,null,null,null,null,null,null,null,null,null,null,null,null,null,null,null,null,null,null,null,null,null,null,null,null,null,null,null,null,null,null,null,null,null,null,null,null,null,null,null,null,null,null,null,null,null,null,null,null,null,null,null,null,null,null,null,null,null,null,null,null,null,null,{"$f":"IFERROR(VLOOKUP(Table4[[#This Row],[رقم امر الشغل]],table5,9,0),\"\")","v":""},{"$f":"IFERROR(VLOOKUP(Table4[[#This Row],[رقم امر الشغل]],table5,10,0),\"\")","v":""},""]
[null,null,null,null,null,null,null,null,null,null,null,null,null,null,null,null,null,null,null,null,null,null,null,null,null,null,null,null,null,null,null,null,null,null,null,null,null,null,null,null,null,null,null,null,null,null,null,null,null,null,null,null,null,null,null,null,null,null,null,null,null,null,null,null,null,null,null,null,null,null,null,null,null,null,{"$f":"IFERROR(VLOOKUP(Table4[[#This Row],[رقم امر الشغل]],table5,9,0),\"\")","v":""},{"$f":"IFERROR(VLOOKUP(Table4[[#This Row],[رقم امر الشغل]],table5,10,0),\"\")","v":""},""]
[null,null,null,null,null,null,null,null,null,null,null,null,null,null,null,null,null,null,null,null,null,null,null,null,null,null,null,null,null,null,null,null,null,null,null,null,null,null,null,null,null,null,null,null,null,null,null,null,null,null,null,null,null,null,null,null,null,null,null,null,null,null,null,null,null,null,null,null,null,null,null,null,null,null,{"$f":"IFERROR(VLOOKUP(Table4[[#This Row],[رقم امر الشغل]],table5,9,0),\"\")","v":""},{"$f":"IFERROR(VLOOKUP(Table4[[#This Row],[رقم امر الشغل]],table5,10,0),\"\")","v":""},""]
[null,null,null,null,null,null,null,null,null,null,null,null,null,null,null,null,null,null,null,null,null,null,null,null,null,null,null,null,null,null,null,null,null,null,null,null,null,null,null,null,null,null,null,null,null,null,null,null,null,null,null,null,null,null,null,null,null,null,null,null,null,null,null,null,null,null,null,null,null,null,null,null,null,null,{"$f":"IFERROR(VLOOKUP(Table4[[#This Row],[رقم امر الشغل]],table5,9,0),\"\")","v":""},{"$f":"IFERROR(VLOOKUP(Table4[[#This Row],[رقم امر الشغل]],table5,10,0),\"\")","v":""},""]
[null,null,null,null,null,null,null,null,null,null,null,null,null,null,null,null,null,null,null,null,null,null,null,null,null,null,null,null,null,null,null,null,null,null,null,null,null,null,null,null,null,null,null,null,null,null,null,null,null,null,null,null,null,null,null,null,null,null,null,null,null,null,null,null,null,null,null,null,null,null,null,null,null,null,{"$f":"IFERROR(VLOOKUP(Table4[[#This Row],[رقم امر الشغل]],table5,9,0),\"\")","v":""},{"$f":"IFERROR(VLOOKUP(Table4[[#This Row],[رقم امر الشغل]],table5,10,0),\"\")","v":""},""]
[null,null,null,null,null,null,null,null,null,null,null,null,null,null,null,null,null,null,null,null,null,null,null,null,null,null,null,null,null,null,null,null,null,null,null,null,null,null,null,null,null,null,null,null,null,null,null,null,null,null,null,null,null,null,null,null,null,null,null,null,null,null,null,null,null,null,null,null,null,null,null,null,null,null,{"$f":"IFERROR(VLOOKUP(Table4[[#This Row],[رقم امر الشغل]],table5,9,0),\"\")","v":""},{"$f":"IFERROR(VLOOKUP(Table4[[#This Row],[رقم امر الشغل]],table5,10,0),\"\")","v":""},""]
[null,null,null,null,null,null,null,null,null,null,null,null,null,null,null,null,null,null,null,null,null,null,null,null,null,null,null,null,null,null,null,null,null,null,null,null,null,null,null,null,null,null,null,null,null,null,null,null,null,null,null,null,null,null,null,null,null,null,null,null,null,null,null,null,null,null,null,null,null,null,null,null,null,null,{"$f":"IFERROR(VLOOKUP(Table4[[#This Row],[رقم امر الشغل]],table5,9,0),\"\")","v":""},{"$f":"IFERROR(VLOOKUP(Table4[[#This Row],[رقم امر الشغل]],table5,10,0),\"\")","v":""},""]
[null,null,null,null,null,null,null,null,null,null,null,null,null,null,null,null,null,null,null,null,null,null,null,null,null,null,null,null,null,null,null,null,null,null,null,null,null,null,null,null,null,null,null,null,null,null,null,null,null,null,null,null,null,null,null,null,null,null,null,null,null,null,null,null,null,null,null,null,null,null,null,null,null,null,{"$f":"IFERROR(VLOOKUP(Table4[[#This Row],[رقم امر الشغل]],table5,9,0),\"\")","v":""},{"$f":"IFERROR(VLOOKUP(Table4[[#This Row],[رقم امر الشغل]],table5,10,0),\"\")","v":""},""]
[null,null,null,null,null,null,null,null,null,null,null,null,null,null,null,null,null,null,null,null,null,null,null,null,null,null,null,null,null,null,null,null,null,null,null,null,null,null,null,null,null,null,null,null,null,null,null,null,null,null,null,null,null,null,null,null,null,null,null,null,null,null,null,null,null,null,null,null,null,null,null,null,null,null,{"$f":"IFERROR(VLOOKUP(Table4[[#This Row],[رقم امر الشغل]],table5,9,0),\"\")","v":""},{"$f":"IFERROR(VLOOKUP(Table4[[#This Row],[رقم امر الشغل]],table5,10,0),\"\")","v":""},""]
[null,null,null,null,null,null,null,null,null,null,null,null,null,null,null,null,null,null,null,null,null,null,null,null,null,null,null,null,null,null,null,null,null,null,null,null,null,null,null,null,null,null,null,null,null,null,null,null,null,null,null,null,null,null,null,null,null,null,null,null,null,null,null,null,null,null,null,null,null,null,null,null,null,null,{"$f":"IFERROR(VLOOKUP(Table4[[#This Row],[رقم امر الشغل]],table5,9,0),\"\")","v":""},{"$f":"IFERROR(VLOOKUP(Table4[[#This Row],[رقم امر الشغل]],table5,10,0),\"\")","v":""},""]
[null,null,null,null,null,null,null,null,null,null,null,null,null,null,null,null,null,null,null,null,null,null,null,null,null,null,null,null,null,null,null,null,null,null,null,null,null,null,null,null,null,null,null,null,null,null,null,null,null,null,null,null,null,null,null,null,null,null,null,null,null,null,null,null,null,null,null,null,null,null,null,null,null,null,{"$f":"IFERROR(VLOOKUP(Table4[[#This Row],[رقم امر الشغل]],table5,9,0),\"\")","v":""},{"$f":"IFERROR(VLOOKUP(Table4[[#This Row],[رقم امر الشغل]],table5,10,0),\"\")","v":""},""]
[null,null,null,null,null,null,null,null,null,null,null,null,null,null,null,null,null,null,null,null,null,null,null,null,null,null,null,null,null,null,null,null,null,null,null,null,null,null,null,null,null,null,null,null,null,null,null,null,null,null,null,null,null,null,null,null,null,null,null,null,null,null,null,null,null,null,null,null,null,null,null,null,null,null,{"$f":"IFERROR(VLOOKUP(Table4[[#This Row],[رقم امر الشغل]],table5,9,0),\"\")","v":""},{"$f":"IFERROR(VLOOKUP(Table4[[#This Row],[رقم امر الشغل]],table5,10,0),\"\")","v":""},""]
[null,null,null,null,null,null,null,null,null,null,null,null,null,null,null,null,null,null,null,null,null,null,null,null,null,null,null,null,null,null,null,null,null,null,null,null,null,null,null,null,null,null,null,null,null,null,null,null,null,null,null,null,null,null,null,null,null,null,null,null,null,null,null,null,null,null,null,null,null,null,null,null,null,null,{"$f":"IFERROR(VLOOKUP(Table4[[#This Row],[رقم امر الشغل]],table5,9,0),\"\")","v":""},{"$f":"IFERROR(VLOOKUP(Table4[[#This Row],[رقم امر الشغل]],table5,10,0),\"\")","v":""},""]
[null,null,null,null,null,null,null,null,null,null,null,null,null,null,null,null,null,null,null,null,null,null,null,null,null,null,null,null,null,null,null,null,null,null,null,null,null,null,null,null,null,null,null,null,null,null,null,null,null,null,null,null,null,null,null,null,null,null,null,null,null,null,null,null,null,null,null,null,null,null,null,null,null,null,{"$f":"IFERROR(VLOOKUP(Table4[[#This Row],[رقم امر الشغل]],table5,9,0),\"\")","v":""},{"$f":"IFERROR(VLOOKUP(Table4[[#This Row],[رقم امر الشغل]],table5,10,0),\"\")","v":""},""]
[null,null,null,null,null,null,null,null,null,null,null,null,null,null,null,null,null,null,null,null,null,null,null,null,null,null,null,null,null,null,null,null,null,null,null,null,null,null,null,null,null,null,null,null,null,null,null,null,null,null,null,null,null,null,null,null,null,null,null,null,null,null,null,null,null,null,null,null,null,null,null,null,null,null,{"$f":"IFERROR(VLOOKUP(Table4[[#This Row],[رقم امر الشغل]],table5,9,0),\"\")","v":""},{"$f":"IFERROR(VLOOKUP(Table4[[#This Row],[رقم امر الشغل]],table5,10,0),\"\")","v":""},""]
[null,null,null,null,null,null,null,null,null,null,null,null,null,null,null,null,null,null,null,null,null,null,null,null,null,null,null,null,null,null,null,null,null,null,null,null,null,null,null,null,null,null,null,null,null,null,null,null,null,null,null,null,null,null,null,null,null,null,null,null,null,null,null,null,null,null,null,null,null,null,null,null,null,null,{"$f":"IFERROR(VLOOKUP(Table4[[#This Row],[رقم امر الشغل]],table5,9,0),\"\")","v":""},{"$f":"IFERROR(VLOOKUP(Table4[[#This Row],[رقم امر الشغل]],table5,10,0),\"\")","v":""},""]
[null,null,null,null,null,null,null,null,null,null,null,null,null,null,null,null,null,null,null,null,null,null,null,null,null,null,null,null,null,null,null,null,null,null,null,null,null,null,null,null,null,null,null,null,null,null,null,null,null,null,null,null,null,null,null,null,null,null,null,null,null,null,null,null,null,null,null,null,null,null,null,null,null,null,{"$f":"IFERROR(VLOOKUP(Table4[[#This Row],[رقم امر الشغل]],table5,9,0),\"\")","v":""},{"$f":"IFERROR(VLOOKUP(Table4[[#This Row],[رقم امر الشغل]],table5,10,0),\"\")","v":""},""]
[null,null,null,null,null,null,null,null,null,null,null,null,null,null,null,null,null,null,null,null,null,null,null,null,null,null,null,null,null,null,null,null,null,null,null,null,null,null,null,null,null,null,null,null,null,null,null,null,null,null,null,null,null,null,null,null,null,null,null,null,null,null,null,null,null,null,null,null,null,null,null,null,null,null,{"$f":"IFERROR(VLOOKUP(Table4[[#This Row],[رقم امر الشغل]],table5,9,0),\"\")","v":""},{"$f":"IFERROR(VLOOKUP(Table4[[#This Row],[رقم امر الشغل]],table5,10,0),\"\")","v":""},""]
[null,null,null,null,null,null,null,null,null,null,null,null,null,null,null,null,null,null,null,null,null,null,null,null,null,null,null,null,null,null,null,null,null,null,null,null,null,null,null,null,null,null,null,null,null,null,null,null,null,null,null,null,null,null,null,null,null,null,null,null,null,null,null,null,null,null,null,null,null,null,null,null,null,null,{"$f":"IFERROR(VLOOKUP(Table4[[#This Row],[رقم امر الشغل]],table5,9,0),\"\")","v":""},{"$f":"IFERROR(VLOOKUP(Table4[[#This Row],[رقم امر الشغل]],table5,10,0),\"\")","v":""},""]
[null,null,null,null,null,null,null,null,null,null,null,null,null,null,null,null,null,null,null,null,null,null,null,null,null,null,null,null,null,null,null,null,null,null,null,null,null,null,null,null,null,null,null,null,null,null,null,null,null,null,null,null,null,null,null,null,null,null,null,null,null,null,null,null,null,null,null,null,null,null,null,null,null,null,{"$f":"IFERROR(VLOOKUP(Table4[[#This Row],[رقم امر الشغل]],table5,9,0),\"\")","v":""},{"$f":"IFERROR(VLOOKUP(Table4[[#This Row],[رقم امر الشغل]],table5,10,0),\"\")","v":""},""]
[null,null,null,null,null,null,null,null,null,null,null,null,null,null,null,null,null,null,null,null,null,null,null,null,null,null,null,null,null,null,null,null,null,null,null,null,null,null,null,null,null,null,null,null,null,null,null,null,null,null,null,null,null,null,null,null,null,null,null,null,null,null,null,null,null,null,null,null,null,null,null,null,null,null,{"$f":"IFERROR(VLOOKUP(Table4[[#This Row],[رقم امر الشغل]],table5,9,0),\"\")","v":""},{"$f":"IFERROR(VLOOKUP(Table4[[#This Row],[رقم امر الشغل]],table5,10,0),\"\")","v":""},""]
[null,null,null,null,null,null,null,null,null,null,null,null,null,null,null,null,null,null,null,null,null,null,null,null,null,null,null,null,null,null,null,null,null,null,null,null,null,null,null,null,null,null,null,null,null,null,null,null,null,null,null,null,null,null,null,null,null,null,null,null,null,null,null,null,null,null,null,null,null,null,null,null,null,null,{"$f":"IFERROR(VLOOKUP(Table4[[#This Row],[رقم امر الشغل]],table5,9,0),\"\")","v":""},{"$f":"IFERROR(VLOOKUP(Table4[[#This Row],[رقم امر الشغل]],table5,10,0),\"\")","v":""},""]
[null,null,null,null,null,null,null,null,null,null,null,null,null,null,null,null,null,null,null,null,null,null,null,null,null,null,null,null,null,null,null,null,null,null,null,null,null,null,null,null,null,null,null,null,null,null,null,null,null,null,null,null,null,null,null,null,null,null,null,null,null,null,null,null,null,null,null,null,null,null,null,null,null,null,{"$f":"IFERROR(VLOOKUP(Table4[[#This Row],[رقم امر الشغل]],table5,9,0),\"\")","v":""},{"$f":"IFERROR(VLOOKUP(Table4[[#This Row],[رقم امر الشغل]],table5,10,0),\"\")","v":""},""]
[null,null,null,null,null,null,null,null,null,null,null,null,null,null,null,null,null,null,null,null,null,null,null,null,null,null,null,null,null,null,null,null,null,null,null,null,null,null,null,null,null,null,null,null,null,null,null,null,null,null,null,null,null,null,null,null,null,null,null,null,null,null,null,null,null,null,null,null,null,null,null,null,null,null,{"$f":"IFERROR(VLOOKUP(Table4[[#This Row],[رقم امر الشغل]],table5,9,0),\"\")","v":""},{"$f":"IFERROR(VLOOKUP(Table4[[#This Row],[رقم امر الشغل]],table5,10,0),\"\")","v":""},""]
[null,null,null,null,null,null,null,null,null,null,null,null,null,null,null,null,null,null,null,null,null,null,null,null,null,null,null,null,null,null,null,null,null,null,null,null,null,null,null,null,null,null,null,null,null,null,null,null,null,null,null,null,null,null,null,null,null,null,null,null,null,null,null,null,null,null,null,null,null,null,null,null,null,null,{"$f":"IFERROR(VLOOKUP(Table4[[#This Row],[رقم امر الشغل]],table5,9,0),\"\")","v":""},{"$f":"IFERROR(VLOOKUP(Table4[[#This Row],[رقم امر الشغل]],table5,10,0),\"\")","v":""},""]
[null,null,null,null,null,null,null,null,null,null,null,null,null,null,null,null,null,null,null,null,null,null,null,null,null,null,null,null,null,null,null,null,null,null,null,null,null,null,null,null,null,null,null,null,null,null,null,null,null,null,null,null,null,null,null,null,null,null,null,null,null,null,null,null,null,null,null,null,null,null,null,null,null,null,{"$f":"IFERROR(VLOOKUP(Table4[[#This Row],[رقم امر الشغل]],table5,9,0),\"\")","v":""},{"$f":"IFERROR(VLOOKUP(Table4[[#This Row],[رقم امر الشغل]],table5,10,0),\"\")","v":""},""]
[null,null,null,null,null,null,null,null,null,null,null,null,null,null,null,null,null,null,null,null,null,null,null,null,null,null,null,null,null,null,null,null,null,null,null,null,null,null,null,null,null,null,null,null,null,null,null,null,null,null,null,null,null,null,null,null,null,null,null,null,null,null,null,null,null,null,null,null,null,null,null,null,null,null,{"$f":"IFERROR(VLOOKUP(Table4[[#This Row],[رقم امر الشغل]],table5,9,0),\"\")","v":""},{"$f":"IFERROR(VLOOKUP(Table4[[#This Row],[رقم امر الشغل]],table5,10,0),\"\")","v":""},""]
[null,null,null,null,null,null,null,null,null,null,null,null,null,null,null,null,null,null,null,null,null,null,null,null,null,null,null,null,null,null,null,null,null,null,null,null,null,null,null,null,null,null,null,null,null,null,null,null,null,null,null,null,null,null,null,null,null,null,null,null,null,null,null,null,null,null,null,null,null,null,null,null,null,null,{"$f":"IFERROR(VLOOKUP(Table4[[#This Row],[رقم امر الشغل]],table5,9,0),\"\")","v":""},{"$f":"IFERROR(VLOOKUP(Table4[[#This Row],[رقم امر الشغل]],table5,10,0),\"\")","v":""},""]
[null,null,null,null,null,null,null,null,null,null,null,null,null,null,null,null,null,null,null,null,null,null,null,null,null,null,null,null,null,null,null,null,null,null,null,null,null,null,null,null,null,null,null,null,null,null,null,null,null,null,null,null,null,null,null,null,null,null,null,null,null,null,null,null,null,null,null,null,null,null,null,null,null,null,{"$f":"IFERROR(VLOOKUP(Table4[[#This Row],[رقم امر الشغل]],table5,9,0),\"\")","v":""},{"$f":"IFERROR(VLOOKUP(Table4[[#This Row],[رقم امر الشغل]],table5,10,0),\"\")","v":""},""]
[null,null,null,null,null,null,null,null,null,null,null,null,null,null,null,null,null,null,null,null,null,null,null,null,null,null,null,null,null,null,null,null,null,null,null,null,null,null,null,null,null,null,null,null,null,null,null,null,null,null,null,null,null,null,null,null,null,null,null,null,null,null,null,null,null,null,null,null,null,null,null,null,null,null,{"$f":"IFERROR(VLOOKUP(Table4[[#This Row],[رقم امر الشغل]],table5,9,0),\"\")","v":""},{"$f":"IFERROR(VLOOKUP(Table4[[#This Row],[رقم امر الشغل]],table5,10,0),\"\")","v":""},""]
[null,null,null,null,null,null,null,null,null,null,null,null,null,null,null,null,null,null,null,null,null,null,null,null,null,null,null,null,null,null,null,null,null,null,null,null,null,null,null,null,null,null,null,null,null,null,null,null,null,null,null,null,null,null,null,null,null,null,null,null,null,null,null,null,null,null,null,null,null,null,null,null,null,null,{"$f":"IFERROR(VLOOKUP(Table4[[#This Row],[رقم امر الشغل]],table5,9,0),\"\")","v":""},{"$f":"IFERROR(VLOOKUP(Table4[[#This Row],[رقم امر الشغل]],table5,10,0),\"\")","v":""},""]
[null,null,null,null,null,null,null,null,null,null,null,null,null,null,null,null,null,null,null,null,null,null,null,null,null,null,null,null,null,null,null,null,null,null,null,null,null,null,null,null,null,null,null,null,null,null,null,null,null,null,null,null,null,null,null,null,null,null,null,null,null,null,null,null,null,null,null,null,null,null,null,null,null,null,{"$f":"IFERROR(VLOOKUP(Table4[[#This Row],[رقم امر الشغل]],table5,9,0),\"\")","v":""},{"$f":"IFERROR(VLOOKUP(Table4[[#This Row],[رقم امر الشغل]],table5,10,0),\"\")","v":""},""]
[null,null,null,null,null,null,null,null,null,null,null,null,null,null,null,null,null,null,null,null,null,null,null,null,null,null,null,null,null,null,null,null,null,null,null,null,null,null,null,null,null,null,null,null,null,null,null,null,null,null,null,null,null,null,null,null,null,null,null,null,null,null,null,null,null,null,null,null,null,null,null,null,null,null,{"$f":"IFERROR(VLOOKUP(Table4[[#This Row],[رقم امر الشغل]],table5,9,0),\"\")","v":""},{"$f":"IFERROR(VLOOKUP(Table4[[#This Row],[رقم امر الشغل]],table5,10,0),\"\")","v":""},""]
[null,null,null,null,null,null,null,null,null,null,null,null,null,null,null,null,null,null,null,null,null,null,null,null,null,null,null,null,null,null,null,null,null,null,null,null,null,null,null,null,null,null,null,null,null,null,null,null,null,null,null,null,null,null,null,null,null,null,null,null,null,null,null,null,null,null,null,null,null,null,null,null,null,null,{"$f":"IFERROR(VLOOKUP(Table4[[#This Row],[رقم امر الشغل]],table5,9,0),\"\")","v":""},{"$f":"IFERROR(VLOOKUP(Table4[[#This Row],[رقم امر الشغل]],table5,10,0),\"\")","v":""},""]
[null,null,null,null,null,null,null,null,null,null,null,null,null,null,null,null,null,null,null,null,null,null,null,null,null,null,null,null,null,null,null,null,null,null,null,null,null,null,null,null,null,null,null,null,null,null,null,null,null,null,null,null,null,null,null,null,null,null,null,null,null,null,null,null,null,null,null,null,null,null,null,null,null,null,{"$f":"IFERROR(VLOOKUP(Table4[[#This Row],[رقم امر الشغل]],table5,9,0),\"\")","v":""},{"$f":"IFERROR(VLOOKUP(Table4[[#This Row],[رقم امر الشغل]],table5,10,0),\"\")","v":""},""]
[null,null,null,null,null,null,null,null,null,null,null,null,null,null,null,null,null,null,null,null,null,null,null,null,null,null,null,null,null,null,null,null,null,null,null,null,null,null,null,null,null,null,null,null,null,null,null,null,null,null,null,null,null,null,null,null,null,null,null,null,null,null,null,null,null,null,null,null,null,null,null,null,null,null,{"$f":"IFERROR(VLOOKUP(Table4[[#This Row],[رقم امر الشغل]],table5,9,0),\"\")","v":""},{"$f":"IFERROR(VLOOKUP(Table4[[#This Row],[رقم امر الشغل]],table5,10,0),\"\")","v":""},""]
[null,null,null,null,null,null,null,null,null,null,null,null,null,null,null,null,null,null,null,null,null,null,null,null,null,null,null,null,null,null,null,null,null,null,null,null,null,null,null,null,null,null,null,null,null,null,null,null,null,null,null,null,null,null,null,null,null,null,null,null,null,null,null,null,null,null,null,null,null,null,null,null,null,null,{"$f":"IFERROR(VLOOKUP(Table4[[#This Row],[رقم امر الشغل]],table5,9,0),\"\")","v":""},{"$f":"IFERROR(VLOOKUP(Table4[[#This Row],[رقم امر الشغل]],table5,10,0),\"\")","v":""},""]
[null,null,null,null,null,null,null,null,null,null,null,null,null,null,null,null,null,null,null,null,null,null,null,null,null,null,null,null,null,null,null,null,null,null,null,null,null,null,null,null,null,null,null,null,null,null,null,null,null,null,null,null,null,null,null,null,null,null,null,null,null,null,null,null,null,null,null,null,null,null,null,null,null,null,{"$f":"IFERROR(VLOOKUP(Table4[[#This Row],[رقم امر الشغل]],table5,9,0),\"\")","v":""},{"$f":"IFERROR(VLOOKUP(Table4[[#This Row],[رقم امر الشغل]],table5,10,0),\"\")","v":""},""]
[null,null,null,null,null,null,null,null,null,null,null,null,null,null,null,null,null,null,null,null,null,null,null,null,null,null,null,null,null,null,null,null,null,null,null,null,null,null,null,null,null,null,null,null,null,null,null,null,null,null,null,null,null,null,null,null,null,null,null,null,null,null,null,null,null,null,null,null,null,null,null,null,null,null,{"$f":"IFERROR(VLOOKUP(Table4[[#This Row],[رقم امر الشغل]],table5,9,0),\"\")","v":""},{"$f":"IFERROR(VLOOKUP(Table4[[#This Row],[رقم امر الشغل]],table5,10,0),\"\")","v":""},""]
[null,null,null,null,null,null,null,null,null,null,null,null,null,null,null,null,null,null,null,null,null,null,null,null,null,null,null,null,null,null,null,null,null,null,null,null,null,null,null,null,null,null,null,null,null,null,null,null,null,null,null,null,null,null,null,null,null,null,null,null,null,null,null,null,null,null,null,null,null,null,null,null,null,null,{"$f":"IFERROR(VLOOKUP(Table4[[#This Row],[رقم امر الشغل]],table5,9,0),\"\")","v":""},{"$f":"IFERROR(VLOOKUP(Table4[[#This Row],[رقم امر الشغل]],table5,10,0),\"\")","v":""},{"$f":"IFERROR((BW218-BX218),\"\")","v":""}]
[null,null,null,null,null,null,null,null,null,null,null,null,null,null,null,null,null,null,null,null,null,null,null,null,null,null,null,null,null,null,null,null,null,null,null,null,null,null,null,null,null,null,null,null,null,null,null,null,null,null,null,null,null,null,null,null,null,null,null,null,null,null,null,null,null,null,null,null,null,null,null,null,null,null,{"$f":"IFERROR(VLOOKUP(Table4[[#This Row],[رقم امر الشغل]],table5,9,0),\"\")","v":""},{"$f":"IFERROR(VLOOKUP(Table4[[#This Row],[رقم امر الشغل]],table5,10,0),\"\")","v":""},""]
[null,null,null,null,null,null,null,null,null,null,null,null,null,null,null,null,null,null,null,null,null,null,null,null,null,null,null,null,null,null,null,null,null,null,null,null,null,null,null,null,null,null,null,null,null,null,null,null,null,null,null,null,null,null,null,null,null,null,null,null,null,null,null,null,null,null,null,null,null,null,null,null,null,null,{"$f":"IFERROR(VLOOKUP(Table4[[#This Row],[رقم امر الشغل]],table5,9,0),\"\")","v":""},{"$f":"IFERROR(VLOOKUP(Table4[[#This Row],[رقم امر الشغل]],table5,10,0),\"\")","v":""},""]
[null,null,null,null,null,null,null,null,null,null,null,null,null,null,null,null,null,null,null,null,null,null,null,null,null,null,null,null,null,null,null,null,null,null,null,null,null,null,null,null,null,null,null,null,null,null,null,null,null,null,null,null,null,null,null,null,null,null,null,null,null,null,null,null,null,null,null,null,null,null,null,null,null,null,{"$f":"IFERROR(VLOOKUP(Table4[[#This Row],[رقم امر الشغل]],table5,9,0),\"\")","v":""},{"$f":"IFERROR(VLOOKUP(Table4[[#This Row],[رقم امر الشغل]],table5,10,0),\"\")","v":""},""]
[null,null,null,null,null,null,null,null,null,null,null,null,null,null,null,null,null,null,null,null,null,null,null,null,null,null,null,null,null,null,null,null,null,null,null,null,null,null,null,null,null,null,null,null,null,null,null,null,null,null,null,null,null,null,null,null,null,null,null,null,null,null,null,null,null,null,null,null,null,null,null,null,null,null,{"$f":"IFERROR(VLOOKUP(Table4[[#This Row],[رقم امر الشغل]],table5,9,0),\"\")","v":""},{"$f":"IFERROR(VLOOKUP(Table4[[#This Row],[رقم امر الشغل]],table5,10,0),\"\")","v":""},""]
[null,null,null,null,null,null,null,null,null,null,null,null,null,null,null,null,null,null,null,null,null,null,null,null,null,null,null,null,null,null,null,null,null,null,null,null,null,null,null,null,null,null,null,null,null,null,null,null,null,null,null,null,null,null,null,null,null,null,null,null,null,null,null,null,null,null,null,null,null,null,null,null,null,null,{"$f":"IFERROR(VLOOKUP(Table4[[#This Row],[رقم امر الشغل]],table5,9,0),\"\")","v":""},{"$f":"IFERROR(VLOOKUP(Table4[[#This Row],[رقم امر الشغل]],table5,10,0),\"\")","v":""},""]
[null,null,null,null,null,null,null,null,null,null,null,null,null,null,null,null,null,null,null,null,null,null,null,null,null,null,null,null,null,null,null,null,null,null,null,null,null,null,null,null,null,null,null,null,null,null,null,null,null,null,null,null,null,null,null,null,null,null,null,null,null,null,null,null,null,null,null,null,null,null,null,null,null,null,{"$f":"IFERROR(VLOOKUP(Table4[[#This Row],[رقم امر الشغل]],table5,9,0),\"\")","v":""},{"$f":"IFERROR(VLOOKUP(Table4[[#This Row],[رقم امر الشغل]],table5,10,0),\"\")","v":""},""]
[null,null,null,null,null,null,null,null,null,null,null,null,null,null,null,null,null,null,null,null,null,null,null,null,null,null,null,null,null,null,null,null,null,null,null,null,null,null,null,null,null,null,null,null,null,null,null,null,null,null,null,null,null,null,null,null,null,null,null,null,null,null,null,null,null,null,null,null,null,null,null,null,null,null,{"$f":"IFERROR(VLOOKUP(Table4[[#This Row],[رقم امر الشغل]],table5,9,0),\"\")","v":""},{"$f":"IFERROR(VLOOKUP(Table4[[#This Row],[رقم امر الشغل]],table5,10,0),\"\")","v":""},""]
[null,null,null,null,null,null,null,null,null,null,null,null,null,null,null,null,null,null,null,null,null,null,null,null,null,null,null,null,null,null,null,null,null,null,null,null,null,null,null,null,null,null,null,null,null,null,null,null,null,null,null,null,null,null,null,null,null,null,null,null,null,null,null,null,null,null,null,null,null,null,null,null,null,null,{"$f":"IFERROR(VLOOKUP(Table4[[#This Row],[رقم امر الشغل]],table5,9,0),\"\")","v":""},{"$f":"IFERROR(VLOOKUP(Table4[[#This Row],[رقم امر الشغل]],table5,10,0),\"\")","v":""},""]
[null,null,null,null,null,null,null,null,null,null,null,null,null,null,null,null,null,null,null,null,null,null,null,null,null,null,null,null,null,null,null,null,null,null,null,null,null,null,null,null,null,null,null,null,null,null,null,null,null,null,null,null,null,null,null,null,null,null,null,null,null,null,null,null,null,null,null,null,null,null,null,null,null,null,{"$f":"IFERROR(VLOOKUP(Table4[[#This Row],[رقم امر الشغل]],table5,9,0),\"\")","v":""},{"$f":"IFERROR(VLOOKUP(Table4[[#This Row],[رقم امر الشغل]],table5,10,0),\"\")","v":""},""]
[null,null,null,null,null,null,null,null,null,null,null,null,null,null,null,null,null,null,null,null,null,null,null,null,null,null,null,null,null,null,null,null,null,null,null,null,null,null,null,null,null,null,null,null,null,null,null,null,null,null,null,null,null,null,null,null,null,null,null,null,null,null,null,null,null,null,null,null,null,null,null,null,null,null,{"$f":"IFERROR(VLOOKUP(Table4[[#This Row],[رقم امر الشغل]],table5,9,0),\"\")","v":""},{"$f":"IFERROR(VLOOKUP(Table4[[#This Row],[رقم امر الشغل]],table5,10,0),\"\")","v":""},""]
[null,null,null,null,null,null,null,null,null,null,null,null,null,null,null,null,null,null,null,null,null,null,null,null,null,null,null,null,null,null,null,null,null,null,null,null,null,null,null,null,null,null,null,null,null,null,null,null,null,null,null,null,null,null,null,null,null,null,null,null,null,null,null,null,null,null,null,null,null,null,null,null,null,null,{"$f":"IFERROR(VLOOKUP(Table4[[#This Row],[رقم امر الشغل]],table5,9,0),\"\")","v":""},{"$f":"IFERROR(VLOOKUP(Table4[[#This Row],[رقم امر الشغل]],table5,10,0),\"\")","v":""},""]
[null,null,null,null,null,null,null,null,null,null,null,null,null,null,null,null,null,null,null,null,null,null,null,null,null,null,null,null,null,null,null,null,null,null,null,null,null,null,null,null,null,null,null,null,null,null,null,null,null,null,null,null,null,null,null,null,null,null,null,null,null,null,null,null,null,null,null,null,null,null,null,null,null,null,{"$f":"IFERROR(VLOOKUP(Table4[[#This Row],[رقم امر الشغل]],table5,9,0),\"\")","v":""},{"$f":"IFERROR(VLOOKUP(Table4[[#This Row],[رقم امر الشغل]],table5,10,0),\"\")","v":""},""]
[null,null,null,null,null,null,null,null,null,null,null,null,null,null,null,null,null,null,null,null,null,null,null,null,null,null,null,null,null,null,null,null,null,null,null,null,null,null,null,null,null,null,null,null,null,null,null,null,null,null,null,null,null,null,null,null,null,null,null,null,null,null,null,null,null,null,null,null,null,null,null,null,null,null,{"$f":"IFERROR(VLOOKUP(Table4[[#This Row],[رقم امر الشغل]],table5,9,0),\"\")","v":""},{"$f":"IFERROR(VLOOKUP(Table4[[#This Row],[رقم امر الشغل]],table5,10,0),\"\")","v":""},""]
[null,null,null,null,null,null,null,null,null,null,null,null,null,null,null,null,null,null,null,null,null,null,null,null,null,null,null,null,null,null,null,null,null,null,null,null,null,null,null,null,null,null,null,null,null,null,null,null,null,null,null,null,null,null,null,null,null,null,null,null,null,null,null,null,null,null,null,null,null,null,null,null,null,null,{"$f":"IFERROR(VLOOKUP(Table4[[#This Row],[رقم امر الشغل]],table5,9,0),\"\")","v":""},{"$f":"IFERROR(VLOOKUP(Table4[[#This Row],[رقم امر الشغل]],table5,10,0),\"\")","v":""},""]
[null,null,null,null,null,null,null,null,null,null,null,null,null,null,null,null,null,null,null,null,null,null,null,null,null,null,null,null,null,null,null,null,null,null,null,null,null,null,null,null,null,null,null,null,null,null,null,null,null,null,null,null,null,null,null,null,null,null,null,null,null,null,null,null,null,null,null,null,null,null,null,null,null,null,{"$f":"IFERROR(VLOOKUP(Table4[[#This Row],[رقم امر الشغل]],table5,9,0),\"\")","v":""},{"$f":"IFERROR(VLOOKUP(Table4[[#This Row],[رقم امر الشغل]],table5,10,0),\"\")","v":""},""]
[null,null,null,null,null,null,null,null,null,null,null,null,null,null,null,null,null,null,null,null,null,null,null,null,null,null,null,null,null,null,null,null,null,null,null,null,null,null,null,null,null,null,null,null,null,null,null,null,null,null,null,null,null,null,null,null,null,null,null,null,null,null,null,null,null,null,null,null,null,null,null,null,null,null,{"$f":"IFERROR(VLOOKUP(Table4[[#This Row],[رقم امر الشغل]],table5,9,0),\"\")","v":""},{"$f":"IFERROR(VLOOKUP(Table4[[#This Row],[رقم امر الشغل]],table5,10,0),\"\")","v":""},""]
[null,null,null,null,null,null,null,null,null,null,null,null,null,null,null,null,null,null,null,null,null,null,null,null,null,null,null,null,null,null,null,null,null,null,null,null,null,null,null,null,null,null,null,null,null,null,null,null,null,null,null,null,null,null,null,null,null,null,null,null,null,null,null,null,null,null,null,null,null,null,null,null,null,null,{"$f":"IFERROR(VLOOKUP(Table4[[#This Row],[رقم امر الشغل]],table5,9,0),\"\")","v":""},{"$f":"IFERROR(VLOOKUP(Table4[[#This Row],[رقم امر الشغل]],table5,10,0),\"\")","v":""},""]
[null,null,null,null,null,null,null,null,null,null,null,null,null,null,null,null,null,null,null,null,null,null,null,null,null,null,null,null,null,null,null,null,null,null,null,null,null,null,null,null,null,null,null,null,null,null,null,null,null,null,null,null,null,null,null,null,null,null,null,null,null,null,null,null,null,null,null,null,null,null,null,null,null,null,{"$f":"IFERROR(VLOOKUP(Table4[[#This Row],[رقم امر الشغل]],table5,9,0),\"\")","v":""},{"$f":"IFERROR(VLOOKUP(Table4[[#This Row],[رقم امر الشغل]],table5,10,0),\"\")","v":""},""]
[null,null,null,null,null,null,null,null,null,null,null,null,null,null,null,null,null,null,null,null,null,null,null,null,null,null,null,null,null,null,null,null,null,null,null,null,null,null,null,null,null,null,null,null,null,null,null,null,null,null,null,null,null,null,null,null,null,null,null,null,null,null,null,null,null,null,null,null,null,null,null,null,null,null,{"$f":"IFERROR(VLOOKUP(Table4[[#This Row],[رقم امر الشغل]],table5,9,0),\"\")","v":""},{"$f":"IFERROR(VLOOKUP(Table4[[#This Row],[رقم امر الشغل]],table5,10,0),\"\")","v":""},""]
[null,null,null,null,null,null,null,null,null,null,null,null,null,null,null,null,null,null,null,null,null,null,null,null,null,null,null,null,null,null,null,null,null,null,null,null,null,null,null,null,null,null,null,null,null,null,null,null,null,null,null,null,null,null,null,null,null,null,null,null,null,null,null,null,null,null,null,null,null,null,null,null,null,null,{"$f":"IFERROR(VLOOKUP(Table4[[#This Row],[رقم امر الشغل]],table5,9,0),\"\")","v":""},{"$f":"IFERROR(VLOOKUP(Table4[[#This Row],[رقم امر الشغل]],table5,10,0),\"\")","v":""},""]
[null,null,null,null,null,null,null,null,null,null,null,null,null,null,null,null,null,null,null,null,null,null,null,null,null,null,null,null,null,null,null,null,null,null,null,null,null,null,null,null,null,null,null,null,null,null,null,null,null,null,null,null,null,null,null,null,null,null,null,null,null,null,null,null,null,null,null,null,null,null,null,null,null,null,{"$f":"IFERROR(VLOOKUP(Table4[[#This Row],[رقم امر الشغل]],table5,9,0),\"\")","v":""},{"$f":"IFERROR(VLOOKUP(Table4[[#This Row],[رقم امر الشغل]],table5,10,0),\"\")","v":""},""]
[null,null,null,null,null,null,null,null,null,null,null,null,null,null,null,null,null,null,null,null,null,null,null,null,null,null,null,null,null,null,null,null,null,null,null,null,null,null,null,null,null,null,null,null,null,null,null,null,null,null,null,null,null,null,null,null,null,null,null,null,null,null,null,null,null,null,null,null,null,null,null,null,null,null,{"$f":"IFERROR(VLOOKUP(Table4[[#This Row],[رقم امر الشغل]],table5,9,0),\"\")","v":""},{"$f":"IFERROR(VLOOKUP(Table4[[#This Row],[رقم امر الشغل]],table5,10,0),\"\")","v":""},""]
[null,null,null,null,null,null,null,null,null,null,null,null,null,null,null,null,null,null,null,null,null,null,null,null,null,null,null,null,null,null,null,null,null,null,null,null,null,null,null,null,null,null,null,null,null,null,null,null,null,null,null,null,null,null,null,null,null,null,null,null,null,null,null,null,null,null,null,null,null,null,null,null,null,null,{"$f":"IFERROR(VLOOKUP(Table4[[#This Row],[رقم امر الشغل]],table5,9,0),\"\")","v":""},{"$f":"IFERROR(VLOOKUP(Table4[[#This Row],[رقم امر الشغل]],table5,10,0),\"\")","v":""},""]
[null,null,null,null,null,null,null,null,null,null,null,null,null,null,null,null,null,null,null,null,null,null,null,null,null,null,null,null,null,null,null,null,null,null,null,null,null,null,null,null,null,null,null,null,null,null,null,null,null,null,null,null,null,null,null,null,null,null,null,null,null,null,null,null,null,null,null,null,null,null,null,null,null,null,{"$f":"IFERROR(VLOOKUP(Table4[[#This Row],[رقم امر الشغل]],table5,9,0),\"\")","v":""},{"$f":"IFERROR(VLOOKUP(Table4[[#This Row],[رقم امر الشغل]],table5,10,0),\"\")","v":""},""]
[null,null,null,null,null,null,null,null,null,null,null,null,null,null,null,null,null,null,null,null,null,null,null,null,null,null,null,null,null,null,null,null,null,null,null,null,null,null,null,null,null,null,null,null,null,null,null,null,null,null,null,null,null,null,null,null,null,null,null,null,null,null,null,null,null,null,null,null,null,null,null,null,null,null,{"$f":"IFERROR(VLOOKUP(Table4[[#This Row],[رقم امر الشغل]],table5,9,0),\"\")","v":""},{"$f":"IFERROR(VLOOKUP(Table4[[#This Row],[رقم امر الشغل]],table5,10,0),\"\")","v":""},""]
[null,null,null,null,null,null,null,null,null,null,null,null,null,null,null,null,null,null,null,null,null,null,null,null,null,null,null,null,null,null,null,null,null,null,null,null,null,null,null,null,null,null,null,null,null,null,null,null,null,null,null,null,null,null,null,null,null,null,null,null,null,null,null,null,null,null,null,null,null,null,null,null,null,null,{"$f":"IFERROR(VLOOKUP(Table4[[#This Row],[رقم امر الشغل]],table5,9,0),\"\")","v":""},{"$f":"IFERROR(VLOOKUP(Table4[[#This Row],[رقم امر الشغل]],table5,10,0),\"\")","v":""},""]
[null,null,null,null,null,null,null,null,null,null,null,null,null,null,null,null,null,null,null,null,null,null,null,null,null,null,null,null,null,null,null,null,null,null,null,null,null,null,null,null,null,null,null,null,null,null,null,null,null,null,null,null,null,null,null,null,null,null,null,null,null,null,null,null,null,null,null,null,null,null,null,null,null,null,{"$f":"IFERROR(VLOOKUP(Table4[[#This Row],[رقم امر الشغل]],table5,9,0),\"\")","v":""},{"$f":"IFERROR(VLOOKUP(Table4[[#This Row],[رقم امر الشغل]],table5,10,0),\"\")","v":""},""]
[null,null,null,null,null,null,null,null,null,null,null,null,null,null,null,null,null,null,null,null,null,null,null,null,null,null,null,null,null,null,null,null,null,null,null,null,null,null,null,null,null,null,null,null,null,null,null,null,null,null,null,null,null,null,null,null,null,null,null,null,null,null,null,null,null,null,null,null,null,null,null,null,null,null,{"$f":"IFERROR(VLOOKUP(Table4[[#This Row],[رقم امر الشغل]],table5,9,0),\"\")","v":""},{"$f":"IFERROR(VLOOKUP(Table4[[#This Row],[رقم امر الشغل]],table5,10,0),\"\")","v":""},""]
[null,null,null,null,null,null,null,null,null,null,null,null,null,null,null,null,null,null,null,null,null,null,null,null,null,null,null,null,null,null,null,null,null,null,null,null,null,null,null,null,null,null,null,null,null,null,null,null,null,null,null,null,null,null,null,null,null,null,null,null,null,null,null,null,null,null,null,null,null,null,null,null,null,null,{"$f":"IFERROR(VLOOKUP(Table4[[#This Row],[رقم امر الشغل]],table5,9,0),\"\")","v":""},{"$f":"IFERROR(VLOOKUP(Table4[[#This Row],[رقم امر الشغل]],table5,10,0),\"\")","v":""},""]
[null,null,null,null,null,null,null,null,null,null,null,null,null,null,null,null,null,null,null,null,null,null,null,null,null,null,null,null,null,null,null,null,null,null,null,null,null,null,null,null,null,null,null,null,null,null,null,null,null,null,null,null,null,null,null,null,null,null,null,null,null,null,null,null,null,null,null,null,null,null,null,null,null,null,{"$f":"IFERROR(VLOOKUP(Table4[[#This Row],[رقم امر الشغل]],table5,9,0),\"\")","v":""},{"$f":"IFERROR(VLOOKUP(Table4[[#This Row],[رقم امر الشغل]],table5,10,0),\"\")","v":""},""]
[null,null,null,null,null,null,null,null,null,null,null,null,null,null,null,null,null,null,null,null,null,null,null,null,null,null,null,null,null,null,null,null,null,null,null,null,null,null,null,null,null,null,null,null,null,null,null,null,null,null,null,null,null,null,null,null,null,null,null,null,null,null,null,null,null,null,null,null,null,null,null,null,null,null,{"$f":"IFERROR(VLOOKUP(Table4[[#This Row],[رقم امر الشغل]],table5,9,0),\"\")","v":""},{"$f":"IFERROR(VLOOKUP(Table4[[#This Row],[رقم امر الشغل]],table5,10,0),\"\")","v":""},""]
[null,null,null,null,null,null,null,null,null,null,null,null,null,null,null,null,null,null,null,null,null,null,null,null,null,null,null,null,null,null,null,null,null,null,null,null,null,null,null,null,null,null,null,null,null,null,null,null,null,null,null,null,null,null,null,null,null,null,null,null,null,null,null,null,null,null,null,null,null,null,null,null,null,null,{"$f":"IFERROR(VLOOKUP(Table4[[#This Row],[رقم امر الشغل]],table5,9,0),\"\")","v":""},{"$f":"IFERROR(VLOOKUP(Table4[[#This Row],[رقم امر الشغل]],table5,10,0),\"\")","v":""},""]
[null,null,null,null,null,null,null,null,null,null,null,null,null,null,null,null,null,null,null,null,null,null,null,null,null,null,null,null,null,null,null,null,null,null,null,null,null,null,null,null,null,null,null,null,null,null,null,null,null,null,null,null,null,null,null,null,null,null,null,null,null,null,null,null,null,null,null,null,null,null,null,null,null,null,{"$f":"IFERROR(VLOOKUP(Table4[[#This Row],[رقم امر الشغل]],table5,9,0),\"\")","v":""},{"$f":"IFERROR(VLOOKUP(Table4[[#This Row],[رقم امر الشغل]],table5,10,0),\"\")","v":""},""]
[null,null,null,null,null,null,null,null,null,null,null,null,null,null,null,null,null,null,null,null,null,null,null,null,null,null,null,null,null,null,null,null,null,null,null,null,null,null,null,null,null,null,null,null,null,null,null,null,null,null,null,null,null,null,null,null,null,null,null,null,null,null,null,null,null,null,null,null,null,null,null,null,null,null,{"$f":"IFERROR(VLOOKUP(Table4[[#This Row],[رقم امر الشغل]],table5,9,0),\"\")","v":""},{"$f":"IFERROR(VLOOKUP(Table4[[#This Row],[رقم امر الشغل]],table5,10,0),\"\")","v":""},""]
[null,null,null,null,null,null,null,null,null,null,null,null,null,null,null,null,null,null,null,null,null,null,null,null,null,null,null,null,null,null,null,null,null,null,null,null,null,null,null,null,null,null,null,null,null,null,null,null,null,null,null,null,null,null,null,null,null,null,null,null,null,null,null,null,null,null,null,null,null,null,null,null,null,null,{"$f":"IFERROR(VLOOKUP(Table4[[#This Row],[رقم امر الشغل]],table5,9,0),\"\")","v":""},{"$f":"IFERROR(VLOOKUP(Table4[[#This Row],[رقم امر الشغل]],table5,10,0),\"\")","v":""},""]
[null,null,null,null,null,null,null,null,null,null,null,null,null,null,null,null,null,null,null,null,null,null,null,null,null,null,null,null,null,null,null,null,null,null,null,null,null,null,null,null,null,null,null,null,null,null,null,null,null,null,null,null,null,null,null,null,null,null,null,null,null,null,null,null,null,null,null,null,null,null,null,null,null,null,{"$f":"IFERROR(VLOOKUP(Table4[[#This Row],[رقم امر الشغل]],table5,9,0),\"\")","v":""},{"$f":"IFERROR(VLOOKUP(Table4[[#This Row],[رقم امر الشغل]],table5,10,0),\"\")","v":""},""]
[null,null,null,null,null,null,null,null,null,null,null,null,null,null,null,null,null,null,null,null,null,null,null,null,null,null,null,null,null,null,null,null,null,null,null,null,null,null,null,null,null,null,null,null,null,null,null,null,null,null,null,null,null,null,null,null,null,null,null,null,null,null,null,null,null,null,null,null,null,null,null,null,null,null,{"$f":"IFERROR(VLOOKUP(Table4[[#This Row],[رقم امر الشغل]],table5,9,0),\"\")","v":""},{"$f":"IFERROR(VLOOKUP(Table4[[#This Row],[رقم امر الشغل]],table5,10,0),\"\")","v":""},""]
[null,null,null,null,null,null,null,null,null,null,null,null,null,null,null,null,null,null,null,null,null,null,null,null,null,null,null,null,null,null,null,null,null,null,null,null,null,null,null,null,null,null,null,null,null,null,null,null,null,null,null,null,null,null,null,null,null,null,null,null,null,null,null,null,null,null,null,null,null,null,null,null,null,null,{"$f":"IFERROR(VLOOKUP(Table4[[#This Row],[رقم امر الشغل]],table5,9,0),\"\")","v":""},{"$f":"IFERROR(VLOOKUP(Table4[[#This Row],[رقم امر الشغل]],table5,10,0),\"\")","v":""},""]
[null,null,null,null,null,null,null,null,null,null,null,null,null,null,null,null,null,null,null,null,null,null,null,null,null,null,null,null,null,null,null,null,null,null,null,null,null,null,null,null,null,null,null,null,null,null,null,null,null,null,null,null,null,null,null,null,null,null,null,null,null,null,null,null,null,null,null,null,null,null,null,null,null,null,{"$f":"IFERROR(VLOOKUP(Table4[[#This Row],[رقم امر الشغل]],table5,9,0),\"\")","v":""},{"$f":"IFERROR(VLOOKUP(Table4[[#This Row],[رقم امر الشغل]],table5,10,0),\"\")","v":""},""]
[null,null,null,null,null,null,null,null,null,null,null,null,null,null,null,null,null,null,null,null,null,null,null,null,null,null,null,null,null,null,null,null,null,null,null,null,null,null,null,null,null,null,null,null,null,null,null,null,null,null,null,null,null,null,null,null,null,null,null,null,null,null,null,null,null,null,null,null,null,null,null,null,null,null,{"$f":"IFERROR(VLOOKUP(Table4[[#This Row],[رقم امر الشغل]],table5,9,0),\"\")","v":""},{"$f":"IFERROR(VLOOKUP(Table4[[#This Row],[رقم امر الشغل]],table5,10,0),\"\")","v":""},""]
[null,null,null,null,null,null,null,null,null,null,null,null,null,null,null,null,null,null,null,null,null,null,null,null,null,null,null,null,null,null,null,null,null,null,null,null,null,null,null,null,null,null,null,null,null,null,null,null,null,null,null,null,null,null,null,null,null,null,null,null,null,null,null,null,null,null,null,null,null,null,null,null,null,null,{"$f":"IFERROR(VLOOKUP(Table4[[#This Row],[رقم امر الشغل]],table5,9,0),\"\")","v":""},{"$f":"IFERROR(VLOOKUP(Table4[[#This Row],[رقم امر الشغل]],table5,10,0),\"\")","v":""},""]
[null,null,null,null,null,null,null,null,null,null,null,null,null,null,null,null,null,null,null,null,null,null,null,null,null,null,null,null,null,null,null,null,null,null,null,null,null,null,null,null,null,null,null,null,null,null,null,null,null,null,null,null,null,null,null,null,null,null,null,null,null,null,null,null,null,null,null,null,null,null,null,null,null,null,{"$f":"IFERROR(VLOOKUP(Table4[[#This Row],[رقم امر الشغل]],table5,9,0),\"\")","v":""},{"$f":"IFERROR(VLOOKUP(Table4[[#This Row],[رقم امر الشغل]],table5,10,0),\"\")","v":""},""]
[null,null,null,null,null,null,null,null,null,null,null,null,null,null,null,null,null,null,null,null,null,null,null,null,null,null,null,null,null,null,null,null,null,null,null,null,null,null,null,null,null,null,null,null,null,null,null,null,null,null,null,null,null,null,null,null,null,null,null,null,null,null,null,null,null,null,null,null,null,null,null,null,null,null,{"$f":"IFERROR(VLOOKUP(Table4[[#This Row],[رقم امر الشغل]],table5,9,0),\"\")","v":""},{"$f":"IFERROR(VLOOKUP(Table4[[#This Row],[رقم امر الشغل]],table5,10,0),\"\")","v":""},""]
[null,null,null,null,null,null,null,null,null,null,null,null,null,null,null,null,null,null,null,null,null,null,null,null,null,null,null,null,null,null,null,null,null,null,null,null,null,null,null,null,null,null,null,null,null,null,null,null,null,null,null,null,null,null,null,null,null,null,null,null,null,null,null,null,null,null,null,null,null,null,null,null,null,null,{"$f":"IFERROR(VLOOKUP(Table4[[#This Row],[رقم امر الشغل]],table5,9,0),\"\")","v":""},{"$f":"IFERROR(VLOOKUP(Table4[[#This Row],[رقم امر الشغل]],table5,10,0),\"\")","v":""},""]
[null,null,null,null,null,null,null,null,null,null,null,null,null,null,null,null,null,null,null,null,null,null,null,null,null,null,null,null,null,null,null,null,null,null,null,null,null,null,null,null,null,null,null,null,null,null,null,null,null,null,null,null,null,null,null,null,null,null,null,null,null,null,null,null,null,null,null,null,null,null,null,null,null,null,{"$f":"IFERROR(VLOOKUP(Table4[[#This Row],[رقم امر الشغل]],table5,9,0),\"\")","v":""},{"$f":"IFERROR(VLOOKUP(Table4[[#This Row],[رقم امر الشغل]],table5,10,0),\"\")","v":""},""]
[null,null,null,null,null,null,null,null,null,null,null,null,null,null,null,null,null,null,null,null,null,null,null,null,null,null,null,null,null,null,null,null,null,null,null,null,null,null,null,null,null,null,null,null,null,null,null,null,null,null,null,null,null,null,null,null,null,null,null,null,null,null,null,null,null,null,null,null,null,null,null,null,null,null,{"$f":"IFERROR(VLOOKUP(Table4[[#This Row],[رقم امر الشغل]],table5,9,0),\"\")","v":""},{"$f":"IFERROR(VLOOKUP(Table4[[#This Row],[رقم امر الشغل]],table5,10,0),\"\")","v":""},""]
[null,null,null,null,null,null,null,null,null,null,null,null,null,null,null,null,null,null,null,null,null,null,null,null,null,null,null,null,null,null,null,null,null,null,null,null,null,null,null,null,null,null,null,null,null,null,null,null,null,null,null,null,null,null,null,null,null,null,null,null,null,null,null,null,null,null,null,null,null,null,null,null,null,null,{"$f":"IFERROR(VLOOKUP(Table4[[#This Row],[رقم امر الشغل]],table5,9,0),\"\")","v":""},{"$f":"IFERROR(VLOOKUP(Table4[[#This Row],[رقم امر الشغل]],table5,10,0),\"\")","v":""},""]
[null,null,null,null,null,null,null,null,null,null,null,null,null,null,null,null,null,null,null,null,null,null,null,null,null,null,null,null,null,null,null,null,null,null,null,null,null,null,null,null,null,null,null,null,null,null,null,null,null,null,null,null,null,null,null,null,null,null,null,null,null,null,null,null,null,null,null,null,null,null,null,null,null,null,{"$f":"IFERROR(VLOOKUP(Table4[[#This Row],[رقم امر الشغل]],table5,9,0),\"\")","v":""},{"$f":"IFERROR(VLOOKUP(Table4[[#This Row],[رقم امر الشغل]],table5,10,0),\"\")","v":""},""]
[null,null,null,null,null,null,null,null,null,null,null,null,null,null,null,null,null,null,null,null,null,null,null,null,null,null,null,null,null,null,null,null,null,null,null,null,null,null,null,null,null,null,null,null,null,null,null,null,null,null,null,null,null,null,null,null,null,null,null,null,null,null,null,null,null,null,null,null,null,null,null,null,null,null,{"$f":"IFERROR(VLOOKUP(Table4[[#This Row],[رقم امر الشغل]],table5,9,0),\"\")","v":""},{"$f":"IFERROR(VLOOKUP(Table4[[#This Row],[رقم امر الشغل]],table5,10,0),\"\")","v":""},""]
[null,null,null,null,null,null,null,null,null,null,null,null,null,null,null,null,null,null,null,null,null,null,null,null,null,null,null,null,null,null,null,null,null,null,null,null,null,null,null,null,null,null,null,null,null,null,null,null,null,null,null,null,null,null,null,null,null,null,null,null,null,null,null,null,null,null,null,null,null,null,null,null,null,null,{"$f":"IFERROR(VLOOKUP(Table4[[#This Row],[رقم امر الشغل]],table5,9,0),\"\")","v":""},{"$f":"IFERROR(VLOOKUP(Table4[[#This Row],[رقم امر الشغل]],table5,10,0),\"\")","v":""},""]
[null,null,null,null,null,null,null,null,null,null,null,null,null,null,null,null,null,null,null,null,null,null,null,null,null,null,null,null,null,null,null,null,null,null,null,null,null,null,null,null,null,null,null,null,null,null,null,null,null,null,null,null,null,null,null,null,null,null,null,null,null,null,null,null,null,null,null,null,null,null,null,null,null,null,{"$f":"IFERROR(VLOOKUP(Table4[[#This Row],[رقم امر الشغل]],table5,9,0),\"\")","v":""},{"$f":"IFERROR(VLOOKUP(Table4[[#This Row],[رقم امر الشغل]],table5,10,0),\"\")","v":""},""]
[null,null,null,null,null,null,null,null,null,null,null,null,null,null,null,null,null,null,null,null,null,null,null,null,null,null,null,null,null,null,null,null,null,null,null,null,null,null,null,null,null,null,null,null,null,null,null,null,null,null,null,null,null,null,null,null,null,null,null,null,null,null,null,null,null,null,null,null,null,null,null,null,null,null,{"$f":"IFERROR(VLOOKUP(Table4[[#This Row],[رقم امر الشغل]],table5,9,0),\"\")","v":""},{"$f":"IFERROR(VLOOKUP(Table4[[#This Row],[رقم امر الشغل]],table5,10,0),\"\")","v":""},""]
[null,null,null,null,null,null,null,null,null,null,null,null,null,null,null,null,null,null,null,null,null,null,null,null,null,null,null,null,null,null,null,null,null,null,null,null,null,null,null,null,null,null,null,null,null,null,null,null,null,null,null,null,null,null,null,null,null,null,null,null,null,null,null,null,null,null,null,null,null,null,null,null,null,null,{"$f":"IFERROR(VLOOKUP(Table4[[#This Row],[رقم امر الشغل]],table5,9,0),\"\")","v":""},{"$f":"IFERROR(VLOOKUP(Table4[[#This Row],[رقم امر الشغل]],table5,10,0),\"\")","v":""},""]
[null,null,null,null,null,null,null,null,null,null,null,null,null,null,null,null,null,null,null,null,null,null,null,null,null,null,null,null,null,null,null,null,null,null,null,null,null,null,null,null,null,null,null,null,null,null,null,null,null,null,null,null,null,null,null,null,null,null,null,null,null,null,null,null,null,null,null,null,null,null,null,null,null,null,{"$f":"IFERROR(VLOOKUP(Table4[[#This Row],[رقم امر الشغل]],table5,9,0),\"\")","v":""},{"$f":"IFERROR(VLOOKUP(Table4[[#This Row],[رقم امر الشغل]],table5,10,0),\"\")","v":""},""]
[null,null,null,null,null,null,null,null,null,null,null,null,null,null,null,null,null,null,null,null,null,null,null,null,null,null,null,null,null,null,null,null,null,null,null,null,null,null,null,null,null,null,null,null,null,null,null,null,null,null,null,null,null,null,null,null,null,null,null,null,null,null,null,null,null,null,null,null,null,null,null,null,null,null,{"$f":"IFERROR(VLOOKUP(Table4[[#This Row],[رقم امر الشغل]],table5,9,0),\"\")","v":""},{"$f":"IFERROR(VLOOKUP(Table4[[#This Row],[رقم امر الشغل]],table5,10,0),\"\")","v":""},""]
[null,null,null,null,null,null,null,null,null,null,null,null,null,null,null,null,null,null,null,null,null,null,null,null,null,null,null,null,null,null,null,null,null,null,null,null,null,null,null,null,null,null,null,null,null,null,null,null,null,null,null,null,null,null,null,null,null,null,null,null,null,null,null,null,null,null,null,null,null,null,null,null,null,null,{"$f":"IFERROR(VLOOKUP(Table4[[#This Row],[رقم امر الشغل]],table5,9,0),\"\")","v":""},{"$f":"IFERROR(VLOOKUP(Table4[[#This Row],[رقم امر الشغل]],table5,10,0),\"\")","v":""},""]
[null,null,null,null,null,null,null,null,null,null,null,null,null,null,null,null,null,null,null,null,null,null,null,null,null,null,null,null,null,null,null,null,null,null,null,null,null,null,null,null,null,null,null,null,null,null,null,null,null,null,null,null,null,null,null,null,null,null,null,null,null,null,null,null,null,null,null,null,null,null,null,null,null,null,{"$f":"IFERROR(VLOOKUP(Table4[[#This Row],[رقم امر الشغل]],table5,9,0),\"\")","v":""},{"$f":"IFERROR(VLOOKUP(Table4[[#This Row],[رقم امر الشغل]],table5,10,0),\"\")","v":""},""]
[null,null,null,null,null,null,null,null,null,null,null,null,null,null,null,null,null,null,null,null,null,null,null,null,null,null,null,null,null,null,null,null,null,null,null,null,null,null,null,null,null,null,null,null,null,null,null,null,null,null,null,null,null,null,null,null,null,null,null,null,null,null,null,null,null,null,null,null,null,null,null,null,null,null,{"$f":"IFERROR(VLOOKUP(Table4[[#This Row],[رقم امر الشغل]],table5,9,0),\"\")","v":""},{"$f":"IFERROR(VLOOKUP(Table4[[#This Row],[رقم امر الشغل]],table5,10,0),\"\")","v":""},""]
[null,null,null,null,null,null,null,null,null,null,null,null,null,null,null,null,null,null,null,null,null,null,null,null,null,null,null,null,null,null,null,null,null,null,null,null,null,null,null,null,null,null,null,null,null,null,null,null,null,null,null,null,null,null,null,null,null,null,null,null,null,null,null,null,null,null,null,null,null,null,null,null,null,null,{"$f":"IFERROR(VLOOKUP(Table4[[#This Row],[رقم امر الشغل]],table5,9,0),\"\")","v":""},{"$f":"IFERROR(VLOOKUP(Table4[[#This Row],[رقم امر الشغل]],table5,10,0),\"\")","v":""},""]
[null,null,null,null,null,null,null,null,null,null,null,null,null,null,null,null,null,null,null,null,null,null,null,null,null,null,null,null,null,null,null,null,null,null,null,null,null,null,null,null,null,null,null,null,null,null,null,null,null,null,null,null,null,null,null,null,null,null,null,null,null,null,null,null,null,null,null,null,null,null,null,null,null,null,{"$f":"IFERROR(VLOOKUP(Table4[[#This Row],[رقم امر الشغل]],table5,9,0),\"\")","v":""},{"$f":"IFERROR(VLOOKUP(Table4[[#This Row],[رقم امر الشغل]],table5,10,0),\"\")","v":""},""]
[null,null,null,null,null,null,null,null,null,null,null,null,null,null,null,null,null,null,null,null,null,null,null,null,null,null,null,null,null,null,null,null,null,null,null,null,null,null,null,null,null,null,null,null,null,null,null,null,null,null,null,null,null,null,null,null,null,null,null,null,null,null,null,null,null,null,null,null,null,null,null,null,null,null,{"$f":"IFERROR(VLOOKUP(Table4[[#This Row],[رقم امر الشغل]],table5,9,0),\"\")","v":""},{"$f":"IFERROR(VLOOKUP(Table4[[#This Row],[رقم امر الشغل]],table5,10,0),\"\")","v":""},""]
[null,null,null,null,null,null,null,null,null,null,null,null,null,null,null,null,null,null,null,null,null,null,null,null,null,null,null,null,null,null,null,null,null,null,null,null,null,null,null,null,null,null,null,null,null,null,null,null,null,null,null,null,null,null,null,null,null,null,null,null,null,null,null,null,null,null,null,null,null,null,null,null,null,null,{"$f":"IFERROR(VLOOKUP(Table4[[#This Row],[رقم امر الشغل]],table5,9,0),\"\")","v":""},{"$f":"IFERROR(VLOOKUP(Table4[[#This Row],[رقم امر الشغل]],table5,10,0),\"\")","v":""},""]
[null,null,null,null,null,null,null,null,null,null,null,null,null,null,null,null,null,null,null,null,null,null,null,null,null,null,null,null,null,null,null,null,null,null,null,null,null,null,null,null,null,null,null,null,null,null,null,null,null,null,null,null,null,null,null,null,null,null,null,null,null,null,null,null,null,null,null,null,null,null,null,null,null,null,{"$f":"IFERROR(VLOOKUP(Table4[[#This Row],[رقم امر الشغل]],table5,9,0),\"\")","v":""},{"$f":"IFERROR(VLOOKUP(Table4[[#This Row],[رقم امر الشغل]],table5,10,0),\"\")","v":""},""]
[null,null,null,null,null,null,null,null,null,null,null,null,null,null,null,null,null,null,null,null,null,null,null,null,null,null,null,null,null,null,null,null,null,null,null,null,null,null,null,null,null,null,null,null,null,null,null,null,null,null,null,null,null,null,null,null,null,null,null,null,null,null,null,null,null,null,null,null,null,null,null,null,null,null,{"$f":"IFERROR(VLOOKUP(Table4[[#This Row],[رقم امر الشغل]],table5,9,0),\"\")","v":""},{"$f":"IFERROR(VLOOKUP(Table4[[#This Row],[رقم امر الشغل]],table5,10,0),\"\")","v":""},{"$f":"IFERROR((BW282-BX282),\"\")","v":""}]
[null,null,null,null,null,null,null,null,null,null,null,null,null,null,null,null,null,null,null,null,null,null,null,null,null,null,null,null,null,null,null,null,null,null,null,null,null,null,null,null,null,null,null,null,null,null,null,null,null,null,null,null,null,null,null,null,null,null,null,null,null,null,null,null,null,null,null,null,null,null,null,null,null,null,{"$f":"IFERROR(VLOOKUP(Table4[[#This Row],[رقم امر الشغل]],table5,9,0),\"\")","v":""},{"$f":"IFERROR(VLOOKUP(Table4[[#This Row],[رقم امر الشغل]],table5,10,0),\"\")","v":""},""]
[null,null,null,null,null,null,null,null,null,null,null,null,null,null,null,null,null,null,null,null,null,null,null,null,null,null,null,null,null,null,null,null,null,null,null,null,null,null,null,null,null,null,null,null,null,null,null,null,null,null,null,null,null,null,null,null,null,null,null,null,null,null,null,null,null,null,null,null,null,null,null,null,null,null,{"$f":"IFERROR(VLOOKUP(Table4[[#This Row],[رقم امر الشغل]],table5,9,0),\"\")","v":""},{"$f":"IFERROR(VLOOKUP(Table4[[#This Row],[رقم امر الشغل]],table5,10,0),\"\")","v":""},""]
[null,null,null,null,null,null,null,null,null,null,null,null,null,null,null,null,null,null,null,null,null,null,null,null,null,null,null,null,null,null,null,null,null,null,null,null,null,null,null,null,null,null,null,null,null,null,null,null,null,null,null,null,null,null,null,null,null,null,null,null,null,null,null,null,null,null,null,null,null,null,null,null,null,null,{"$f":"IFERROR(VLOOKUP(Table4[[#This Row],[رقم امر الشغل]],table5,9,0),\"\")","v":""},{"$f":"IFERROR(VLOOKUP(Table4[[#This Row],[رقم امر الشغل]],table5,10,0),\"\")","v":""},""]
[null,null,null,null,null,null,null,null,null,null,null,null,null,null,null,null,null,null,null,null,null,null,null,null,null,null,null,null,null,null,null,null,null,null,null,null,null,null,null,null,null,null,null,null,null,null,null,null,null,null,null,null,null,null,null,null,null,null,null,null,null,null,null,null,null,null,null,null,null,null,null,null,null,null,{"$f":"IFERROR(VLOOKUP(Table4[[#This Row],[رقم امر الشغل]],table5,9,0),\"\")","v":""},{"$f":"IFERROR(VLOOKUP(Table4[[#This Row],[رقم امر الشغل]],table5,10,0),\"\")","v":""},""]
[null,null,null,null,null,null,null,null,null,null,null,null,null,null,null,null,null,null,null,null,null,null,null,null,null,null,null,null,null,null,null,null,null,null,null,null,null,null,null,null,null,null,null,null,null,null,null,null,null,null,null,null,null,null,null,null,null,null,null,null,null,null,null,null,null,null,null,null,null,null,null,null,null,null,{"$f":"IFERROR(VLOOKUP(Table4[[#This Row],[رقم امر الشغل]],table5,9,0),\"\")","v":""},{"$f":"IFERROR(VLOOKUP(Table4[[#This Row],[رقم امر الشغل]],table5,10,0),\"\")","v":""},""]
[null,null,null,null,null,null,null,null,null,null,null,null,null,null,null,null,null,null,null,null,null,null,null,null,null,null,null,null,null,null,null,null,null,null,null,null,null,null,null,null,null,null,null,null,null,null,null,null,null,null,null,null,null,null,null,null,null,null,null,null,null,null,null,null,null,null,null,null,null,null,null,null,null,null,{"$f":"IFERROR(VLOOKUP(Table4[[#This Row],[رقم امر الشغل]],table5,9,0),\"\")","v":""},{"$f":"IFERROR(VLOOKUP(Table4[[#This Row],[رقم امر الشغل]],table5,10,0),\"\")","v":""},""]
[null,null,null,null,null,null,null,null,null,null,null,null,null,null,null,null,null,null,null,null,null,null,null,null,null,null,null,null,null,null,null,null,null,null,null,null,null,null,null,null,null,null,null,null,null,null,null,null,null,null,null,null,null,null,null,null,null,null,null,null,null,null,null,null,null,null,null,null,null,null,null,null,null,null,{"$f":"IFERROR(VLOOKUP(Table4[[#This Row],[رقم امر الشغل]],table5,9,0),\"\")","v":""},{"$f":"IFERROR(VLOOKUP(Table4[[#This Row],[رقم امر الشغل]],table5,10,0),\"\")","v":""},""]
[null,null,null,null,null,null,null,null,null,null,null,null,null,null,null,null,null,null,null,null,null,null,null,null,null,null,null,null,null,null,null,null,null,null,null,null,null,null,null,null,null,null,null,null,null,null,null,null,null,null,null,null,null,null,null,null,null,null,null,null,null,null,null,null,null,null,null,null,null,null,null,null,null,null,{"$f":"IFERROR(VLOOKUP(Table4[[#This Row],[رقم امر الشغل]],table5,9,0),\"\")","v":""},{"$f":"IFERROR(VLOOKUP(Table4[[#This Row],[رقم امر الشغل]],table5,10,0),\"\")","v":""},""]
[null,null,null,null,null,null,null,null,null,null,null,null,null,null,null,null,null,null,null,null,null,null,null,null,null,null,null,null,null,null,null,null,null,null,null,null,null,null,null,null,null,null,null,null,null,null,null,null,null,null,null,null,null,null,null,null,null,null,null,null,null,null,null,null,null,null,null,null,null,null,null,null,null,null,{"$f":"IFERROR(VLOOKUP(Table4[[#This Row],[رقم امر الشغل]],table5,9,0),\"\")","v":""},{"$f":"IFERROR(VLOOKUP(Table4[[#This Row],[رقم امر الشغل]],table5,10,0),\"\")","v":""},""]
[null,null,null,null,null,null,null,null,null,null,null,null,null,null,null,null,null,null,null,null,null,null,null,null,null,null,null,null,null,null,null,null,null,null,null,null,null,null,null,null,null,null,null,null,null,null,null,null,null,null,null,null,null,null,null,null,null,null,null,null,null,null,null,null,null,null,null,null,null,null,null,null,null,null,{"$f":"IFERROR(VLOOKUP(Table4[[#This Row],[رقم امر الشغل]],table5,9,0),\"\")","v":""},{"$f":"IFERROR(VLOOKUP(Table4[[#This Row],[رقم امر الشغل]],table5,10,0),\"\")","v":""},""]
[null,null,null,null,null,null,null,null,null,null,null,null,null,null,null,null,null,null,null,null,null,null,null,null,null,null,null,null,null,null,null,null,null,null,null,null,null,null,null,null,null,null,null,null,null,null,null,null,null,null,null,null,null,null,null,null,null,null,null,null,null,null,null,null,null,null,null,null,null,null,null,null,null,null,{"$f":"IFERROR(VLOOKUP(Table4[[#This Row],[رقم امر الشغل]],table5,9,0),\"\")","v":""},{"$f":"IFERROR(VLOOKUP(Table4[[#This Row],[رقم امر الشغل]],table5,10,0),\"\")","v":""},""]
[null,null,null,null,null,null,null,null,null,null,null,null,null,null,null,null,null,null,null,null,null,null,null,null,null,null,null,null,null,null,null,null,null,null,null,null,null,null,null,null,null,null,null,null,null,null,null,null,null,null,null,null,null,null,null,null,null,null,null,null,null,null,null,null,null,null,null,null,null,null,null,null,null,null,{"$f":"IFERROR(VLOOKUP(Table4[[#This Row],[رقم امر الشغل]],table5,9,0),\"\")","v":""},{"$f":"IFERROR(VLOOKUP(Table4[[#This Row],[رقم امر الشغل]],table5,10,0),\"\")","v":""},""]
[null,null,null,null,null,null,null,null,null,null,null,null,null,null,null,null,null,null,null,null,null,null,null,null,null,null,null,null,null,null,null,null,null,null,null,null,null,null,null,null,null,null,null,null,null,null,null,null,null,null,null,null,null,null,null,null,null,null,null,null,null,null,null,null,null,null,null,null,null,null,null,null,null,null,{"$f":"IFERROR(VLOOKUP(Table4[[#This Row],[رقم امر الشغل]],table5,9,0),\"\")","v":""},{"$f":"IFERROR(VLOOKUP(Table4[[#This Row],[رقم امر الشغل]],table5,10,0),\"\")","v":""},""]
[null,null,null,null,null,null,null,null,null,null,null,null,null,null,null,null,null,null,null,null,null,null,null,null,null,null,null,null,null,null,null,null,null,null,null,null,null,null,null,null,null,null,null,null,null,null,null,null,null,null,null,null,null,null,null,null,null,null,null,null,null,null,null,null,null,null,null,null,null,null,null,null,null,null,{"$f":"IFERROR(VLOOKUP(Table4[[#This Row],[رقم امر الشغل]],table5,9,0),\"\")","v":""},{"$f":"IFERROR(VLOOKUP(Table4[[#This Row],[رقم امر الشغل]],table5,10,0),\"\")","v":""},""]
[null,null,null,null,null,null,null,null,null,null,null,null,null,null,null,null,null,null,null,null,null,null,null,null,null,null,null,null,null,null,null,null,null,null,null,null,null,null,null,null,null,null,null,null,null,null,null,null,null,null,null,null,null,null,null,null,null,null,null,null,null,null,null,null,null,null,null,null,null,null,null,null,null,null,{"$f":"IFERROR(VLOOKUP(Table4[[#This Row],[رقم امر الشغل]],table5,9,0),\"\")","v":""},{"$f":"IFERROR(VLOOKUP(Table4[[#This Row],[رقم امر الشغل]],table5,10,0),\"\")","v":""},""]
[null,null,null,null,null,null,null,null,null,null,null,null,null,null,null,null,null,null,null,null,null,null,null,null,null,null,null,null,null,null,null,null,null,null,null,null,null,null,null,null,null,null,null,null,null,null,null,null,null,null,null,null,null,null,null,null,null,null,null,null,null,null,null,null,null,null,null,null,null,null,null,null,null,null,{"$f":"IFERROR(VLOOKUP(Table4[[#This Row],[رقم امر الشغل]],table5,9,0),\"\")","v":""},{"$f":"IFERROR(VLOOKUP(Table4[[#This Row],[رقم امر الشغل]],table5,10,0),\"\")","v":""},""]
[null,null,null,null,null,null,null,null,null,null,null,null,null,null,null,null,null,null,null,null,null,null,null,null,null,null,null,null,null,null,null,null,null,null,null,null,null,null,null,null,null,null,null,null,null,null,null,null,null,null,null,null,null,null,null,null,null,null,null,null,null,null,null,null,null,null,null,null,null,null,null,null,null,null,{"$f":"IFERROR(VLOOKUP(Table4[[#This Row],[رقم امر الشغل]],table5,9,0),\"\")","v":""},{"$f":"IFERROR(VLOOKUP(Table4[[#This Row],[رقم امر الشغل]],table5,10,0),\"\")","v":""},""]
[null,null,null,null,null,null,null,null,null,null,null,null,null,null,null,null,null,null,null,null,null,null,null,null,null,null,null,null,null,null,null,null,null,null,null,null,null,null,null,null,null,null,null,null,null,null,null,null,null,null,null,null,null,null,null,null,null,null,null,null,null,null,null,null,null,null,null,null,null,null,null,null,null,null,{"$f":"IFERROR(VLOOKUP(Table4[[#This Row],[رقم امر الشغل]],table5,9,0),\"\")","v":""},{"$f":"IFERROR(VLOOKUP(Table4[[#This Row],[رقم امر الشغل]],table5,10,0),\"\")","v":""},""]
[null,null,null,null,null,null,null,null,null,null,null,null,null,null,null,null,null,null,null,null,null,null,null,null,null,null,null,null,null,null,null,null,null,null,null,null,null,null,null,null,null,null,null,null,null,null,null,null,null,null,null,null,null,null,null,null,null,null,null,null,null,null,null,null,null,null,null,null,null,null,null,null,null,null,{"$f":"IFERROR(VLOOKUP(Table4[[#This Row],[رقم امر الشغل]],table5,9,0),\"\")","v":""},{"$f":"IFERROR(VLOOKUP(Table4[[#This Row],[رقم امر الشغل]],table5,10,0),\"\")","v":""},""]
[null,null,null,null,null,null,null,null,null,null,null,null,null,null,null,null,null,null,null,null,null,null,null,null,null,null,null,null,null,null,null,null,null,null,null,null,null,null,null,null,null,null,null,null,null,null,null,null,null,null,null,null,null,null,null,null,null,null,null,null,null,null,null,null,null,null,null,null,null,null,null,null,null,null,{"$f":"IFERROR(VLOOKUP(Table4[[#This Row],[رقم امر الشغل]],table5,9,0),\"\")","v":""},{"$f":"IFERROR(VLOOKUP(Table4[[#This Row],[رقم امر الشغل]],table5,10,0),\"\")","v":""},""]
[null,null,null,null,null,null,null,null,null,null,null,null,null,null,null,null,null,null,null,null,null,null,null,null,null,null,null,null,null,null,null,null,null,null,null,null,null,null,null,null,null,null,null,null,null,null,null,null,null,null,null,null,null,null,null,null,null,null,null,null,null,null,null,null,null,null,null,null,null,null,null,null,null,null,{"$f":"IFERROR(VLOOKUP(Table4[[#This Row],[رقم امر الشغل]],table5,9,0),\"\")","v":""},{"$f":"IFERROR(VLOOKUP(Table4[[#This Row],[رقم امر الشغل]],table5,10,0),\"\")","v":""},""]
[null,null,null,null,null,null,null,null,null,null,null,null,null,null,null,null,null,null,null,null,null,null,null,null,null,null,null,null,null,null,null,null,null,null,null,null,null,null,null,null,null,null,null,null,null,null,null,null,null,null,null,null,null,null,null,null,null,null,null,null,null,null,null,null,null,null,null,null,null,null,null,null,null,null,{"$f":"IFERROR(VLOOKUP(Table4[[#This Row],[رقم امر الشغل]],table5,9,0),\"\")","v":""},{"$f":"IFERROR(VLOOKUP(Table4[[#This Row],[رقم امر الشغل]],table5,10,0),\"\")","v":""},""]
[null,null,null,null,null,null,null,null,null,null,null,null,null,null,null,null,null,null,null,null,null,null,null,null,null,null,null,null,null,null,null,null,null,null,null,null,null,null,null,null,null,null,null,null,null,null,null,null,null,null,null,null,null,null,null,null,null,null,null,null,null,null,null,null,null,null,null,null,null,null,null,null,null,null,{"$f":"IFERROR(VLOOKUP(Table4[[#This Row],[رقم امر الشغل]],table5,9,0),\"\")","v":""},{"$f":"IFERROR(VLOOKUP(Table4[[#This Row],[رقم امر الشغل]],table5,10,0),\"\")","v":""},""]
[null,null,null,null,null,null,null,null,null,null,null,null,null,null,null,null,null,null,null,null,null,null,null,null,null,null,null,null,null,null,null,null,null,null,null,null,null,null,null,null,null,null,null,null,null,null,null,null,null,null,null,null,null,null,null,null,null,null,null,null,null,null,null,null,null,null,null,null,null,null,null,null,null,null,{"$f":"IFERROR(VLOOKUP(Table4[[#This Row],[رقم امر الشغل]],table5,9,0),\"\")","v":""},{"$f":"IFERROR(VLOOKUP(Table4[[#This Row],[رقم امر الشغل]],table5,10,0),\"\")","v":""},""]
[null,null,null,null,null,null,null,null,null,null,null,null,null,null,null,null,null,null,null,null,null,null,null,null,null,null,null,null,null,null,null,null,null,null,null,null,null,null,null,null,null,null,null,null,null,null,null,null,null,null,null,null,null,null,null,null,null,null,null,null,null,null,null,null,null,null,null,null,null,null,null,null,null,null,{"$f":"IFERROR(VLOOKUP(Table4[[#This Row],[رقم امر الشغل]],table5,9,0),\"\")","v":""},{"$f":"IFERROR(VLOOKUP(Table4[[#This Row],[رقم امر الشغل]],table5,10,0),\"\")","v":""},""]
[null,null,null,null,null,null,null,null,null,null,null,null,null,null,null,null,null,null,null,null,null,null,null,null,null,null,null,null,null,null,null,null,null,null,null,null,null,null,null,null,null,null,null,null,null,null,null,null,null,null,null,null,null,null,null,null,null,null,null,null,null,null,null,null,null,null,null,null,null,null,null,null,null,null,{"$f":"IFERROR(VLOOKUP(Table4[[#This Row],[رقم امر الشغل]],table5,9,0),\"\")","v":""},{"$f":"IFERROR(VLOOKUP(Table4[[#This Row],[رقم امر الشغل]],table5,10,0),\"\")","v":""},""]
[null,null,null,null,null,null,null,null,null,null,null,null,null,null,null,null,null,null,null,null,null,null,null,null,null,null,null,null,null,null,null,null,null,null,null,null,null,null,null,null,null,null,null,null,null,null,null,null,null,null,null,null,null,null,null,null,null,null,null,null,null,null,null,null,null,null,null,null,null,null,null,null,null,null,{"$f":"IFERROR(VLOOKUP(Table4[[#This Row],[رقم امر الشغل]],table5,9,0),\"\")","v":""},{"$f":"IFERROR(VLOOKUP(Table4[[#This Row],[رقم امر الشغل]],table5,10,0),\"\")","v":""},""]
[null,null,null,null,null,null,null,null,null,null,null,null,null,null,null,null,null,null,null,null,null,null,null,null,null,null,null,null,null,null,null,null,null,null,null,null,null,null,null,null,null,null,null,null,null,null,null,null,null,null,null,null,null,null,null,null,null,null,null,null,null,null,null,null,null,null,null,null,null,null,null,null,null,null,{"$f":"IFERROR(VLOOKUP(Table4[[#This Row],[رقم امر الشغل]],table5,9,0),\"\")","v":""},{"$f":"IFERROR(VLOOKUP(Table4[[#This Row],[رقم امر الشغل]],table5,10,0),\"\")","v":""},""]
[null,null,null,null,null,null,null,null,null,null,null,null,null,null,null,null,null,null,null,null,null,null,null,null,null,null,null,null,null,null,null,null,null,null,null,null,null,null,null,null,null,null,null,null,null,null,null,null,null,null,null,null,null,null,null,null,null,null,null,null,null,null,null,null,null,null,null,null,null,null,null,null,null,null,{"$f":"IFERROR(VLOOKUP(Table4[[#This Row],[رقم امر الشغل]],table5,9,0),\"\")","v":""},{"$f":"IFERROR(VLOOKUP(Table4[[#This Row],[رقم امر الشغل]],table5,10,0),\"\")","v":""},""]
[null,null,null,null,null,null,null,null,null,null,null,null,null,null,null,null,null,null,null,null,null,null,null,null,null,null,null,null,null,null,null,null,null,null,null,null,null,null,null,null,null,null,null,null,null,null,null,null,null,null,null,null,null,null,null,null,null,null,null,null,null,null,null,null,null,null,null,null,null,null,null,null,null,null,{"$f":"IFERROR(VLOOKUP(Table4[[#This Row],[رقم امر الشغل]],table5,9,0),\"\")","v":""},{"$f":"IFERROR(VLOOKUP(Table4[[#This Row],[رقم امر الشغل]],table5,10,0),\"\")","v":""},""]
[null,null,null,null,null,null,null,null,null,null,null,null,null,null,null,null,null,null,null,null,null,null,null,null,null,null,null,null,null,null,null,null,null,null,null,null,null,null,null,null,null,null,null,null,null,null,null,null,null,null,null,null,null,null,null,null,null,null,null,null,null,null,null,null,null,null,null,null,null,null,null,null,null,null,{"$f":"IFERROR(VLOOKUP(Table4[[#This Row],[رقم امر الشغل]],table5,9,0),\"\")","v":""},{"$f":"IFERROR(VLOOKUP(Table4[[#This Row],[رقم امر الشغل]],table5,10,0),\"\")","v":""},""]
[null,null,null,null,null,null,null,null,null,null,null,null,null,null,null,null,null,null,null,null,null,null,null,null,null,null,null,null,null,null,null,null,null,null,null,null,null,null,null,null,null,null,null,null,null,null,null,null,null,null,null,null,null,null,null,null,null,null,null,null,null,null,null,null,null,null,null,null,null,null,null,null,null,null,{"$f":"IFERROR(VLOOKUP(Table4[[#This Row],[رقم امر الشغل]],table5,9,0),\"\")","v":""},{"$f":"IFERROR(VLOOKUP(Table4[[#This Row],[رقم امر الشغل]],table5,10,0),\"\")","v":""},""]
[null,null,null,null,null,null,null,null,null,null,null,null,null,null,null,null,null,null,null,null,null,null,null,null,null,null,null,null,null,null,null,null,null,null,null,null,null,null,null,null,null,null,null,null,null,null,null,null,null,null,null,null,null,null,null,null,null,null,null,null,null,null,null,null,null,null,null,null,null,null,null,null,null,null,{"$f":"IFERROR(VLOOKUP(Table4[[#This Row],[رقم امر الشغل]],table5,9,0),\"\")","v":""},{"$f":"IFERROR(VLOOKUP(Table4[[#This Row],[رقم امر الشغل]],table5,10,0),\"\")","v":""},""]
[null,null,null,null,null,null,null,null,null,null,null,null,null,null,null,null,null,null,null,null,null,null,null,null,null,null,null,null,null,null,null,null,null,null,null,null,null,null,null,null,null,null,null,null,null,null,null,null,null,null,null,null,null,null,null,null,null,null,null,null,null,null,null,null,null,null,null,null,null,null,null,null,null,null,{"$f":"IFERROR(VLOOKUP(Table4[[#This Row],[رقم امر الشغل]],table5,9,0),\"\")","v":""},{"$f":"IFERROR(VLOOKUP(Table4[[#This Row],[رقم امر الشغل]],table5,10,0),\"\")","v":""},""]
[null,null,null,null,null,null,null,null,null,null,null,null,null,null,null,null,null,null,null,null,null,null,null,null,null,null,null,null,null,null,null,null,null,null,null,null,null,null,null,null,null,null,null,null,null,null,null,null,null,null,null,null,null,null,null,null,null,null,null,null,null,null,null,null,null,null,null,null,null,null,null,null,null,null,{"$f":"IFERROR(VLOOKUP(Table4[[#This Row],[رقم امر الشغل]],table5,9,0),\"\")","v":""},{"$f":"IFERROR(VLOOKUP(Table4[[#This Row],[رقم امر الشغل]],table5,10,0),\"\")","v":""},""]
[null,null,null,null,null,null,null,null,null,null,null,null,null,null,null,null,null,null,null,null,null,null,null,null,null,null,null,null,null,null,null,null,null,null,null,null,null,null,null,null,null,null,null,null,null,null,null,null,null,null,null,null,null,null,null,null,null,null,null,null,null,null,null,null,null,null,null,null,null,null,null,null,null,null,{"$f":"IFERROR(VLOOKUP(Table4[[#This Row],[رقم امر الشغل]],table5,9,0),\"\")","v":""},{"$f":"IFERROR(VLOOKUP(Table4[[#This Row],[رقم امر الشغل]],table5,10,0),\"\")","v":""},""]
[null,null,null,null,null,null,null,null,null,null,null,null,null,null,null,null,null,null,null,null,null,null,null,null,null,null,null,null,null,null,null,null,null,null,null,null,null,null,null,null,null,null,null,null,null,null,null,null,null,null,null,null,null,null,null,null,null,null,null,null,null,null,null,null,null,null,null,null,null,null,null,null,null,null,{"$f":"IFERROR(VLOOKUP(Table4[[#This Row],[رقم امر الشغل]],table5,9,0),\"\")","v":""},{"$f":"IFERROR(VLOOKUP(Table4[[#This Row],[رقم امر الشغل]],table5,10,0),\"\")","v":""},""]
[null,null,null,null,null,null,null,null,null,null,null,null,null,null,null,null,null,null,null,null,null,null,null,null,null,null,null,null,null,null,null,null,null,null,null,null,null,null,null,null,null,null,null,null,null,null,null,null,null,null,null,null,null,null,null,null,null,null,null,null,null,null,null,null,null,null,null,null,null,null,null,null,null,null,{"$f":"IFERROR(VLOOKUP(Table4[[#This Row],[رقم امر الشغل]],table5,9,0),\"\")","v":""},{"$f":"IFERROR(VLOOKUP(Table4[[#This Row],[رقم امر الشغل]],table5,10,0),\"\")","v":""},""]
[null,null,null,null,null,null,null,null,null,null,null,null,null,null,null,null,null,null,null,null,null,null,null,null,null,null,null,null,null,null,null,null,null,null,null,null,null,null,null,null,null,null,null,null,null,null,null,null,null,null,null,null,null,null,null,null,null,null,null,null,null,null,null,null,null,null,null,null,null,null,null,null,null,null,{"$f":"IFERROR(VLOOKUP(Table4[[#This Row],[رقم امر الشغل]],table5,9,0),\"\")","v":""},{"$f":"IFERROR(VLOOKUP(Table4[[#This Row],[رقم امر الشغل]],table5,10,0),\"\")","v":""},""]
[null,null,null,null,null,null,null,null,null,null,null,null,null,null,null,null,null,null,null,null,null,null,null,null,null,null,null,null,null,null,null,null,null,null,null,null,null,null,null,null,null,null,null,null,null,null,null,null,null,null,null,null,null,null,null,null,null,null,null,null,null,null,null,null,null,null,null,null,null,null,null,null,null,null,{"$f":"IFERROR(VLOOKUP(Table4[[#This Row],[رقم امر الشغل]],table5,9,0),\"\")","v":""},{"$f":"IFERROR(VLOOKUP(Table4[[#This Row],[رقم امر الشغل]],table5,10,0),\"\")","v":""},""]
[null,null,null,null,null,null,null,null,null,null,null,null,null,null,null,null,null,null,null,null,null,null,null,null,null,null,null,null,null,null,null,null,null,null,null,null,null,null,null,null,null,null,null,null,null,null,null,null,null,null,null,null,null,null,null,null,null,null,null,null,null,null,null,null,null,null,null,null,null,null,null,null,null,null,{"$f":"IFERROR(VLOOKUP(Table4[[#This Row],[رقم امر الشغل]],table5,9,0),\"\")","v":""},{"$f":"IFERROR(VLOOKUP(Table4[[#This Row],[رقم امر الشغل]],table5,10,0),\"\")","v":""},""]

{"sheet":"الطباعه وطبقه حمايه","index":2,"n_rows":48,"n_cols":22,"rows_kept":48,"cut":false,"hidden":false,"merged":[[5,8,6,8],[5,2,6,2],[5,4,6,4],[5,27,6,27],[5,17,6,17],[5,18,6,18],[5,19,6,19],[5,20,6,20],[5,21,6,21],[5,22,6,22],[5,23,6,23],[5,24,6,24],[5,25,6,25],[5,26,6,26],[5,16,6,16],[5,9,6,9],[5,10,5,11],[5,12,6,12],[5,13,6,13],[5,15,6,15],[5,14,6,14],[5,0,6,0],[5,1,6,1],[5,3,6,3],[5,5,6,5],[5,7,6,7],[5,6,6,6]]}
[]
[]
[]
[]
[]
["مسلسل","رقم امر الشغل ","الصنف","التاريخ ","زنكات","اسم العميل ","اسم المصنع","اسم المنتج","عدد الالوان","اسم المورد ","مقاس الشيت",null,"الكميه ","الكميه الموردة","السعر ","الحد الادني ","الاجمالي ","زنكات ","اجمالي ","الاجمالي العام ","دفعات ","اجمالي مرحل "]
[null,null,null,null,null,null,null,null,null,null,"طول","عرض"]
[{"$f":"IF(H8<>\"\",MAX($A$1:A6)+1,\"\")","v":1},3628,{"$f":"VLOOKUP($J8,'Database 1'!$B$2:$F$13,5,0)","v":"يوفي "},null,6,{"$f":"IFERROR(VLOOKUP($B8,table3,5,0),0)","v":""},{"$f":"IFERROR(VLOOKUP($B8,table3,4,0),0)","v":""},{"$f":"IFERROR(VLOOKUP($B8,table3,3,0),0)","v":"محمد سمير - طقم بهارات الامبراطور  كود 7002"},{"$f":"IFERROR(VLOOKUP($B8,table3,32,0),0)","v":""},"مورد 1",1,0.69,2000,1917,{"$f":"VLOOKUP($J8,'Database 1'!$B$2:$E$20,3,0)","v":120},{"$f":"VLOOKUP($J8,'Database 1'!$B$2:$E$20,2,0)","v":0},{"$f":"IF($C8=\"'طباعه \",IF($P8>$M8,$P8*VLOOKUP($J8,'Database 1'!$B$2:$F$20,3,0),$M8*VLOOKUP($J8,'Database 1'!$B$2:$F$20,3,0)),IF($C8=\"يوفي \",($K8*$L8*$N8*10/7)*VLOOKUP($J8,'Database 1'!$B$2:$F$20,3,0),\"\"))","v":226753.71428571426},{"$f":"IF($C8=\"طباعه \",VLOOKUP(J8,'Database 1'!$B$2:$E$20,4,0)*E8,\"\")","v":""},{"$f":"IFERROR(Q8+R8,\"\")","v":""},null,null,{"$f":"T8-U8","v":0}]
[{"$f":"IF(H9<>\"\",MAX($A$1:A7)+1,\"\")","v":1},3628,{"$f":"VLOOKUP($J9,'Database 1'!$B$2:$F$13,5,0)","v":"يوفي "},null,6,"","","محمد سمير - طقم بهارات الامبراطور  كود 7002","","مورد 2",1,0.69,2500,1917,null,{"$f":"VLOOKUP($J9,'Database 1'!$B$2:$E$20,2,0)","v":0},{"$f":"IF($C9=\"'طباعه \",IF($P9>$M9,$P9*VLOOKUP($J9,'Database 1'!$B$2:$F$20,3,0),$M9*VLOOKUP($J9,'Database 1'!$B$2:$F$20,3,0)),IF($C9=\"يوفي \",($K9*$L9*$N9*10/7)*VLOOKUP($J9,'Database 1'!$B$2:$F$20,3,0),\"\"))","v":226753.71428571426},{"$f":"IF($C9=\"طباعه \",VLOOKUP(J9,'Database 1'!$B$2:$E$20,4,0)*E9,\"\")","v":""},{"$f":"IFERROR(Q9+R9,\"\")","v":""},null,null,{"$f":"T9-U9","v":0}]
[{"$f":"IF(H10<>\"\",MAX($A$1:A8)+1,\"\")","v":2},3628,{"$f":"VLOOKUP($J10,'Database 1'!$B$2:$F$13,5,0)","v":"يوفي "},null,6,"","","محمد سمير - طقم بهارات الامبراطور  كود 7002","","مورد 3",1,0.69,2000,1917,{"$f":"VLOOKUP($J10,'Database 1'!$B$2:$E$20,3,0)","v":150},{"$f":"VLOOKUP($J10,'Database 1'!$B$2:$E$20,2,0)","v":0},{"$f":"IF($C10=\"'طباعه \",IF($P10>$M10,$P10*VLOOKUP($J10,'Database 1'!$B$2:$F$20,3,0),$M10*VLOOKUP($J10,'Database 1'!$B$2:$F$20,3,0)),IF($C10=\"يوفي \",($K10*$L10*$N10*10/7)*VLOOKUP($J10,'Database 1'!$B$2:$F$20,3,0),\"\"))","v":283442.14285714284},{"$f":"IF($C10=\"طباعه \",VLOOKUP(J10,'Database 1'!$B$2:$E$20,4,0)*E10,\"\")","v":""},"",null,null,0]
[{"$f":"IF(H11<>\"\",MAX($A$1:A9)+1,\"\")","v":2},3628,{"$f":"VLOOKUP($J11,'Database 1'!$B$2:$F$13,5,0)","v":"طباعه "},null,6,"","","محمد سمير - طقم بهارات الامبراطور  كود 7002","","مورد 4",1,0.69,2000,1917,{"$f":"VLOOKUP($J11,'Database 1'!$B$2:$E$20,3,0)","v":40},{"$f":"VLOOKUP($J11,'Database 1'!$B$2:$E$20,2,0)","v":5000},{"$f":"IF($C11=\"'طباعه \",IF($P11>$M11,$P11*VLOOKUP($J11,'Database 1'!$B$2:$F$20,3,0),$M11*VLOOKUP($J11,'Database 1'!$B$2:$F$20,3,0)),IF($C11=\"يوفي \",($K11*$L11*$N11*10/7)*VLOOKUP($J11,'Database 1'!$B$2:$F$20,3,0),\"\"))","v":""},{"$f":"IF($C11=\"طباعه \",VLOOKUP(J11,'Database 1'!$B$2:$E$20,4,0)*E11,\"\")","v":1050},"",null,null,0]
[{"$f":"IF(H12<>\"\",MAX($A$1:A10)+1,\"\")","v":3},3628,{"$f":"VLOOKUP($J12,'Database 1'!$B$2:$F$13,5,0)","v":"يوفي "},null,6,"","","محمد سمير - طقم بهارات الامبراطور  كود 7002","","مورد 1",1,0.69,2000,1917,{"$f":"VLOOKUP($J12,'Database 1'!$B$2:$E$20,3,0)","v":120},{"$f":"VLOOKUP($J12,'Database 1'!$B$2:$E$20,2,0)","v":0},{"$f":"IF($C12=\"'طباعه \",IF($P12>$M12,$P12*VLOOKUP($J12,'Database 1'!$B$2:$F$20,3,0),$M12*VLOOKUP($J12,'Database 1'!$B$2:$F$20,3,0)),IF($C12=\"يوفي \",($K12*$L12*$N12*10/7)*VLOOKUP($J12,'Database 1'!$B$2:$F$20,3,0),\"\"))","v":226753.71428571426},{"$f":"IF($C12=\"طباعه \",VLOOKUP(J12,'Database 1'!$B$2:$E$20,4,0)*E12,\"\")","v":""},{"$f":"IFERROR(Q12+R12,\"\")","v":""},null,null,0]
[{"$f":"IF(H13<>\"\",MAX($A$1:A11)+1,\"\")","v":3},3628,{"$f":"VLOOKUP($J13,'Database 1'!$B$2:$F$13,5,0)","v":"يوفي "},null,6,"","","محمد سمير - طقم بهارات الامبراطور  كود 7002","","مورد 1",1,0.69,2000,1917,{"$f":"VLOOKUP($J13,'Database 1'!$B$2:$E$20,3,0)","v":120},{"$f":"VLOOKUP($J13,'Database 1'!$B$2:$E$20,2,0)","v":0},{"$f":"IF($C13=\"'طباعه \",IF($P13>$M13,$P13*VLOOKUP($J13,'Database 1'!$B$2:$F$20,3,0),$M13*VLOOKUP($J13,'Database 1'!$B$2:$F$20,3,0)),IF($C13=\"يوفي \",($K13*$L13*$N13*10/7)*VLOOKUP($J13,'Database 1'!$B$2:$F$20,3,0),\"\"))","v":226753.71428571426},{"$f":"IF($C13=\"طباعه \",VLOOKUP(J13,'Database 1'!$B$2:$E$20,4,0)*E13,\"\")","v":""},""]
[{"$f":"IF(H14<>\"\",MAX($A$1:A12)+1,\"\")","v":4},3628,{"$f":"VLOOKUP($J14,'Database 1'!$B$2:$F$13,5,0)","v":"طباعه "},null,6,"","","محمد سمير - طقم بهارات الامبراطور  كود 7002","","مورد 8",1,0.69,2000,1917,{"$f":"VLOOKUP($J14,'Database 1'!$B$2:$E$20,3,0)","v":1.1000000000000001},{"$f":"VLOOKUP($J14,'Database 1'!$B$2:$E$20,2,0)","v":10000},{"$f":"IF($C14=\"'طباعه \",IF($P14>$M14,$P14*VLOOKUP($J14,'Database 1'!$B$2:$F$20,3,0),$M14*VLOOKUP($J14,'Database 1'!$B$2:$F$20,3,0)),IF($C14=\"يوفي \",($K14*$L14*$N14*10/7)*VLOOKUP($J14,'Database 1'!$B$2:$F$20,3,0),\"\"))","v":""},{"$f":"IF($C14=\"طباعه \",VLOOKUP(J14,'Database 1'!$B$2:$E$20,4,0)*E14,\"\")","v":3000},""]
[{"$f":"IF(H15<>\"\",MAX($A$1:A13)+1,\"\")","v":""}]
[{"$f":"IF(H16<>\"\",MAX($A$1:A14)+1,\"\")","v":""}]
[{"$f":"IF(H17<>\"\",MAX($A$1:A15)+1,\"\")","v":""}]
[{"$f":"IF(H18<>\"\",MAX($A$1:A16)+1,\"\")","v":""}]
[{"$f":"IF(H19<>\"\",MAX($A$1:A17)+1,\"\")","v":""}]
[{"$f":"IF(H20<>\"\",MAX($A$1:A18)+1,\"\")","v":""}]
[{"$f":"IF(H21<>\"\",MAX($A$1:A19)+1,\"\")","v":""}]
[{"$f":"IF(H22<>\"\",MAX($A$1:A20)+1,\"\")","v":""}]
[{"$f":"IF(H23<>\"\",MAX($A$1:A21)+1,\"\")","v":""}]
[{"$f":"IF(H24<>\"\",MAX($A$1:A22)+1,\"\")","v":""}]
[{"$f":"IF(H25<>\"\",MAX($A$1:A23)+1,\"\")","v":""}]
[{"$f":"IF(H26<>\"\",MAX($A$1:A24)+1,\"\")","v":""}]
[{"$f":"IF(H27<>\"\",MAX($A$1:A25)+1,\"\")","v":""}]
[{"$f":"IF(H28<>\"\",MAX($A$1:A26)+1,\"\")","v":""},null,null,null,null,null,null,null,null,null,null,null,null,null,null,null,"في حاله وجود كلمه طباعه في خليه c المعادله لاتعمل "]
[{"$f":"IF(H29<>\"\",MAX($A$1:A27)+1,\"\")","v":""}]
[{"$f":"IF(H30<>\"\",MAX($A$1:A28)+1,\"\")","v":""}]
[{"$f":"IF(H31<>\"\",MAX($A$1:A29)+1,\"\")","v":""}]
[{"$f":"IF(H32<>\"\",MAX($A$1:A30)+1,\"\")","v":""}]
[{"$f":"IF(H33<>\"\",MAX($A$1:A31)+1,\"\")","v":""}]
[{"$f":"IF(H34<>\"\",MAX($A$1:A32)+1,\"\")","v":""}]
[{"$f":"IF(H35<>\"\",MAX($A$1:A33)+1,\"\")","v":""}]
[{"$f":"IF(H36<>\"\",MAX($A$1:A34)+1,\"\")","v":""}]
[{"$f":"IF(H37<>\"\",MAX($A$1:A35)+1,\"\")","v":""}]
[{"$f":"IF(H38<>\"\",MAX($A$1:A36)+1,\"\")","v":""}]
[{"$f":"IF(H39<>\"\",MAX($A$1:A37)+1,\"\")","v":""}]
[{"$f":"IF(H40<>\"\",MAX($A$1:A38)+1,\"\")","v":""}]
[{"$f":"IF(H41<>\"\",MAX($A$1:A39)+1,\"\")","v":""}]
[{"$f":"IF(H42<>\"\",MAX($A$1:A40)+1,\"\")","v":""}]
[{"$f":"IF(H43<>\"\",MAX($A$1:A41)+1,\"\")","v":""}]
[{"$f":"IF(H44<>\"\",MAX($A$1:A42)+1,\"\")","v":""}]
[{"$f":"IF(H45<>\"\",MAX($A$1:A43)+1,\"\")","v":""}]
[{"$f":"IF(H46<>\"\",MAX($A$1:A44)+1,\"\")","v":""}]
[{"$f":"IF(H47<>\"\",MAX($A$1:A45)+1,\"\")","v":""}]
[{"$f":"IF(H48<>\"\",MAX($A$1:A46)+1,\"\")","v":""}]